Workbook

Sheet Interface layout (no formulas) (hidden)
I1: [Donors] Carbon Trust
A2: 🔽 | B2: STEP 1: GENERAL INFORMATION | H2: Reset Button will delete all user input in this worksheet.
B4: Region* | C4: Africa 🔽
B5: Country* | C5: Angola 🔽
B6: Commodity* | C6: Meat (pig)
B7: Commodity group 🔒 | C7: =INDEX(IFC_Commodity_CommodityGroup[IFC Commodity group],MATCH(Commodity,IFC_Commodity_CommodityGroup[IFC Commodity],0)) -> 
B8: Production Type (meat-only)*
B9: Commodity Price (optional) | C9: 25 | D9: =IF(Commodity="Milk (cattle)", "USD/litre", "USD/t") -> USD/t
B10: Nitrogen Applied to Synthetic Fertilizer* | C10: 100 | D10: kg per year
B11: Unit of Measurement for Nitrogen* | C11: kg of Nitrogen per tonne of production (kg N/tonne) | D11: tonnes/hectare
B12: Yield per Year* | C12: 100000 | D12: tonnes/hectare
B13: Commodity Emission Factor (optional) | D13: tCO2e/tonne
A15: 🔽 | B15: STEP 2: SUPPLY CHAIN IMPROVEMENTS Select the stages of supply chain where improvements have been implemented.
C17: Production | D17: Transport Stage 1 | E17: Storage Location 1 | F17: Processing | G17: Transport Stage 2 | H17: Storage Location 2 | I17: Retail
B18: Description Needed | C18: Harvest and post-harvest losses (e.g. food preparation peeling, cutting, washing), plastic crates instead of bags for crops, temporary on-farm storage | D18: Losses during transport from farm to storage or sale | E18: Losses occuring in a dedicated storage facility (e.g. silos, warehouses, cooling facilities, etc.). May be on farm or off-site. | F18: Description Needed | G18: Description Needed | H18: Description Needed | I18: Description Needed
A20: 🔽 | B20: STEP 3: IMPROVEMENT DETAILS Describe the projects implemented at each of the revelant stages of the value chain.
B22: Supply Chain Stages | C22: Production | D22: Transport Stage 1 | E22: Storage Location 1 | F22: Processing | G22: Transport Stage 2 | H22: Storage Location 2 | I22: Retail
B23: Select main improvement (crops-only) | C23: 🔽 | D23: 🔽 | E23: 🔽 | F23: 🔽 | G23: 🔽 | H23: 🔽 | I23: 🔽
B24: Select main improvement (meat-only)
B25: Other improvements (optional) | C25: 🔽 | D25: 🔽 | E25: 🔽 | F25: 🔽 | G25: 🔽 | H25: 🔽 | I25: 🔽
A27: 🔽 | B27: STEP 4: POST IMPROVEMENT DETAILS Enter the amounts and loss rates associated with post improvement activities.
B29: Supply Chain Stages | C29: Production | D29: Transport Stage 1 | E29: Storage Location 1 | F29: Processing | G29: Transport Stage 2 | H29: Storage Location 2 | I29: Retail
B30: Commodity total after the improvements* | C30: 100 | D30: 100 | E30: 100
B31: =CONCATENATE("Unit of measurement (kg, tonnes)", IF(Commodity="Milk (cattle)",". 1 milk litre = 1 kg.", ""), IF(OR(Commodity="Meat (cattle)", Commodity="Meat (chicken)", Commodity="Meat (pig)"), " (carcass weight)*", "")) -> Unit of measurement (kg, tonnes) | C31: Tonnes | D31: Tonnes | E31: Tonnes
B32: Is amount reported net of food loss?* | C32: Yes | D32: Yes | E32: Yes
B33: Site/phase food loss rate after the project (%)* | C33: 0.05 | D33: 0.05 | E33: 0.05
B34: Site/phase food loss rate before the project (default 10%)* | C34: 0.1 | D34: 0.1 | E34: 0.1 | F34: 0.1 | G34: 0.1 | H34: 0.1 | I34: 0.1
A36: 🔽 | B36: Advance Inputs (Optional)
A37: 🔽 | B37: Advanced Production Details (Optional)
B39: Commodity Price (optional) | C39: 3 | D39: =IF(Commodity="Milk (cattle)", "USD/litre", "USD/t") -> USD/t
B40: Nitrogen Applied to Synthetic Fertilizer* | D40: kg per year
B41: Unit of Measurement for Nitrogen* | C41: kg of Nitrogen per tonne of production (kg N/tonne)
B42: Yield per Year* | D42: tonnes/hectare
B43: Commodity Emission Factor (optional) | D43: tCO2e/tonne
A45: 🔽 | B45: Advanced Transportation Details (Optional)
B47: Distance travelled by the merchandise in the selected country. (If the dedicated storage site is the same as production put 0. Leave blank to apply the national average.) | C47: 50 | D47: km
B49: Transport Stage 1
B50: Emissions factor type
B51: Emissions factor value
B52: Distance | D52: km
B53: Transport mode
B54: Fuel type
B55: Category
B56: Temperature control
B57: Fleet age | D57: years
B58: Road conditions
B59: Total Emissions 🔒 | D59: tCO₂e
B60: Carbon Dioxide (CO2) Emissions 🔒 | D60: tCO₂e
B61: Methane (CH4) Emissions 🔒 | D61: tCO₂e
B62: Nitrous Oxide (N2O) Emissions 🔒 | D62: tCO₂e
B64: Transport Stage 2
B65: Emissions factor type
B66: Emissions factor value
B67: Distance | D67: km
B68: Transport mode
B69: Fuel type
B70: Category
B71: Temperature control
B72: Fleet age | D72: years
B73: Road conditions
B74: Total Emissions 🔒 | D74: tCO₂e
B75: Carbon Dioxide (CO2) Emissions 🔒 | D75: tCO₂e
B76: Methane (CH4) Emissions 🔒
B77: Nitrous Oxide (N2O) Emissions 🔒
A79: 🔽 | B79: Advanced Storage Details (Optional)
B81: Is any dedicated storage ambient or temperature controlled, heated and/or chilled | C81: 🔽
B83: Storage Location 1
B84: Time in Storage | D84: days
B85: Temperature control | C85: 🔽
B86: Electricity consumption | D86: kWh/day/tonne
B87: Natural gas consumption | D87: kWh/day/tonne
B88: Emissions per tonne | D88: tCO2e/tonne crop
B90: Storage Location 2
B91: Time in Storage | D91: days
B92: Temperature control | C92: 🔽
B93: Electricity consumption | D93: kWh/day/tonne
B94: Natural gas consumption | D94: kWh/day/tonne
B95: Emissions per tonne | D95: tCO2e/tonne crop
A97: 🔽 | B97: Advanced Processing Details (Optional)
B99: Electricity consumption | D99: kWh/tonne
B100: Natural gas consumption | D100: kWh/tonne
B101: Amount of processed food re-used (not eaten) | D101: tonne
B102: Emissions per tonne | D102: tCO2e/tonne crop
A104: 🔽 | B104: Advanced Retail Details (Optional)
B106: Store type | C106: 🔽
B107: Temperature control | C107: 🔽
B108: Electricity consumption | D108: kWh/tonne
B109: Gas consumption | D109: kWh/tonne
B110: Electricity consumption | D110: kWh/m2
B111: Gas consumption | D111: kWh/m2
B112: Emissions per tonne | D112: tCO2e/tonne crop
A114: 🔽 | B114: Advanced Landfill Details (Optional)
B116: Commodity losses going to landfill or thrown away | C116: 0.57
B117: Landfill Type | C117: 🔽
B118: Climate Zone | C118: 🔽
B119: Emissions per tonne | D119: tCO2e/tonne crop
A121: 🔽 | B121: STEP 5: Results
A122: 🔽 | B122: A. Summary 🔒
C123: Production | D123: Transport | E123: Storage
B124: Avoided losses per year | C124: ='Assumptions,Outputs,Results'!D10 -> 0 | D124: ='Assumptions,Outputs,Results'!E10 ->  | E124: ='Assumptions,Outputs,Results'!F10 ->  | F124: tonnes
B125: Total GhG emissions saved per phase per year | C125: =SUM('Assumptions,Outputs,Results'!D32:D35) ->  | D125: =SUM('Assumptions,Outputs,Results'!E32:E35) ->  | E125: =SUM('Assumptions,Outputs,Results'!F32:F35) ->  | F125: tonnes CO2e
B126: Improvement | C126: =IFERROR(('Assumptions,Outputs,Results'!D14-'Assumptions,Outputs,Results'!D17)/'Assumptions,Outputs,Results'!D14,"") ->  | D126: =IFERROR(('Assumptions,Outputs,Results'!E14-'Assumptions,Outputs,Results'!E17)/'Assumptions,Outputs,Results'!E14,"") ->  | E126: =IFERROR(('Assumptions,Outputs,Results'!F14-'Assumptions,Outputs,Results'!F17)/'Assumptions,Outputs,Results'!F14,"") -> 
B127: Total financial savings (USD) | C127: =C124*$C$9 -> 0 | D127: =D124*$C$9 ->  | E127: =E124*$C$9 -> 
B128: Additional comments | C128: The results above are calculated using food loss rates reported by the user. | D128: The results above are calculated using food loss rates reported by the user. | E128: The results above are calculated using food loss rates reported by the user.
B130: Cumulative total | C130: =SUM(C124:E124) ->  | D130: tonnes
C131: ='Assumptions,Outputs,Results'!F42 ->  | D131: tonnes CO2e
C132: =IFERROR(C131/C130,"") -> 
B133: Methane | D133: tonnes CO2e/tonne
B134: Co2 | D134: tonnes CO2e/tonne
B135: GHG savings | D135: tonnes CO2e/tonne
A137: 🔽 | B137: B. Charts 🔒
B155: *Required

Sheet Additional Inputs (hidden)
B2: include summary of instructions
B4: I. Production
C6: Default values | D6: User input
B7: Commodity price (USD/tonne) | D7: 3
E8: Section not applicable for animal proteins
B9: Synthetic nitrogen fertiliser applied per year (kg)
B10: Unit of measurement for nitrogen (per hectare, per tonne) | D10: kg of Nitrogen per tonne of production (kg N/tonne)
B11: Yield per year (tonnes/ha)
G12: Final value
B13: Commodity Emission Factor (tCO2e/tonne crop)
B19: II. Transport
B22: a) If available, provide an appropriate emission factor, otherwise leave this section blank and fill in section b) | C22: Default values | D22: User input (1st phase) | E22: User input (2nd phase)
B23: Emissions factor type | D23: Fuel efficiency (km/litre)
B24: Emissions factor value | G24: << split CO2e factor by GHG based on BEIS data
D25: change to liters per 100km, move fuel efficiency to section b) flag it as nice to have
B26: b) If emissions factors are not available, fill in one or more information below to use a standardised emission factor
G27: << split default value between the two phases
G28: << clear inputs when transport mode changes
A48: <<
A53: <<
B55: III. Storage
C57: Default values | D57: User input (1st phase) | E57: User input (2nd phase)
B58: Length of time (days) | C58: 1 | D58: 10 | E58: 10
B59: Temperature control | C59: Ambient | D59: Ambient | E59: Chilled
B61: Electricity consumption (kWh/day/tonne) | D61: 5 | E61: 10
B62: Natural gas consumption (kWh/day/tonne) | D62: 2 | E62: 3
G63: Final value
B64: Emissions per tonne (tCO2e/tonne crop) | G64: =IF(AND(D64="",E64=""),C64,SUM(D64:E64)) -> 0
B67: III. Processing
C69: Default values | D69: User input
B70: Electricity consumption (kWh/tonne) | C70: 1 | D70: 10
B71: Natural gas consumption (kWh/tonne) | C71: 1 | D71: 10
B72: Amount of processed food not eaten but re-used (tonne) | C72: 0 | H72: Amount sent to AD/energy generation, compost/mulch, animal feed or bio-materials
B73: Include re-use for user input against transport and storage too? | G73: Final value
B74: Emissions per tonne (tCO2e/tonne crop) | G74: =IF(AND(D74="",E74=""),C74,SUM(D74:E74)) -> 0
B76: IV. Retail
C78: Default values | D78: User input
B79: Store type | C79: Supermarket (280 to 1400 m2) | D79: Convenience store (<280 m2)
B80: Temperature control | C80: Chilled | D80: Chilled
B82: Electricity consumption (kWh/tonne) | C82: =IF(C80="Ambient",INDEX(RetailDefaultData[Electricity consumption - Ambient (kWh/m2)2],MATCH(C79,RetailDefaultData[Store Type],0)),INDEX(RetailDefaultData[Electricity consumption - Chilled (kWh/m2)22],MATCH(C79,RetailDefaultData[Store Type],0))) -> 650
B83: Gas consumption (kWh/tonne) | C83: 0
B85: Electricity consumption (kWh/m2) | C85: =C82 -> 650 | I85: =AVERAGE(RetailDefaultData[Electricity consumption (kWh/m2)]) -> 1125 | J85: =Retail!C32/$I$85 -> 1.315555556 | K85: =Retail!D32/$I$86 -> 1.655172414
B86: Gas consumption (kWh/m2) | C86: 0 | I86: =AVERAGE(RetailDefaultData[Refrigeration (kWh/m2)]) -> 536.5 | J86: =Retail!C33/$I$85 -> 1.155555556 | K86: =Retail!D33/$I$86 -> 1.211556384
G87: Final value | J87: =Retail!C34/$I$85 -> 0.8177777778 | K87: =Retail!D34/$I$86 -> 0.6859273066
B88: Emissions per tonne (tCO2e/tonne crop) | G88: =IF(AND(D88="",E88=""),C88,SUM(D88:E88)) -> 0 | J88: =Retail!C35/$I$85 -> 0.7111111111 | K88: =Retail!D35/$I$86 -> 0.4473438956
B92: IV. Landfill
C94: Default values | D94: User input
B95: Commodity losses going to landfill or thrown away (%) | C95: 0.57 | I95: Climate Zones | J95: Landfill type
B96: Landfill type | C96: 1 | I96: Temperate, dry
B97: Climate Zone | I97: Temperate, wet | J97: Managed
G98: Final value | I98: Tropical, dry | J98: Unmanaged deep (> 5m)
B99: Emissions per tonne (tCO2e/tonne crop) | C99: =INDEX(LandfillMethaneCorrectionFactors[Landfill CH4 Correction Factor],MATCH(Country,LandfillMethaneCorrectionFactors[Country],0)) ->  | G99: =IF(AND(D99="",E99=""),C99,SUM(D99:E99)) ->  | I99: Tropical, wet | J99: Unmanaged shallow (< 5m)
J100: Uncategorised
J101: Other productive use (compost, gas collection system, etc.)

Sheet Cover page
B4: FOOD LOSS TOOLKIT
B5: v2.0
B8: Disclaimer
B9: The purpose of this Toolkit is to provide information about and a method to estimate the Green House Gas (GHG) emissions associated with food loss for certain crops and countries. The GHG estimates provided by the tool are indicative and based on simplified assumptions and calculations and should not be considered as an alternative to accurate GHG accounting or life cycle assessments. While IFC believes that the information set forth in the Toolkit is accurate and current, it is provided on a strictly “as-is” basis, without assurance or representation of any kind. IFC does not guarantee the accuracy, reliability or completeness of the content included in the Proposal, or for any conclusions or judgments described herein or that may be obtained from use of the Toolkit, and accepts no responsibility or liability for any omissions or errors (including, without limitation, typographical errors and technical errors) in the content whatsoever. Nor shall IFC have any liability, express or implied, for any asserted reliance by any individual or entity on the content of the Toolkit in making any decisions with respect to its internal mechanisms, strategies or investment decisions. No person may rely on the content of the Toolkit as advice on compliance with any obligations that it may have under contract or otherwise, including with IFC. The contents of the Toolkit and its use are intended solely for general informational purposes and are not intended to constitute legal, securities, or investment advice, an opinion regarding the appropriateness of any investment, or a solicitation of any type. You should rely on your own legal, accounting and investment advisors for such advice and any investment made shall be regarded as on your own accord. References to IFC used in this disclaimer shall include IFC’s contractors, consultants and subcontractors who have been involved with the creation and publication of the Toolkit.
B10: © International Finance Corporation 2023. All rights reserved.

Sheet Interface
B2: STEP 1: GENERAL INFORMATION | E2: << Reset Data button will delete all user inputs in this worksheet
B4: Region*
B5: Country*
B6: Commodity*
B7: Commodity group 🔒 | C7: =IFERROR(INDEX(IFC_Commodity_CommodityGroup[IFC Commodity group],MATCH(Commodity,IFC_Commodity_CommodityGroup[IFC Commodity],0)),"") -> 
B8: Production Type (animal protein only)*
B10: Commodity Price (optional) | D10: USD/t
B12: STEP 2: SUPPLY CHAIN IMPROVEMENTS Select the stages of supply chain where improvements have been implemented.
C13: TRUE | D13: TRUE | E13: TRUE | F13: TRUE | G13: TRUE | H13: TRUE | I13: TRUE
C14: Production (post-harvest) | D14: Transport (pre-processing) | E14: Storage (pre-processing) | F14: Processing | G14: Transport (post-processing) | H14: Storage (post-processing) | I14: Retail
B15: Description of supply chain activities and improvements. | C15: =IF(CommodityGroup="Animal Protein", IF(Commodity="Milk (cattle)", MilkFarmLossDescription, animalProteinFarmLossDescription),cropFarmLossDescription) -> Harvest and post-harvest losses (e.g. food preparation peeling, cutting, washing), plastic crates instead of bags for crops, temporary on-farm storage | D15: =IF(CommodityGroup="Animal Protein",IF(Commodity="Milk (cattle)",MilkTransportLossDescription,animalProteinTransportLossDescription),cropTransportLossDescription) -> Losses during transport from farm to storage or sale | E15: =IF(CommodityGroup="Animal Protein", IF(Commodity="Milk (cattle)", MilkStorageLossDescription, animalProteinStorageLossDescription),cropStorageLossDescription) -> Losses occuring in a dedicated storage facility (e.g. silos, warehouses, cooling facilities, etc.). May be on farm or off-site. | F15: =ProcessingLossDescription -> Losses during processing | G15: =Transport2LossDescription -> Losses during transport from processing site | H15: =Storage2LossDescription -> Losses occuring in a dedicated storage facility after being processed | I15: =RetailLossDescription -> Losses occuring at retail sites
B17: STEP 3: IMPROVEMENT DETAILS Describe the projects implemented at each of the revelant stages of the value chain (optional).
B19: Supply Chain Stages | C19: =C$14 -> Production (post-harvest) | D19: =D$14 -> Transport (pre-processing) | E19: Storage (pre-processing) | F19: Processing | G19: Transport (post-processing) | H19: Storage (post-processing) | I19: Retail
B20: Select main improvement (crops-only) | C20: drop-down | D20: drop-down | E20: drop-down | F20: drop-down | G20: drop-down | H20: drop-down | I20: drop-down
B21: Select main improvement (animal protein-only) | C21: drop-down | D21: drop-down | E21: drop-down | F21: drop-down | G21: drop-down | H21: drop-down | I21: drop-down
B22: Other improvements
B24: STEP 4: POST-IMPROVEMENT DETAILS Enter the amounts and loss rates associated with post improvement activities.
B26: Supply Chain Stages | C26: =C$14 -> Production (post-harvest) | D26: =D$14 -> Transport (pre-processing) | E26: Storage (pre-processing) | F26: Processing | G26: Transport (post-processing) | H26: Storage (post-processing) | I26: Retail
B27: Commodity total after the improvements*
B28: =CONCATENATE("Unit of measurement (kg, tonnes)*", IF(Commodity="Milk (cattle)",". 1 milk litre = 1 kg.", ""), IF(OR(Commodity="Meat (cattle)", Commodity="Meat (chicken)", Commodity="Meat (pig)"), " (carcass weight)*", "")) -> Unit of measurement (kg, tonnes)* | C28: Tonnes | D28: Tonnes | E28: Tonnes | F28: Tonnes | G28: Tonnes | H28: Tonnes | I28: Tonnes
B29: Is amount reported net of food loss?* | C29: Yes | D29: Yes | E29: Yes | F29: Yes | G29: Yes | H29: Yes | I29: Yes
B30: Site/phase food loss rate after the project (%)*
B31: Site/phase food loss rate before the project (%)
B32: =IF(ISNUMBER(MATCH(Commodity,NoLR[Food Loss Rate not available],0)),"^ Mandatory input (default food loss data not available for this commodity).","^ Recommended input. If data is not available, leave blank.") -> ^ Recommended input. If data is not available, leave blank.
B34: Advanced Inputs (Optional)
B35: Advanced Production (post-harvest) Enter inputs for A or B below, do not fill in both.
B37: A) Emission factor
B38: Emissions per tonne | D38: tCO2e/tonne
B39: % of CO2e coming from CH4
B40: % of CO2e coming from N2O
B42: B) Synthetic Fertilizer
B43: Nitrogen applied as synthetic fertilizer | D43: kg per year
B44: Unit of measurement for nitrogen
B45: Yield per year | D45: tonnes/hectare
B47: Advanced Transportation (pre-processing) Enter inputs for A or B below, do not fill in both.
B49: Distance travelled by the merchandise in the selected country | D49: km
B51: A) Emission factor
B52: Emissions factor type
B53: Emissions factor value
B55: B) Transportation mode
B56: Transport mode
B57: Fuel type
B58: Category
B59: Temperature control
B60: Road conditions
B62: Advanced Storage (pre-processing) Enter inputs for A, B, or C below, do not fill in all.
B64: A) Emission factor
B65: Emissions per tonne | D65: tCO2e/tonne commodity
B67: B) Temperature control
B68: Is any dedicated storage temperature controlled (chilled)?
B70: C) Storage time and energy consumption
B71: Time in Storage | D71: days
B72: Electricity consumption | D72: kWh/day/tonne
B73: Natural gas consumption | D73: kWh/day/tonne
B75: Advanced Processing Enter inputs for A or B below, do not fill in both.
B77: A) Emission factor
B78: Emissions per tonne | D78: tCO2e/tonne commodity
B80: B) Energy consumption
B81: Electricity consumption | D81: kWh/tonne
B82: Natural gas consumption | D82: kWh/tonne
B84: Advanced Transport (post-processing) Enter inputs for A or B below, do not fill in both.
B86: Distance travelled by the merchandise in the selected country | D86: km
B88: A) Emission factor
B89: Emissions factor type
B90: Emissions factor value
B92: B) Transportation mode
B93: Transport mode
B94: Fuel type
B95: Category
B96: Temperature control
B97: Road conditions
B99: Advanced Storage (post-processing) Enter inputs for A, B, or C below, do not fill in all.
B101: A) Emission factor
B102: Emissions per tonne | D102: tCO2e/tonne commodity
B104: B) Temperature control
B105: Is any dedicated storage temperature controlled (chilled)?
B107: C) Storage time and energy consumption
B108: Time in Storage | D108: days
B109: Electricity consumption | D109: kWh/day/tonne
B110: Natural gas consumption | D110: kWh/day/tonne
B112: Advanced Retail Enter inputs for A or B below, do not fill in both.
B114: A) Emission factor
B115: Emissions per tonne | D115: tCO2e/tonne commodity
B117: B) Store type
B118: Store type
B120: Advanced Landfill Enter inputs for A or B below, do not fill in both.
B122: Food losses going to landfill or thrown away along the supply chain (%)
B124: A) Emission factor
B125: Emissions per tonne of commodity going to landfill | D125: tCO2e/tonne commodity
B127: B) Landfill type and climate
B128: Landfill Type
B129: Climate Zone
B131: STEP 5: Results
B132: A. Summary 🔒
C134: =C$14 -> Production (post-harvest) | D134: =D$14 -> Transport (pre-processing) | E134: Storage (pre-processing) | F134: Processing | G134: Transport (post-processing) | H134: Storage (post-processing) | I134: Retail | J134: Cumulative
B135: Avoided losses per year | C135: =IFERROR(IF(farmLossAfter<>"",'Assumptions,Outputs,Results'!D10,0),"") -> 0 | D135: =IFERROR(IF(transportLossAfter<>"",'Assumptions,Outputs,Results'!E10,0),"") -> 0 | E135: =IFERROR(IF(storageLossAfter<>"",'Assumptions,Outputs,Results'!F10,0),"") -> 0 | F135: =IFERROR(IF(processingLossAfter<>0,'Assumptions,Outputs,Results'!G10,0),"") -> 0 | G135: =IFERROR(IF(transport2LossAfter<>"",'Assumptions,Outputs,Results'!H10,0),"") -> 0 | H135: =IFERROR(IF(storage2LossAfter<>"",'Assumptions,Outputs,Results'!I10,0),"") -> 0 | I135: =IFERROR(IF(distributionLossAfter<>"",'Assumptions,Outputs,Results'!J10,0),"") -> 0 | J135: =SUM(C135:I135) -> 0 | K135: tonnes
B136: Improvement | C136: =IFERROR(IF(farmLossAfter<>"",('Assumptions,Outputs,Results'!D14-'Assumptions,Outputs,Results'!D17)/'Assumptions,Outputs,Results'!D14,0),0) -> 0 | D136: =IFERROR(IF(transportLossAfter<>"",('Assumptions,Outputs,Results'!E14-'Assumptions,Outputs,Results'!E17)/'Assumptions,Outputs,Results'!E14,0),0) -> 0 | E136: =IFERROR(IF(storageLossAfter<>"",('Assumptions,Outputs,Results'!F14-'Assumptions,Outputs,Results'!F17)/'Assumptions,Outputs,Results'!F14,0),0) -> 0 | F136: =IFERROR(IF(processingLossAfter<>"",('Assumptions,Outputs,Results'!G14-'Assumptions,Outputs,Results'!G17)/'Assumptions,Outputs,Results'!G14,0),0) -> 0 | G136: =IFERROR(IF(transport2LossAfter<>"",('Assumptions,Outputs,Results'!H14-'Assumptions,Outputs,Results'!H17)/'Assumptions,Outputs,Results'!H14,0),0) -> 0 | H136: =IFERROR(IF(storage2LossAfter<>"",('Assumptions,Outputs,Results'!I14-'Assumptions,Outputs,Results'!I17)/'Assumptions,Outputs,Results'!I14,0),0) -> 0 | I136: =IFERROR(IF(distributionLossAfter<>"",('Assumptions,Outputs,Results'!J14-'Assumptions,Outputs,Results'!J17)/'Assumptions,Outputs,Results'!J14,0),0) -> 0 | K136: %
B138: GhG emissions saved per tonne of losses avoided | C138: =IFERROR(C139/C135,0) -> 0 | D138: =IFERROR(D139/D135,0) -> 0 | E138: 0 | F138: 0 | G138: 0 | H138: 0 | I138: 0 | J138: =SUM(C138:I138) -> 0 | K138: tCO2e/tonne
B139: Total GHG emissions saved per phase per year | C139: =IFERROR('Assumptions,Outputs,Results'!D41,"") ->  | D139: =IFERROR('Assumptions,Outputs,Results'!E41,"") ->  | E139: =IFERROR('Assumptions,Outputs,Results'!F41,"") ->  | F139: =IFERROR('Assumptions,Outputs,Results'!G41,"") ->  | G139: =IFERROR('Assumptions,Outputs,Results'!H41,"") ->  | H139: =IFERROR('Assumptions,Outputs,Results'!I41,"") ->  | I139: =IFERROR('Assumptions,Outputs,Results'!J41,"") ->  | J139: =SUM(C139:I139) -> 0 | K139: tCO2e
B140: Carbon Dioxide (CO2) Emissions saved | C140: =IFERROR(IF(farmLossAfter<>"",'Assumptions,Outputs,Results'!D43,0),"") -> 0 | D140: =IFERROR(IF(transportLossAfter<>"",'Assumptions,Outputs,Results'!E43,0),"") -> 0 | E140: =IFERROR(IF(storageLossAfter<>"",'Assumptions,Outputs,Results'!F43,0),"") -> 0 | F140: =IFERROR(IF(processingLossAfter<>0,'Assumptions,Outputs,Results'!G43,0),"") -> 0 | G140: =IFERROR(IF(transport2LossAfter<>"",'Assumptions,Outputs,Results'!H43,0),"") -> 0 | H140: =IFERROR(IF(storage2LossAfter<>"",'Assumptions,Outputs,Results'!I43,0),"") -> 0 | I140: =IFERROR(IF(distributionLossAfter<>"",'Assumptions,Outputs,Results'!J43,0),"") -> 0 | J140: =SUM(C140:I140) -> 0 | K140: tCO2e
B141: Methane (CH4) Emissions saved | C141: =IFERROR(IF(farmLossAfter<>"",'Assumptions,Outputs,Results'!D44,0),"") -> 0 | D141: =IFERROR(IF(transportLossAfter<>"",'Assumptions,Outputs,Results'!E44,0),"") -> 0 | E141: =IFERROR(IF(storageLossAfter<>"",'Assumptions,Outputs,Results'!F44,0),"") -> 0 | F141: =IFERROR(IF(processingLossAfter<>0,'Assumptions,Outputs,Results'!G44,0),"") -> 0 | G141: =IFERROR(IF(transport2LossAfter<>"",'Assumptions,Outputs,Results'!H44,0),"") -> 0 | H141: =IFERROR(IF(storage2LossAfter<>"",'Assumptions,Outputs,Results'!I44,0),"") -> 0 | I141: =IFERROR(IF(distributionLossAfter<>"",'Assumptions,Outputs,Results'!J44,0),"") -> 0 | J141: =SUM(C141:I141) -> 0 | K141: tCO2e
B142: Nitrous Oxide (N2O) Emissions saved | C142: =IFERROR(IF(farmLossAfter<>"",'Assumptions,Outputs,Results'!D45,0),"") -> 0 | D142: =IFERROR(IF(transportLossAfter<>"",'Assumptions,Outputs,Results'!E45,0),"") -> 0 | E142: =IFERROR(IF(storageLossAfter<>"",'Assumptions,Outputs,Results'!F45,0),"") -> 0 | F142: =IFERROR(IF(processingLossAfter<>0,'Assumptions,Outputs,Results'!G45,0),"") -> 0 | G142: =IFERROR(IF(transport2LossAfter<>"",'Assumptions,Outputs,Results'!H45,0),"") -> 0 | H142: =IFERROR(IF(storage2LossAfter<>"",'Assumptions,Outputs,Results'!I45,0),"") -> 0 | I142: =IFERROR(IF(distributionLossAfter<>"",'Assumptions,Outputs,Results'!J45,0),"") -> 0 | J142: =SUM(C142:I142) -> 0 | K142: tCO2e
B144: Total financial savings | C144: =IFERROR(C135*$C$10,0) -> 0 | D144: =IFERROR(D135*$C$10,0) -> 0 | E144: =IFERROR(E135*$C$10,0) -> 0 | F144: 0 | G144: 0 | H144: 0 | I144: 0 | J144: =SUM(C144:I144) -> 0 | K144: USD
B145: Equivalent land area saved (hectares, crops only) | C145: =IF(CommodityGroup<>"Animal Protein",IFERROR(C135/IF(userYield>0,userYield,INDEX(userdefinedNorYield[#All],MATCH(Country,userdefinedNorYield[[Country]:[Country]],0),8)),0),"") -> 0 | D145: =IF(CommodityGroup<>"Animal Protein",IFERROR(D135/IF(userYield>0,userYield,INDEX(userdefinedNorYield[#All],MATCH(Country,userdefinedNorYield[[Country]:[Country]],0),8)),0),"") -> 0 | E145: =IF(CommodityGroup<>"Animal Protein",IFERROR(E135/IF(userYield>0,userYield,INDEX(userdefinedNorYield[#All],MATCH(Country,userdefinedNorYield[[Country]:[Country]],0),8)),0),"") -> 0 | F145: =IF(CommodityGroup<>"Animal Protein",IFERROR(F135/IF(userYield>0,userYield,INDEX(userdefinedNorYield[#All],MATCH(Country,userdefinedNorYield[[Country]:[Country]],0),8)),0),"") -> 0 | G145: =IF(CommodityGroup<>"Animal Protein",IFERROR(G135/IF(userYield>0,userYield,INDEX(userdefinedNorYield[#All],MATCH(Country,userdefinedNorYield[[Country]:[Country]],0),8)),0),"") -> 0 | H145: =IF(CommodityGroup<>"Animal Protein",IFERROR(H135/IF(userYield>0,userYield,INDEX(userdefinedNorYield[#All],MATCH(Country,userdefinedNorYield[[Country]:[Country]],0),8)),0),"") -> 0 | I145: =IF(CommodityGroup<>"Animal Protein",IFERROR(I135/IF(userYield>0,userYield,INDEX(userdefinedNorYield[#All],MATCH(Country,userdefinedNorYield[[Country]:[Country]],0),8)),0),"") -> 0 | J145: =SUM(C145:I145) -> 0 | K145: ha
B147: Additional comments | C147: =IFERROR(IF(AND(requireBeforeLossData=TRUE, Farm_LR_before=""), "Loss rate baseline for "&Commodity&" not available. Please provide the food loss rate before the project.", IF('Assumptions,Outputs,Results'!D17<'Assumptions,Outputs,Results'!D14, IF(Farm_LR_before="","The results above are calculated using "&'Assumptions,Outputs,Results'!D$16&" as a baseline rate for food loss before the project, and might not be reflective of site-specific conditions. Please provide the actual food loss rate prior to implementing the project to improve the accuracy of this result.","The results above are calculated using food loss rates reported by the user."), "The loss rate before the project (estimated from the " & 'Assumptions,Outputs,Results'!D$16 &") is lower than the loss rate reported after the project, and it is therefore not possible to calculate emission savings. Please provide the actual food loss rate prior to implementing the project to improve the accuracy of this result.")),"Invalid data provided, please check your inputs") -> Invalid data provided, please check your inputs | D147: =IFERROR(IF(AND(requireBeforeLossData=TRUE, Transport_LR_before=""), "Loss rate baseline for "&Commodity&" not available. Please provide the food loss rate before the project.", IF('Assumptions,Outputs,Results'!E17<'Assumptions,Outputs,Results'!E14, IF(Transport_LR_before="","The results above are calculated using "&'Assumptions,Outputs,Results'!E$16&" as a baseline rate for food loss before the project, and might not be reflective of site-specific conditions. Please provide the actual food loss rate prior to implementing the project to improve the accuracy of this result.","The results above are calculated using food loss rates reported by the user."), "The loss rate before the project (estimated from the " & 'Assumptions,Outputs,Results'!E$16 &") is lower than the loss rate reported after the project, and it is therefore not possible to calculate emission savings. Please provide the actual food loss rate prior to implementing the project to improve the accuracy of this result.")), "Invalid data provided, please check your inputs") -> Invalid data provided, please check your inputs | E147: =IFERROR(IF(AND(requireBeforeLossData=TRUE, Storage_LR_before=""), "Loss rate baseline for "&Commodity&" not available. Please provide the food loss rate before the project.", IF('Assumptions,Outputs,Results'!F17<'Assumptions,Outputs,Results'!F14, IF(Storage_LR_before="","The results above are calculated using "&'Assumptions,Outputs,Results'!F$16&" as a baseline rate for food loss before the project, and might not be reflective of site-specific conditions. Please provide the actual food loss rate prior to implementing the project to improve the accuracy of this result.","The results above are calculated using food loss rates reported by the user."), "The loss rate before the project (estimated from the " & 'Assumptions,Outputs,Results'!F$16 &") is lower than the loss rate reported after the project, and it is therefore not possible to calculate emission savings. Please provide the actual food loss rate prior to implementing the project to improve the accuracy of this result.")), "Invalid data provided, please check your inputs") -> Invalid data provided, please check your inputs | F147: =IFERROR(IF(AND(requireBeforeLossData=TRUE, Processing_LR_before=""), "Loss rate baseline for "&Commodity&" not available. Please provide the food loss rate before the project.", IF('Assumptions,Outputs,Results'!G17<'Assumptions,Outputs,Results'!G14, IF(Processing_LR_before="","The results above are calculated using "&'Assumptions,Outputs,Results'!G$16&" as a baseline rate for food loss before the project, and might not be reflective of site-specific conditions. Please provide the actual food loss rate prior to implementing the project to improve the accuracy of this result.","The results above are calculated using food loss rates reported by the user."), "The loss rate before the project (estimated from the " & 'Assumptions,Outputs,Results'!G$16 &") is lower than the loss rate reported after the project, and it is therefore not possible to calculate emission savings. Please provide the actual food loss rate prior to implementing the project to improve the accuracy of this result.")), "Invalid data provided, please check your inputs") -> Invalid data provided, please check your inputs | G147: =IFERROR(IF(AND(requireBeforeLossData=TRUE, Transport2_LR_before=""), "Loss rate baseline for "&Commodity&" not available. Please provide the food loss rate before the project.", IF('Assumptions,Outputs,Results'!H17<'Assumptions,Outputs,Results'!H14, IF(Transport2_LR_before="","The results above are calculated using "&'Assumptions,Outputs,Results'!H$16&" as a baseline rate for food loss before the project, and might not be reflective of site-specific conditions. Please provide the actual food loss rate prior to implementing the project to improve the accuracy of this result.","The results above are calculated using food loss rates reported by the user."), "The loss rate before the project (estimated from the " & 'Assumptions,Outputs,Results'!H$16 &") is lower than the loss rate reported after the project, and it is therefore not possible to calculate emission savings. Please provide the actual food loss rate prior to implementing the project to improve the accuracy of this result.")), "Invalid data provided, please check your inputs") -> Invalid data provided, please check your inputs | H147: =IFERROR(IF(AND(requireBeforeLossData=TRUE, Storage2_LR_before=""), "Loss rate baseline for "&Commodity&" not available. Please provide the food loss rate before the project.", IF('Assumptions,Outputs,Results'!I17<'Assumptions,Outputs,Results'!I14, IF(Storage2_LR_before="","The results above are calculated using "&'Assumptions,Outputs,Results'!I$16&" as a baseline rate for food loss before the project, and might not be reflective of site-specific conditions. Please provide the actual food loss rate prior to implementing the project to improve the accuracy of this result.","The results above are calculated using food loss rates reported by the user."), "The loss rate before the project (estimated from the " & 'Assumptions,Outputs,Results'!I$16 &") is lower than the loss rate reported after the project, and it is therefore not possible to calculate emission savings. Please provide the actual food loss rate prior to implementing the project to improve the accuracy of this result.")), "Invalid data provided, please check your inputs") -> Invalid data provided, please check your inputs | I147: =IFERROR(IF(AND(requireBeforeLossData=TRUE, Distribution_LR_before=""), "Loss rate baseline for "&Commodity&" not available. Please provide the food loss rate before the project.", IF('Assumptions,Outputs,Results'!J17<'Assumptions,Outputs,Results'!J14, IF(Distribution_LR_before="","The results above are calculated using "&'Assumptions,Outputs,Results'!J$16&" as a baseline rate for food loss before the project, and might not be reflective of site-specific conditions. Please provide the actual food loss rate prior to implementing the project to improve the accuracy of this result.","The results above are calculated using food loss rates reported by the user."), "The loss rate before the project (estimated from the " & 'Assumptions,Outputs,Results'!J$16 &") is lower than the loss rate reported after the project, and it is therefore not possible to calculate emission savings. Please provide the actual food loss rate prior to implementing the project to improve the accuracy of this result.")), "Invalid data provided, please check your inputs") -> Invalid data provided, please check your inputs
A150: Results
B152: A. Summary
D154: Production | E154: Transport | F154: Storage | H154: Cumulative total
C155: Avoided losses per year (tonnes) | G155: delete? >> | H155: =SUM(C135:E135) -> 0 | I155: tonnes
B156: WARNING: Please select production type for the tool to work | C156: Total GhG emissions saved per phase per year (tonnes CO2e) | G156: delete? >> | H156: ='Assumptions,Outputs,Results'!F42 ->  | I156: tonnes CO2e
C157: Improvement (%)
C158: Total financial savings (USD) | H158: GHG savings
G159: delete? >> | H159: =IFERROR(H156/H155,"") ->  | I159: tonnes CO2e/tonne
C160: Additional comments
B163: B. Charts 🔒

Sheet Default data (hidden)
B1: Default data
B4: Advanced Post-harvest Production Details (Optional)
B6: Option a) Emission factor
B7: Emissions per tonne | C7: =IF(CommodityGroup="Animal Protein",'Assumptions,Outputs,Results'!H72,'Assumptions,Outputs,Results'!H64) -> 
B8: % of CO2e coming from CH4 | C8: =IF(CommodityGroup="Animal Protein",'Assumptions,Outputs,Results'!I72,'Assumptions,Outputs,Results'!I64)/100 -> 
B9: % of CO2e coming from N2O | C9: =IF(CommodityGroup="Animal Protein",'Assumptions,Outputs,Results'!J72,'Assumptions,Outputs,Results'!J64)/100 -> 
B11: Option b) Synthetic Fertilizer information
B12: Nitrogen Applied to Synthetic Fertilizer | C12: =IF(CommodityGroup="Animal Protein","N/A for animal protein",INDEX(userdefinedNorYield[Virtual kg N per tonne production (N2O-N -> N)],MATCH(Country,userdefinedNorYield[Country],0))) -> 
B13: Unit of Measurement for Nitrogen | C13: kg of Nitrogen per tonne of production (kg N/tonne)
B14: Yield per Year | C14: =IF(CommodityGroup="Animal Protein","N/A for animal protein",INDEX(userdefinedNorYield[Virtual yield t/ha],MATCH(Country,userdefinedNorYield[Country],0))) -> 
B17: Advanced Transportation (pre-processing) Details (Optional)
B19: Distance travelled by the merchandise in the selected country. (If the dedicated storage site is the same as production put 0. Leave blank to apply the national average.) | C19: =TransportCalc!C6/2 -> 
B21: Option a) Emission factor
B22: Emissions factor type | C22: Trip emissions (kg CO2e/tonne.km)
B23: Emissions factor value | C23: =TransportCalc!D42 -> 
B25: Option b) Information on transportation mode
B26: Transport mode | C26: =TransportCalc!D7 -> Truck
B27: Category | C27: =TransportCalc!D8 -> Average (all trucks)
B28: Fuel type | C28: =TransportCalc!D9 -> Diesel
B29: Temperature control | C29: =TransportCalc!D10 -> Ambient
B30: Road conditions | C30: =IF(OR(transportModeSelectionDefault="Rail",transportModeSelectionDefault="Ship",transportModeSelectionDefault="Non-motorized"),"Not applicable",INDEX(RoadConditionTable[Road conditions],MATCH(Country,RoadConditionTable[Country],0))) -> 
B33: Advanced Storage (pre-processing) Details (Optional)
B35: Option a) Emission factor
B36: Emissions per tonne | C36: =storageUserEF -> 0
B38: Option b) Information on temperature control
B39: Is any dedicated storage ambient or temperature controlled, heated and/or chilled | C39: =IFERROR(IF(INDEX(Table22[Chilled?],MATCH(Commodity,Table22[Crop],0))="y","Yes","No"),"No") -> No
B41: Option c) Information on time in storage and energy consumption
B42: Time in Storage | C42: =Storage!C5 -> 0
B43: Electricity consumption | C43: =Storage!D16 -> 0.001866998578
B44: Natural gas consumption | C44: =Storage!E16 -> 0.002402745995
B47: Advanced Processing Details (Optional)
B49: Option a) Emission factor
B50: Emissions per tonne | C50: =IFERROR(INDEX(CommodityGroupEnergyPerKg[TOTAL EF kgCO2e/kg],MATCH(CommodityGroup,CommodityGroupEnergyPerKg[Unique Groups],0)),"") -> 
B52: Option b) Information on energy consumption
B53: Electricity consumption | C53: =INDEX(CommodityGroupEnergyPerKg[],MATCH(CommodityGroup,CommodityGroupEnergyPerKg[Unique Groups],0),2) -> 
B54: Natural gas consumption | C54: =INDEX(CommodityGroupEnergyPerKg[],MATCH(CommodityGroup,CommodityGroupEnergyPerKg[Unique Groups],0),4) -> 
B56: Advanced Transport (post-processing) Details (Optional)
B58: Distance travelled by the merchandise in the selected country (leave blank to apply the national average.) | C58: =TransportCalc!C6/2 -> 
B60: Please fill in data for one of the following options:
B62: Option a) Emission factor
B63: Emissions factor type | C63: Trip emissions (kg CO2e/tonne.km)
B64: Emissions factor value (kgCO2e/tonne.km) | C64: =TransportCalc!C18 -> 
B66: Option b) Information on transportation mode
B67: Transport mode | C67: =TransportCalc!E7 -> Truck
B68: Category | C68: =TransportCalc!E8 -> Average (all trucks)
B69: Fuel type | C69: =TransportCalc!E9 -> Diesel
B70: Temperature control | C70: =TransportCalc!E10 -> Ambient
B71: Road conditions | C71: =INDEX(RoadConditionTable[Road conditions],MATCH(Country,RoadConditionTable[Country],0)) -> 
B74: Advanced Storage (post-processing) Details (Optional)
B76: Please fill in data for one of the following options:
B78: Option a) Emission factor
B79: Emissions per tonne | C79: =storage2UserEF -> 0
B81: Option b) Information on temperature control
B82: Is any dedicated storage ambient or temperature controlled, heated and/or chilled | C82: =IFERROR(IF(INDEX(Table22[Chilled?],MATCH(Commodity,Table22[Crop],0))="y","Yes","No"),"No") -> No
B84: Option c) Information on time in storage and energy consumption
B85: Time in Storage | C85: ='Default data'!C42 -> 0
B86: Electricity consumption | C86: =Storage!D6 -> 0.001866998578
B87: Natural gas consumption | C87: =Storage!D8 -> 0.002402745995
B89: Advanced Retail Details (Optional)
B91: Please fill in data for one of the following options:
B93: Option a) Emission factor
B94: Emissions per tonne | C94: =IFERROR(INDEX(StoreEF[],MATCH(CONCATENATE(Country,CommodityGroup),StoreEF[CONCAT],0),7),"") -> 
B96: Option b) Information on store type
B97: Store type | C97: =Retail!B34 -> Superstore (1400 to 5000 m2)
B99: Advanced Landfill Details (Optional)
B101: Food losses going to landfill or thrown away along the supply chain (%) | C101: ='Landfill Calcs'!T8 -> 
B103: Please fill in data for one of the following options:
B105: Option a) Emission factor
B106: Emissions per tonne of commodity going to landfill | C106: =landfillEmissionsPerTonne -> 
B108: Option b) Information on landfill type and climate
B109: Landfill Type
B110: Climate Zone | C110: ='Landfill Calcs'!T5 -> 

Sheet Assumptions,Outputs,Results (hidden)
B1: Intermediate Results
D3: Farm | E3: Transport | F3: Storage
B4: I. Food loss (tonnage) | D4: Production | E4: Transport | F4: Storage | G4: Processing | H4: Transport | I4: Storage | J4: Retail
C5: Equivalent gross amount before the project per year (tonnes) | D5: =D$8/(1-'Assumptions,Outputs,Results'!D$14) -> 0 | E5: =E$8/(1-E$14) ->  | F5: =F$8/(1-F$14) ->  | G5: =G$8/(1-'Assumptions,Outputs,Results'!G$14) -> 0 | H5: =H$8/(1-H$14) ->  | I5: =I$8/(1-I$14) ->  | J5: =J$8/(1-'Assumptions,Outputs,Results'!J$14) -> 0
C6: Equivalent waste before project per year (tonnes) | D6: =D$5*'Assumptions,Outputs,Results'!D$14 -> 0 | E6: =E$5*E$14 ->  | F6: =F$5*'Assumptions,Outputs,Results'!F$14 ->  | G6: =G$5*'Assumptions,Outputs,Results'!G$14 -> 0 | H6: =H$5*H$14 ->  | I6: =I$5*I$14 ->  | J6: =J$5*'Assumptions,Outputs,Results'!J$14 -> 0
C7: Amount gross of food losses per year (tonnes) - after the project | D7: =IF(Interface!C$28="Tonnes", IF(Interface!C$29="Yes", Interface!C$27/(1-Interface!C$30),Interface!C$27), IF(Interface!C$29="Yes", (Interface!C$27/1000)/(1-Interface!C$30),Interface!C$27/1000)) -> 0 | E7: =IF(Interface!D$28="Tonnes", IF(Interface!D$29="Yes",Interface!D$27/(1-Interface!D$30),Interface!D$27), IF(Interface!D$29="Yes",(Interface!D$27/1000)/(1-Interface!D$30),Interface!D$27/1000)) -> 0 | F7: =IF(Interface!E$28="Tonnes", IF(Interface!E$29="Yes",Interface!E$27/(1-Interface!E$30),Interface!E$27), IF(Interface!E$29="Yes",(Interface!E$27/1000)/(1-Interface!E$30),Interface!E$27/1000)) -> 0 | G7: =IF(processingUnitsAfter="Tonnes", IF(processingNetAfter="Yes",processingAmountAfter/(1-processingLossAfter),processingAmountAfter), IF(processingNetAfter="Yes",(processingAmountAfter/1000)/(1-processingLossAfter),processingAmountAfter/1000)) -> 0 | H7: =IF(Interface!G$28="Tonnes", IF(Interface!G$29="Yes",Interface!G$27/(1-Interface!G$30),Interface!G$27), IF(Interface!G$29="Yes",(Interface!G$27/1000)/(1-Interface!G$30),Interface!G$27/1000)) -> 0 | I7: =IF(Interface!H$28="Tonnes", IF(Interface!H$29="Yes",Interface!H$27/(1-Interface!H$30),Interface!H$27), IF(Interface!H$29="Yes",(Interface!H$27/1000)/(1-Interface!H$30),Interface!H$27/1000)) -> 0 | J7: =IF(distributionUnitsAfter="Tonnes", IF(distributionNetAfter="Yes",distributionAmountAfter/(1-distributionLossAfter),distributionAmountAfter), IF(distributionNetAfter="Yes",(distributionAmountAfter/1000)/(1-distributionLossAfter),distributionAmountAfter/1000)) -> 0
C8: Amount net of food losses per year (tonnes) - after the project | D8: =IF(Interface!C$28="Tonnes", IF(Interface!C$29="No",Interface!C$27*(1-Interface!C$30),Interface!C$27), IF(Interface!C$29="No",(Interface!C$27/1000)*(1-Interface!C$30),Interface!C$27/1000)) -> 0 | E8: =IF(Interface!D$28="Tonnes", IF(Interface!D$29="No",Interface!D$27*(1-Interface!D$30),Interface!D$27), IF(Interface!D$29="No", (Interface!D$27/1000)*(1-Interface!D$30), Interface!D$27/1000)) -> 0 | F8: =IF(Interface!E$28="Tonnes", IF(Interface!E$29="No",Interface!E$27*(1-Interface!E$30),Interface!E$27), IF(Interface!E$29="No",(Interface!E$27/1000)*(1-Interface!E$30), Interface!E$27/1000)) -> 0 | G8: =IF(processingUnitsAfter="Tonnes", IF(processingNetAfter="No",processingAmountAfter*(1-processingLossAfter),processingAmountAfter), IF(processingNetAfter="No",(processingAmountAfter/1000)*(1-processingLossAfter),processingAmountAfter/1000)) -> 0 | H8: =IF(Interface!G$28="Tonnes", IF(Interface!G$29="No",Interface!G$27*(1-Interface!G$30),Interface!G$27), IF(Interface!G$29="No", (Interface!G$27/1000)*(1-Interface!G$30), Interface!G$27/1000)) -> 0 | I8: =IF(Interface!H$28="Tonnes", IF(Interface!H$29="No",Interface!H$27*(1-Interface!H$30),Interface!H$27), IF(Interface!H$29="No", (Interface!H$27/1000)*(1-Interface!H$30), Interface!H$27/1000)) -> 0 | J8: =IF(distributionUnitsAfter="Tonnes", IF(distributionNetAfter="No",distributionAmountAfter*(1-distributionLossAfter),distributionAmountAfter), IF(distributionNetAfter="No",(distributionAmountAfter/1000)*(1-distributionLossAfter),distributionAmountAfter/1000)) -> 0
C9: Waste after project per year (tonnes) | D9: =D$7-D$8 -> 0 | E9: 0 | F9: 0 | G9: 0 | H9: 0 | I9: 0 | J9: 0
C10: Avoided losses per year (tonnes) | D10: =MAX(D6-D9, 0) -> 0 | G10: 0 | J10: 0
B13: II. Food loss (rates) | D13: Production | E13: Transport | F13: Storage | G13: Processing | H13: Transport | I13: Storage | J13: Retail
C14: Commodity loss rate before the project (%) | D14: =IF(productionSelector,IF(Farm_LR_before<>"",Farm_LR_before, IF(D20<>"",D20, IF(D21<>"",D21, MIN(D22:D25) ))),0) -> 0 | E14: =IF(transportSelector,IF(Transport_LR_before<>"", Transport_LR_before, TransportCalc!$D$55* IF(E20<>"",E20, IF(E21<>"",E21, MIN(E22:E25) ))),0) ->  | F14: =IF(storageSelector,IF(Storage_LR_before<>"",Storage_LR_before, Storage!$I$12* IF(F20<>"",F20, IF(F21<>"",F21, MIN(F22:F25) ))),0) ->  | G14: =IF(processingSelector,IF(Processing_LR_before<>"",Processing_LR_before, IF(G20<>"",G20, IF(G21<>"",G21, MIN(G22:G25) ))),0) -> 0 | H14: =IF(transport2Selector,IF(Transport2_LR_before<>"",Transport2_LR_before, TransportCalc!$E$55* IF(H20<>"",H20, IF(H21<>"",H21, IF(H22<>"",H22, IF(H23<>"",H23, IF(H24<>"",H24, IF(H25<>"",H25, ))))))),0) ->  | I14: =IF(storage2Selector,IF(Storage2_LR_before<>"",Storage2_LR_before, Storage!$J$12* IF(I20<>"",I20, IF(I21<>"",I21, MIN(I22:I25)))),0) ->  | J14: =IF(distributionSelector,IF(Distribution_LR_before<>"",Distribution_LR_before, IF(J20<>"",J20, IF(J21<>"",J21, MIN(J22:J25) ))),0) -> 0
C16: Data source | D16: =IF(Farm_LR_before<>"","User input value", IF(D20<>"",$C20, IF(D21<>"",$C21, INDEX($C$22:$C$25,MATCH(MIN(D22:D25),D22:D25,0))))) ->  | E16: =IF(Transport_LR_before<>"","User input value", IF(E20<>"",$C20, IF(E21<>"",$C21, INDEX($C$22:$C$25,MATCH(MIN(E22:E25),E22:E25,0))))) ->  | F16: =IF(Storage_LR_before<>"", "User input value", IF(F20<>"",$C20, IF(F21<>"",$C21, INDEX($C$22:$C$25,MATCH(MIN(F22:F25),F22:F25,0))))) ->  | G16: =IF(Processing_LR_before<>"", "User input value", IF(G20<>"",$C20, IF(G21<>"",$C21, INDEX($C$22:$C$25,MATCH(MIN(G22:G25),G22:G25,0))))) ->  | H16: =IF(transport2Selector,IF(Transport2_LR_before<>"", "User input value", IF(H20<>"",$C20, IF(H21<>"",$C21, INDEX($C$22:$C$25,MATCH(MIN(H22:H25),H22:H25,0)))))) ->  | I16: =IF(transport2Selector,IF(Transport2_LR_before<>"","User input value", IF(I20<>"",$C20, IF(I21<>"",$C21, INDEX($C$22:$C$25,MATCH(MIN(I22:I25),I22:I25,0))))),"") ->  | J16: =IF(Distribution_LR_before<>"","User input value", IF(J20<>"",$C20, IF(J21<>"",$C21, INDEX($C$22:$C$25,MATCH(MIN(J22:J25),J22:J25,0))))) -> 
C17: Commodity loss rate after the project (%) | D17: =IF(productionSelector,farmLossAfter,0) -> 0 | E17: =IF(transportSelector,transportLossAfter,0) -> 0 | F17: =IF(storageSelector,storageLossAfter,"") -> 0 | G17: =IF(processingSelector,processingLossAfter,"") -> 0 | H17: =IF(transport2Selector,transport2LossAfter,"") -> 0 | I17: =IF(storage2Selector,storage2LossAfter,"") -> 0 | J17: =IF(distributionSelector,distributionLossAfter,"") -> 0
C19: National / regional estimates (FAO) | D19: Production | E19: Transport | F19: Storage | G19: Processing | H19: Transport | I19: Storage | J19: Retail
C20: =IFERROR("IFC custom food loss rate ("& INDEX(LossRateUserDatabase[Country/Region name], IFERROR(MATCH(Country&Commodity&D$4, LossRateUserDatabase[Concat (do not edit)], 0), IFERROR(MATCH(Country&Commodity&E$4, LossRateUserDatabase[Concat (do not edit)], 0), IFERROR(MATCH(Country&Commodity&F$4, LossRateUserDatabase[Concat (do not edit)], 0),IFERROR(MATCH(Region&Commodity&D$4, LossRateUserDatabase[Concat (do not edit)], 0),IFERROR(MATCH(Region&Commodity&E$4, LossRateUserDatabase[Concat (do not edit)], 0),IFERROR(MATCH(Region&Commodity&F$4, LossRateUserDatabase[Concat (do not edit)], 0),""))))))) & "/" & Commodity &")", "IFC custom food loss rate ("&Country&"/"&Commodity&")") -> IFC custom food loss rate (/) | D20: =IFERROR( IFERROR( INDEX(LossRateUserDatabase[Loss rate], MATCH(Country&Commodity&D$4, LossRateUserDatabase[Concat (do not edit)], 0)), INDEX(LossRateUserDatabase[Loss rate], MATCH(Region&Commodity&D$4, LossRateUserDatabase[Concat (do not edit)], 0))), "") ->  | E20: =IFERROR( IFERROR( INDEX(LossRateUserDatabase[Loss rate], MATCH(Country&Commodity&E$4, LossRateUserDatabase[Concat (do not edit)], 0)), INDEX(LossRateUserDatabase[Loss rate], MATCH(Region&Commodity&E$4, LossRateUserDatabase[Concat (do not edit)], 0))), "") ->  | F20: =IFERROR( IFERROR( INDEX(LossRateUserDatabase[Loss rate], MATCH(Country&Commodity&F$4, LossRateUserDatabase[Concat (do not edit)], 0)), INDEX(LossRateUserDatabase[Loss rate], MATCH(Region&Commodity&F$4, LossRateUserDatabase[Concat (do not edit)], 0))), "") ->  | G20: =IFERROR( IFERROR( INDEX(LossRateUserDatabase[Loss rate], MATCH(Country&Commodity&G$4, LossRateUserDatabase[Concat (do not edit)], 0)), INDEX(LossRateUserDatabase[Loss rate], MATCH(Region&Commodity&G$4, LossRateUserDatabase[Concat (do not edit)], 0))), "") ->  | H20: =IFERROR( IFERROR( INDEX(LossRateUserDatabase[Loss rate], MATCH(Country&Commodity&H$4, LossRateUserDatabase[Concat (do not edit)], 0)), INDEX(LossRateUserDatabase[Loss rate], MATCH(Region&Commodity&H$4, LossRateUserDatabase[Concat (do not edit)], 0))), "") ->  | I20: =IFERROR( IFERROR( INDEX(LossRateUserDatabase[Loss rate], MATCH(Country&Commodity&I$4, LossRateUserDatabase[Concat (do not edit)], 0)), INDEX(LossRateUserDatabase[Loss rate], MATCH(Region&Commodity&I$4, LossRateUserDatabase[Concat (do not edit)], 0))), "") ->  | J20: =IFERROR( IFERROR( INDEX(LossRateUserDatabase[Loss rate], MATCH(Country&Commodity&J$4, LossRateUserDatabase[Concat (do not edit)], 0)), INDEX(LossRateUserDatabase[Loss rate], MATCH(Region&Commodity&J$4, LossRateUserDatabase[Concat (do not edit)], 0))), "") ->  | K20: >>
C21: ="FAO Food Loss database ("& Country & "/" & Commodity &")" -> FAO Food Loss database (/) | D21: =IFERROR((GETPIVOTDATA("loss_percentage",Nat_Avg!$B$9,"Country",Country,"IFC Commodity",Commodity,"IFC Supply Chain Stage",D$4))/100,"") ->  | E21: =IFERROR((GETPIVOTDATA("loss_percentage",Nat_Avg!$B$9,"Country",Country,"IFC Commodity",Commodity,"IFC Supply Chain Stage",E$4))/100,"") ->  | F21: =IFERROR((GETPIVOTDATA("loss_percentage",Nat_Avg!$B$9,"Country",Country,"IFC Commodity",Commodity,"IFC Supply Chain Stage",F$4))/100,"") ->  | G21: =IFERROR((GETPIVOTDATA("loss_percentage",Nat_Avg!$B$9,"Country",Country,"IFC Commodity",Commodity,"IFC Supply Chain Stage",G$4))/100,"") ->  | H21: =IFERROR((GETPIVOTDATA("loss_percentage",Nat_Avg!$B$9,"Country",Country,"IFC Commodity",Commodity,"IFC Supply Chain Stage",H$4))/100,"") ->  | I21: =IFERROR((GETPIVOTDATA("loss_percentage",Nat_Avg!$B$9,"Country",Country,"IFC Commodity",Commodity,"IFC Supply Chain Stage",I$4))/100,"") ->  | J21: =IFERROR((GETPIVOTDATA("loss_percentage",Nat_Avg!$B$9,"Country",Country,"IFC Commodity",Commodity,"IFC Supply Chain Stage",J$4))/100,"") -> 
C22: ="FAO Food Loss database ("&Country&"/"&CommodityGroup&")" -> FAO Food Loss database (/) | D22: =IFERROR((GETPIVOTDATA("loss_percentage",Nat_Avg!$G$9,"Country",Country,"IFC Category",CommodityGroup,"IFC Supply Chain Stage",D$4))/100,"") ->  | E22: =IFERROR((GETPIVOTDATA("loss_percentage",Nat_Avg!$G$9,"Country",Country,"IFC Category",CommodityGroup,"IFC Supply Chain Stage",E$4))/100,"") ->  | F22: =IFERROR((GETPIVOTDATA("loss_percentage",Nat_Avg!$G$9,"Country",Country,"IFC Category",CommodityGroup,"IFC Supply Chain Stage",F$4))/100,"") ->  | G22: =IFERROR((GETPIVOTDATA("loss_percentage",Nat_Avg!$G$9,"Country",Country,"IFC Category",CommodityGroup,"IFC Supply Chain Stage",G$4))/100,"") ->  | H22: =IFERROR((GETPIVOTDATA("loss_percentage",Nat_Avg!$G$9,"Country",Country,"IFC Category",CommodityGroup,"IFC Supply Chain Stage",H$4))/100,"") ->  | I22: =IFERROR((GETPIVOTDATA("loss_percentage",Nat_Avg!$G$9,"Country",Country,"IFC Category",CommodityGroup,"IFC Supply Chain Stage",I$4))/100,"") ->  | J22: =IFERROR((GETPIVOTDATA("loss_percentage",Nat_Avg!$G$9,"Country",Country,"IFC Category",CommodityGroup,"IFC Supply Chain Stage",J$4))/100,"") -> 
C23: ="FAO Food Loss database ("&impliedUNsubregion&"/"&Commodity&")" ->  | D23: =IFERROR((GETPIVOTDATA("loss_percentage",Nat_Avg!$L$9,"UN sub-region",impliedUNsubregion,"IFC Commodity",Commodity,"IFC Supply Chain Stage",D$4))/100,"") ->  | E23: =IFERROR((GETPIVOTDATA("loss_percentage",Nat_Avg!$L$9,"UN sub-region",impliedUNsubregion,"IFC Commodity",Commodity,"IFC Supply Chain Stage",E$4))/100,"") ->  | F23: =IFERROR((GETPIVOTDATA("loss_percentage",Nat_Avg!$L$9,"UN sub-region",impliedUNsubregion,"IFC Commodity",Commodity,"IFC Supply Chain Stage",F$4))/100,"") ->  | G23: =IFERROR((GETPIVOTDATA("loss_percentage",Nat_Avg!$L$9,"UN sub-region",impliedUNsubregion,"IFC Commodity",Commodity,"IFC Supply Chain Stage",G$4))/100,"") ->  | H23: =IFERROR((GETPIVOTDATA("loss_percentage",Nat_Avg!$L$9,"UN sub-region",impliedUNsubregion,"IFC Commodity",Commodity,"IFC Supply Chain Stage",H$4))/100,"") ->  | I23: =IFERROR((GETPIVOTDATA("loss_percentage",Nat_Avg!$L$9,"UN sub-region",impliedUNsubregion,"IFC Commodity",Commodity,"IFC Supply Chain Stage",I$4))/100,"") ->  | J23: =IFERROR((GETPIVOTDATA("loss_percentage",Nat_Avg!$L$9,"UN sub-region",impliedUNsubregion,"IFC Commodity",Commodity,"IFC Supply Chain Stage",J$4))/100,"") -> 
C24: ="FAO Food Loss database ("&impliedUNsubregion&"/"&impliedFAOcommgroup&")" ->  | D24: =IFERROR((GETPIVOTDATA("loss_percentage",Nat_Avg!$Q$9,"UN sub-region",impliedUNsubregion,"IFC Category",CommodityGroup,"IFC Supply Chain Stage",D$4))/100,"") ->  | E24: =IFERROR((GETPIVOTDATA("loss_percentage",Nat_Avg!$Q$9,"UN sub-region",impliedUNsubregion,"IFC Category",CommodityGroup,"IFC Supply Chain Stage",E$4))/100,"") ->  | F24: =IFERROR((GETPIVOTDATA("loss_percentage",Nat_Avg!$Q$9,"UN sub-region",impliedUNsubregion,"IFC Category",CommodityGroup,"IFC Supply Chain Stage",F$4))/100,"") ->  | G24: =IFERROR((GETPIVOTDATA("loss_percentage",Nat_Avg!$Q$9,"UN sub-region",impliedUNsubregion,"IFC Category",CommodityGroup,"IFC Supply Chain Stage",G$4))/100,"") ->  | H24: =IFERROR((GETPIVOTDATA("loss_percentage",Nat_Avg!$Q$9,"UN sub-region",impliedUNsubregion,"IFC Category",CommodityGroup,"IFC Supply Chain Stage",H$4))/100,"") ->  | I24: =IFERROR((GETPIVOTDATA("loss_percentage",Nat_Avg!$Q$9,"UN sub-region",impliedUNsubregion,"IFC Category",CommodityGroup,"IFC Supply Chain Stage",I$4))/100,"") ->  | J24: =IFERROR((GETPIVOTDATA("loss_percentage",Nat_Avg!$Q$9,"UN sub-region",impliedUNsubregion,"IFC Category",CommodityGroup,"IFC Supply Chain Stage",J$4))/100,"") -> 
C25: ="FAO estimate ("& impliedFAOregion & "/" & impliedFAOcommgroup & ")" ->  | D25: =IFERROR(GETPIVOTDATA("Waste (%)",Nat_Avg!$V$9,"FAO Wider Region",impliedFAOregion,"FAO Commodity group",impliedFAOcommgroup,"IFC Supply Chain stage",D$4),"") ->  | E25: =IFERROR(GETPIVOTDATA("Waste (%)",Nat_Avg!$V$9,"FAO Wider Region",impliedFAOregion,"FAO Commodity group",impliedFAOcommgroup,"IFC Supply Chain stage",E$4),"") ->  | F25: =IFERROR(GETPIVOTDATA("Waste (%)",Nat_Avg!$V$9,"FAO Wider Region",impliedFAOregion,"FAO Commodity group",impliedFAOcommgroup,"IFC Supply Chain stage",F$4),"") ->  | G25: =IFERROR(GETPIVOTDATA("Waste (%)",Nat_Avg!$V$9,"FAO Wider Region",impliedFAOregion,"FAO Commodity group",impliedFAOcommgroup,"IFC Supply Chain stage",G$4),"") ->  | H25: =IFERROR(GETPIVOTDATA("Waste (%)",Nat_Avg!$V$9,"FAO Wider Region",impliedFAOregion,"FAO Commodity group",impliedFAOcommgroup,"IFC Supply Chain stage",H$4),"") ->  | I25: =IFERROR(GETPIVOTDATA("Waste (%)",Nat_Avg!$V$9,"FAO Wider Region",impliedFAOregion,"FAO Commodity group",impliedFAOcommgroup,"IFC Supply Chain stage",I$4),"") ->  | J25: =IFERROR(GETPIVOTDATA("Waste (%)",Nat_Avg!$V$9,"FAO Wider Region",impliedFAOregion,"FAO Commodity group",impliedFAOcommgroup,"IFC Supply Chain stage",J$4),"") -> 
C27: Average national rate (%) | D27: =IF(productionSelector, IF(D21<>"",D21, MIN(D22:D25) ),0) -> 0 | E27: =IF(transportSelector, TransportCalc!$D$55* IF(E21<>"",E21, MIN(E22:E25)),0) ->  | F27: =IF(storageSelector, Storage!$I$12* IF(F21<>"",F21, MIN(F22:F25)),0) ->  | G27: =IF(processingSelector, IF(G21<>"",G21, MIN(G22:G25)),0) -> 0 | H27: =IF(transport2Selector, TransportCalc!$E$55* IF(H21<>"",H21, MIN(H22:H25)),0) ->  | I27: =IF(storage2Selector, Storage!$J$12* IF(I21<>"",I21, MIN(I22:I25)),0) ->  | J27: =IF(distributionSelector, IF(J21<>"",J21, MIN(J22:J25)),0) -> 0
C28: Data source | D28: =IF(D20<>"",$C20, IF(D21<>"",$C21, INDEX($C$22:$C$25,MATCH(MIN(D22:D25),D22:D25,0)))) -> 
B31: III. Equivalent CO2 emission savings | D31: Production | E31: Transport | F31: Storage | G31: Processing | H31: Transport | I31: Storage | J31: Retail
C32: Avoided losses equivalent CO2 emissions per year (tonnes) | D32: =IF(productionSelector,Interface!C135*$H$56,0) ->  | E32: =IF(transportSelector,Interface!D135*$H$56,0) ->  | F32: =IF(storageSelector,Interface!E135*$H$56,0) ->  | G32: =IF(processingSelector,Interface!F135*$H$56,0) ->  | H32: =IF(transport2Selector,Interface!G135*$H$56,0) ->  | I32: =IF(storage2Selector,Interface!H135*$H$56,0) ->  | J32: =IF(distributionSelector,Interface!I135*$H$56,0) -> 
C33: Landfill equivalent CO2 emissions per year (tonnes) | D33: =IF(productionSelector,Interface!C135*defaultWasteToLandfill*landfillEmissionsPerTonne,0) ->  | E33: =IF(transportSelector,Interface!D135*defaultWasteToLandfill*landfillEmissionsPerTonne,0) ->  | F33: =IF(storageSelector,Interface!E135*defaultWasteToLandfill*landfillEmissionsPerTonne,0) ->  | G33: =IF(processingSelector,Interface!F135*defaultWasteToLandfill*landfillEmissionsPerTonne,0) ->  | H33: =IF(transport2Selector,Interface!G135*defaultWasteToLandfill*landfillEmissionsPerTonne,0) ->  | I33: =IF(storage2Selector,Interface!H135*defaultWasteToLandfill*landfillEmissionsPerTonne,0) ->  | J33: =IF(distributionSelector,Interface!I135*defaultWasteToLandfill*landfillEmissionsPerTonne,0) -> 
C34: Transport equivalent CO2e emissions per year (tonnes) | D34: 0 | E34: =IF(transportSelector,Interface!D135*M37,0) ->  | F34: =IF(storageSelector,Interface!E135*M37,0) ->  | G34: =IF(processingSelector,Interface!F135*$M$37,0) ->  | H34: =IF(transport2Selector,Interface!G135*$M$37,0) ->  | I34: =IF(storage2Selector,Interface!H135*$M$37,0) ->  | J34: =IF(distributionSelector,Interface!I135*$M$37,0) -> 
C35: Storage equivalent CO2 emissions per year (tonnes) | D35: 0 | E35: 0 | F35: =IF(storageSelector,IF(storageUserEF, storageUserEF, storageDefaultEF)*Interface!E135,0) -> 0 | G35: =IF(processingSelector,Interface!F135*$M$39,0) -> 0 | H35: =IF(transport2Selector,Interface!G135*IF(storageUserEF, storageUserEF, storageDefaultEF),0) -> 0 | I35: =IF(storage2Selector,Interface!H135*IF(storageUserEF, storageUserEF, storageDefaultEF),0) -> 0 | J35: =IF(distributionSelector,Interface!I135*IF(storageUserEF, storageUserEF, storageDefaultEF),0) -> 0
C36: Processing equivalent CO2 emissions per year (tonnes) | G36: =IF(processingSelector,VLOOKUP(CommodityGroup,CommodityGroupEnergyPerKg[],6,FALSE)*Interface!F135,0) ->  | H36: =IF(transport2Selector,Interface!G135*$M$42,0) ->  | I36: =IF(storage2Selector,Interface!H135*$M$42,0) ->  | J36: =IF(distributionSelector,Interface!I135*$M$42,0) ->  | M36: Total (CO2e) | N36: CO2 (CO2e) | O36: CH4 (CO2e) | P36: N2O (CO2e)
C37: Transport (secondary) equivalent CO2 emissions per year (tonnes) | H37: =IF(transport2Selector,Interface!G135*$M$38,"") ->  | I37: =IF(storage2Selector,Interface!H135*$M$38,0) ->  | J37: =IF(distributionSelector,Interface!I135*$M$38,0) ->  | L37: Transport (phase 1) equivalent CO2e emissions per tonne per year | M37: =SUM(N37:P37) ->  | N37: =TransportCalc!D43 ->  | O37: =TransportCalc!D44 ->  | P37: =TransportCalc!D45 -> 
C38: Storage (secondary) equivalent CO2 emissions per year (tonnes) | I38: =IF(storage2Selector,IF(storage2UserEF, storage2UserEF, storage2DefaultEF)*Interface!H135,0) -> 0 | J38: =IF(distributionSelector,Interface!I135*$M$41,0) -> 0 | L38: Transport (phase 2) equivalent CO2e emissions per tonne per year | M38: =SUM(N38:P38) ->  | N38: =TransportCalc!E43 ->  | O38: =TransportCalc!E44 ->  | P38: =TransportCalc!E45 -> 
C39: Retail/Distribution equivalent CO2 emissions per year (tonnes) | J39: =IF(distributionSelector,M43*Interface!I135,0) ->  | L39: Storage (default) equivalent CO2e emissions per tonne per year | M39: =storageDefaultEF -> 0
C40: Upstream equivalent CO2 emissions per year (tonnes) | D40: 0 | E40: =IF(noPreProcessing,0,E32) ->  | F40: =IF(noPreProcessing,0,SUM(F32,F34)) ->  | G40: =SUM(G32,G34:G35) ->  | H40: =SUM(H32,H34:H36) ->  | I40: =SUM(I32,I34:I37) ->  | J40: =SUM(J32,J34:J38) ->  | L40: Storage (stage 1) equivalent CO2 e emissions per tonne per year | M40: =storageUserEF -> 0
C41: TOTAL stage equivalent CO2 emissions per year (tonnes) | D41: =IF(noPreProcessing,0,SUM(D32:D39)) ->  | E41: =IF(noPreProcessing,0,SUM(E32:E39)) ->  | F41: =IF(noPreProcessing,0,SUM(F32:F39)) ->  | G41: =SUM(G32:G39) ->  | H41: =SUM(H32:H39) ->  | I41: =SUM(I32:I39) ->  | J41: =SUM(J32:J39) ->  | L41: Storage (stage 2) equivalent CO2ee emissions per tonne per year | M41: =storage2UserEF -> 0
C42: Cumulative equivalent GhG emissions saved per year (tonnes CO2e) | D42: =D41 ->  | E42: =IF(noPreProcessing,0,IF(productionSelector,D42,0)) +IF(transportSelector,E41,0) ->  | F42: =IF(noPreProcessing,0,IF(productionSelector,D42,0)) +IF(transportSelector,E42-D42,0) +IF(storageSelector,F41,0) ->  | G42: =IF(productionSelector,D42,0) +IF(transportSelector,E42-D42,0) +IF(storageSelector,F42-E42,0) +IF(processingSelector,G41,0) ->  | H42: =IF(productionSelector,D42,0) +IF(transportSelector,E42-D42,0) +IF(storageSelector,F42-E42,0) +IF(storageSelector,G42-F42,0) +IF(processingSelector,H41,0) ->  | I42: =IF(productionSelector,D42,0) +IF(transportSelector,E42-D42,0) +IF(storageSelector,F42-E42,0) +IF(storageSelector,G42-F42,0) +IF(storageSelector,H42-G42,0) +IF(processingSelector,I41,0) ->  | J42: =IF(productionSelector,D42,0) +IF(transportSelector,E42-D42,0) +IF(storageSelector,F42-E42,0) +IF(processingSelector,G42-F42,0) +IF(processingSelector,H42-G42,0) +IF(processingSelector,I42-H42,0) +IF(distributionSelector,J41,0) ->  | L42: Processing equivalent CO2ee emissions per tonne per year | M42: =INDEX(CommodityGroupEnergyPerKg[],MATCH(CommodityGroup,CommodityGroupEnergyPerKg[Unique Groups],0),6) -> 
C43: Emissions from CO2 (CO2e) | D43: =D41-SUM(D44:D45) ->  | E43: =E41-SUM(E44:E45) ->  | L43: Retail equivalent CO2ee emissions per tonne per year | M43: =IF(distributionUserDefinedEF<>"",distributionUserDefinedEF,INDEX(StoreEF[],MATCH(CONCATENATE(Country,CommodityGroup),StoreEF[CONCAT],0),6)) -> 
C44: Emissions from CH4 (CO2e) | D44: =IF(noPreProcessing,0,IF(productionSelector,D$10*I56,0)+D33) ->  | E44: =IF(noPreProcessing,0,IF(transportSelector,(E$10*$I$56)+(E$10*$O$37)+E$33,0)) ->  | F44: =IF(noPreProcessing,0,IF(storageSelector,(F$10*$I$56)+(F$10*$O$37)+F$33,0)) ->  | G44: =IF(processingSelector,(G$10*$I$56)+(G$10*$O$37)+G$33,0) ->  | H44: =IF(transport2Selector,(H$10*$I$56)+(H$10*$O$37)+(H$10*$O$38)+H$33,0) ->  | I44: =IF(storage2Selector,(I$10*$I$56)+(I$10*$O$38)+(I$10*$O$37)+I$33,0) ->  | J44: =IF(distributionSelector,(J$10*$I$56)+(J$10*$O$37)+(I$10*$O$38)+J$33,0) -> 
C45: Emissions from N2O (CO2e) | D45: =IF(noPreProcessing,0,IF(productionSelector,D$10*J56,0)) ->  | E45: =IF(noPreProcessing,0,IF(transportSelector,(E$10*$J$56)+(E$10*$P$37),0)) ->  | F45: =IF(noPreProcessing,0,IF(storageSelector,(F$10*$J$56)+(F$10*$P$37),0)) ->  | G45: =IF(processingSelector,(G$10*$J$56)+(G$10*$P$37),0) ->  | H45: =IF(transport2Selector,(H$10*$J$56)+(H$10*$P$37)+(H$10*$P$38),0) ->  | I45: =IF(storage2Selector,(I$10*$J$56)+(I$10*$P$37)+(I$10*$P$38),0) ->  | J45: =IF(distributionSelector,(J$10*$J$56)+(J$10*$P$37)+(I$10*$P$38),0) ->  | L45: If meat or flour, don't report pre-processing | M45: =IF(OR(AND(CommodityGroup="Animal Protein",Commodity<>"Milk (cattle)",Commodity<>"Eggs"),Commodity="Flour"),TRUE,FALSE) -> FALSE
C47: Additional comments | D47: =CONCATENATE("Emission Factor: '",H57,"' was used. ",IF(H57="User defined Emission Factor", "","If available, please provide commodity Emission Factor for target country.")) -> 
D48: =IF(noPreProcessing,"Note that meat and flour only include losses during and/or after processing","") -> 
B50: IV. Equivalent land area saved | D50: Section not applicable for animal proteins
B54: V. Other labels
C55: Implied UN sub-region | D55: =INDEX(UNcountrycodes[Sub-region Name],MATCH(Country,UNcountrycodes[Country or Area],0)) ->  | F55: WARNING: Please select production type | H55: Total CO2e (tCO2e/t) | I55: Total CO2e from CH4(tCO2e/t) | J55: Total CO2e from N2O (tCO2e/t)
C56: Implied FAO region | D56: =INDEX(RegionClassification[FAO region],MATCH(impliedUNsubregion,RegionClassification[UN region],0)) ->  | F56: Emission Factor used | H56: =IF(CommodityGroup="Animal Protein", H69, H61) ->  | I56: =IF(CommodityGroup="Animal Protein", I69, I61) ->  | J56: =IF(CommodityGroup="Animal Protein", J69, J61) -> 
C57: Implied commodity group | D57: =VLOOKUP(Commodity,IFC_Commodity_CommodityGroup[],3,FALSE) ->  | G57: Type of tool calculation for Emission Factor | H57: =IF(CommodityGroup="Animal Protein", H68, H60) -> 
F59: Crops
C60: Food Loss Rate not available | G60: Type of tool calculation for Emission Factor | H60: =IF(H62>0, "User defined Emission Factor", IF(H63>0, "Updated database Emission Factor", INDEX(GHG_Crops_Summary[Type of calculation],MATCH(CONCATENATE(Country,Commodity),GHG_Crops_Summary[CONCAT],0)))) -> 
B61: =COUNTIF(NoLR[Food Loss Rate not available], Commodity)>0 -> FALSE | C61: Flour | F61: Emission Factor used | H61: =IF(H62>0,H62, IF(H63>0, H63, H64)) ->  | I61: =IF(I62>0,I62, IF(I63>0, I63, I64)) ->  | J61: =IF(J62>0,J62, IF(J63>0, J63, J64)) -> 
C62: Eggs | F62: User Defined Emission Factor? | H62: =userEF -> 0 | I62: =IF(userCH4percentage>0,userEF*userCH4percentage,userEF*INDEX(Emissions_TARGET_Countries_TOTAL[% of CO2e from CH4],MATCH(Country,Emissions_TARGET_Countries_TOTAL[Country],0))) ->  | J62: =IF(userN2Opercentage>0,userEF*userN2Opercentage,userEF*INDEX(Emissions_TARGET_Countries_TOTAL[% of CO2e from N2O],MATCH(Country,Emissions_TARGET_Countries_TOTAL[Country],0))) -> 
C63: Cotton | F63: "GHG updated" worksheet Emission Factor? | H63: =IF(INDEX(GHG_Update_Crop[EF (tCO2e/t)],MATCH(CONCATENATE(Country,Commodity),GHG_Update_Crop[CONCAT],0))>0, INDEX(GHG_Update_Crop[EF (tCO2e/t)],MATCH(CONCATENATE(Country,Commodity),GHG_Update_Crop[CONCAT],0)), 0) ->  | I63: =IF(INDEX(GHG_Update_Crop[EF (tCO2e/t) (from CH4) (AR5)],MATCH(CONCATENATE(Country,Commodity),GHG_Update_Crop[CONCAT],0))>0, INDEX(GHG_Update_Crop[EF (tCO2e/t) (from CH4) (AR5)],MATCH(CONCATENATE(Country,Commodity),GHG_Update_Crop[CONCAT],0)), 0) ->  | J63: =IF(INDEX(GHG_Update_Crop[EF (tCO2e/t) (from N2O) (AR5)],MATCH(CONCATENATE(Country,Commodity),GHG_Update_Crop[CONCAT],0))>0, INDEX(GHG_Update_Crop[EF (tCO2e/t) (from N2O) (AR5)],MATCH(CONCATENATE(Country,Commodity),GHG_Update_Crop[CONCAT],0)), 0) -> 
F64: Original Database Emission Factor | H64: =INDEX(GHG_Crops_Summary[EF total CO2e (tCO2e/t)],MATCH(CONCATENATE(Country,Commodity),GHG_Crops_Summary[CONCAT],0)) ->  | I64: =INDEX(GHG_Crops_Summary[EF total CO2e from CH4 (tCO2e/t)],MATCH(CONCATENATE(Country,Commodity),GHG_Crops_Summary[CONCAT],0)) ->  | J64: =INDEX(GHG_Crops_Summary[EF total CO2e from N2O (tCO2e/t)],MATCH(CONCATENATE(Country,Commodity),GHG_Crops_Summary[CONCAT],0)) -> 
C66: Checks
C67: =IF(CommodityGroup="Animal Protein",CONCATENATE(Commodity, " ", FarmingType),"") ->  | F67: Animal Protein
G68: Type of tool calculation for Emission Factor | H68: =IF(IFERROR(H62,0)>0, "User defined Emission Factor", IF(IFERROR(H63,0)>0, "Updated database Emission Factor", INDEX(AnimalEF[Type of calculation],MATCH(CONCATENATE(Country,Commodity,LEFT(FarmingType,FIND(" ",FarmingType)-1)),AnimalEF[CONCAT],0)))) -> 
F69: Emission Factor used | H69: =IF(IFERROR(H70,0)>0,H70, IF(IFERROR(H71,0)>0, H71, H72)) ->  | I69: =IF(IFERROR(I70,0)>0,I70, IF(IFERROR(I71,0)>0, I71, I72)) ->  | J69: =IF(IFERROR(J70,0)>0,J70, IF(IFERROR(J71,0)>0, J71, J72)) -> 
F70: User Defined Emission Factor? | H70: =userEF -> 0 | I70: =IF(userCH4percentage>0,userEF*userCH4percentage,0) -> 0 | J70: =IF(userN2Opercentage>0,userEF*userN2Opercentage,0) -> 0
F71: "GHG updated" worksheet Emission Factor? | H71: =IF( INDEX(GHG_Update_Livestock[EF (tonneCO2e/tonne)], MATCH(CONCATENATE(Country,Commodity,LEFT(FarmingType,FIND(" ",FarmingType)-1)),GHG_Update_Livestock[],0)) >0, INDEX(GHG_Update_Livestock[EF (tonneCO2e/tonne)], MATCH(CONCATENATE(Country,Commodity,LEFT(FarmingType,FIND(" ",FarmingType)-1)),GHG_Update_Livestock[CONCAT],0)),0) ->  | K71: No adjustment for manual livestock CH4 or N2O currently available
F72: Original Database Emission Factor | H72: =INDEX(AnimalEF[EF (tonneCO2e/tonne)],MATCH(CONCATENATE(Country,Commodity,LEFT(FarmingType,FIND(" ",FarmingType)-1)),AnimalEF[CONCAT],0)) ->  | I72: =INDEX(AnimalEF[CH4 EF (tonneCO2e/tonne)],MATCH(CONCATENATE(Country,Commodity,LEFT(FarmingType,FIND(" ",FarmingType)-1)),AnimalEF[CONCAT],0)) ->  | J72: =INDEX(AnimalEF[N2O EF (tonneCO2e/tonne)],MATCH(CONCATENATE(Country,Commodity,LEFT(FarmingType,FIND(" ",FarmingType)-1)),AnimalEF[CONCAT],0)) -> 
C83: Upstream = emissions due to producing or transporting food lost during transport or storage
C84: Direct = emissions incurred specifically duing the stage

Sheet Food Loss ->> (hidden)
B2: Food Loss
B3: This section includes tables, databases, and other data used to estimate food loss rates.
B5: 1. Sheet "Taxonomy" contains the classification tables that are used to edit/integrate information to make it consistent with labels and terminology required for this project.
B6: 2. Sheet "FAO Food Loss data" contains the FAO Food Loss database, integrated with additional information from other sources.
B7: 3. Sheet "Nat_Avg" contains the pivot tables connected to the main FAO Food Loss database, and are used to calculate the average food loss rate observed in the database for different combinations of country, commodity, and supply chain stages.
B8: 4. Sheet "Custom Loss Rates" contains empty tables that can be filled with updated Food Loss rates when they become available. Any value saved in that table will supersede any value from tool's internal database.

Sheet Taxonomy (hidden)
B2: Taxonomy
B3: This section contains the tables required to reconcile the different terminologies.
B5: FAO commodity is the list of all labels observed in the FAO Food Loss database. All relevant commodities are associate with the equivalent IFC terminology. | E5: To each IFC commodity is associated the respective IFC commodity group and FAO commodity group label. | I5: Table with estimates from FAO, classified by region, as reported in FAO Global Food Losses and Waste report (http://www.fao.org/3/a-i2697e.pdf). The label for IFC supply chain stage has been added to match the correct category within the scope of this project. Data on post-harvest handling and storage include both storage and transportation, therefore the original food loss % from FAO is split based on the distribution of losses at the storage and transport stage obtained from the FAO Food Loss database (at the commodity group level) - see tables at the bottom for details. | O5: This table reconciles the different region terminology beween IFC, UN, and FAO. | S5: FAO Supply Chain stage is matched with the relevant IFC supply chain stage
B6: FAO commodity | C6: IFC commodity | E6: IFC Commodity | F6: IFC Commodity group | G6: FAO commodity group | I6: FAO Wider Region | J6: FAO Commodity group | K6: FAO Supply Chain stage | L6: IFC Supply Chain stage | M6: Waste (%) | O6: IFC Region | P6: UN region | Q6: FAO region | S6: fsc_location1 | T6: IFC Supply Chain Stage
B7: Almonds, in shell | C7: Almonds | E7: Almonds | F7: Nuts/Seeds | G7: Oilseeds and pulses | I7: Europe (incl. Russia) | J7: Cereals | K7: Total Supply Chain Estimate | M7: 0.076 | O7: Oceania | P7: Australia and New Zealand | Q7: North America and Oceania | S7: Distribution | T7: Retail
B8: Anise, badian, coriander, cumin, caraway, fennel and juniper berries, raw | E8: Apples | F8: Fruits | G8: Fruits and vegetables | I8: Industrialized Asia | J8: Cereals | K8: Total Supply Chain Estimate | M8: 0.078 | O8: Europe and Central Asia | P8: Central Asia | Q8: North Africa, West and Central Asia | S8: Export
B9: Apple juice | E9: Avocados | F9: Fruits | G9: Fruits and vegetables | I9: Latin America | J9: Cereals | K9: Total Supply Chain Estimate | M9: 0.056 | O9: East Asia and Pacific | P9: Eastern Asia | Q9: Industrialized Asia | S9: Farm | T9: Production
B10: Apples | C10: Apples | E10: Bananas | F10: Fruits | G10: Fruits and vegetables | I10: North Africa, West and Central Asia | J10: Cereals | K10: Total Supply Chain Estimate | M10: 0.068 | O10: Europe and Central Asia | P10: Eastern Europe | Q10: Europe (incl. Russia) | S10: Food Services
B11: Apricots | E11: Barley | F11: Pulses & Grains | G11: Cereals | I11: North America and Oceania | J11: Cereals | K11: Total Supply Chain Estimate | M11: 0.056 | O11: Latin America and Caribbean | P11: Latin America and the Caribbean | Q11: Latin America | S11: Grading
B12: Areca nuts | E12: Beans | F12: Pulses & Grains | G12: Oilseeds and pulses | I12: South and Southeast Asia | J12: Cereals | K12: Total Supply Chain Estimate | M12: 0.043 | O12: East Asia and Pacific | P12: Melanesia | Q12: North America and Oceania | S12: Harvest
B13: Artichokes | E13: Buckwheat | F13: Pulses & Grains | G13: Cereals | I13: Sub-Saharan Africa | J13: Cereals | K13: Total Supply Chain Estimate | M13: 0.041 | O13: Middle East and North Africa | P13: Northern Africa | Q13: North Africa, West and Central Asia | S13: Households
B14: Asparagus | E14: Carrots | F14: Tubers/Root Crops | G14: Roots and tubers | I14: Europe (incl. Russia) | J14: Fish and seafood | K14: Total Supply Chain Estimate | M14: 0.0718 | O14: North America | P14: Northern America | Q14: North America and Oceania | S14: Market | T14: Retail
B15: Avocados | C15: Avocadoes | E15: Cashew nuts | F15: Nuts/Seeds | G15: Oilseeds and pulses | I15: Industrialized Asia | J15: Fish and seafood | K15: Total Supply Chain Estimate | M15: 0.084 | O15: Western Europe | P15: Northern Europe | Q15: Europe (incl. Russia) | S15: Packing
B16: Bambara beans, dry | E16: Cassava | F16: Tubers/Root Crops | G16: Roots and tubers | I16: Latin America | J16: Fish and seafood | K16: Total Supply Chain Estimate | M16: 0.0674 | O16: East Asia and Pacific | P16: South-eastern Asia | Q16: South and Southeast Asia | S16: Post-harvest
B17: Bananas | C17: Bananas | E17: Chickpeas | F17: Pulses & Grains | G17: Oilseeds and pulses | I17: North Africa, West and Central Asia | J17: Fish and seafood | K17: Total Supply Chain Estimate | M17: 0.0692 | O17: South Asia | P17: Southern Asia | Q17: South and Southeast Asia | S17: Pre-harvest
B18: Barley | C18: Barley | E18: Cocoa | F18: Nuts/Seeds | G18: Oilseeds and pulses | I18: North America and Oceania | J18: Fish and seafood | K18: Total Supply Chain Estimate | M18: 0.121 | O18: Western Europe | P18: Southern Europe | Q18: Europe (incl. Russia) | S18: Processing | T18: Processing
B19: Beans, dry | C19: Beans | E19: Coffee | F19: Nuts/Seeds | G19: Oilseeds and pulses | I19: South and Southeast Asia | J19: Fish and seafood | K19: Total Supply Chain Estimate | M19: 0.0804 | O19: Africa | P19: Sub-Saharan Africa | Q19: Sub-Saharan Africa | S19: Retail | T19: Retail
B20: Blueberries | E20: Cotton | F20: Cotton | I20: Sub-Saharan Africa | J20: Fish and seafood | K20: Total Supply Chain Estimate | M20: 0.0754 | O20: Europe and Central Asia | P20: Western Asia | Q20: North Africa, West and Central Asia | S20: Stacking
B21: Bran of Maize | E21: Eggs | F21: Animal Protein | I21: Europe (incl. Russia) | J21: Fruits and vegetables | K21: Total Supply Chain Estimate | M21: 0.112 | O21: Western Europe | P21: Western Europe | Q21: Europe (incl. Russia) | S21: Storage | T21: Storage
B22: Brazil nuts, in shell | E22: Flour | F22: Flour | G22: Cereals | I22: Industrialized Asia | J22: Fruits and vegetables | K22: Total Supply Chain Estimate | M22: 0.086 | S22: Trader
B23: Broad beans and horse beans, dry | E23: Garlic (green) | F23: Vegetables | G23: Fruits and vegetables | I23: Latin America | J23: Fruits and vegetables | K23: Total Supply Chain Estimate | M23: 0.144 | S23: Transport | T23: Transport
B24: Broad beans and horse beans, green | E24: Ginger | F24: Tubers/Root Crops | G24: Roots and tubers | I24: North Africa, West and Central Asia | J24: Fruits and vegetables | K24: Total Supply Chain Estimate | M24: 0.148 | S24: Whole supply chain
B25: Buckwheat | C25: Buckwheat | E25: Grapes | F25: Fruits | G25: Fruits and vegetables | I25: North America and Oceania | J25: Fruits and vegetables | K25: Total Supply Chain Estimate | M25: 0.132 | S25: Wholesale
B26: Butter of Cow Milk | E26: Lemons | F26: Fruits | G26: Fruits and vegetables | I26: South and Southeast Asia | J26: Fruits and vegetables | K26: Total Supply Chain Estimate | M26: 0.132
B27: Cabbages | E27: Lentils | F27: Pulses & Grains | G27: Oilseeds and pulses | I27: Sub-Saharan Africa | J27: Fruits and vegetables | K27: Total Supply Chain Estimate | M27: 0.132
B28: Camels | E28: Lettuce | F28: Vegetables | G28: Fruits and vegetables | I28: Europe (incl. Russia) | J28: Meat | K28: Total Supply Chain Estimate | M28: 0.0476
B29: Canary seed | E29: Maize | F29: Pulses & Grains | G29: Cereals | I29: Industrialized Asia | J29: Meat | K29: Total Supply Chain Estimate | M29: 0.045
B30: Cane sugar, non-centrifugal | E30: Mangoes | F30: Fruits | G30: Fruits and vegetables | I30: Latin America | J30: Meat | K30: Total Supply Chain Estimate | M30: 0.0448
B31: Canned mushrooms | E31: Meat (cattle) | F31: Animal Protein | G31: Meat | I31: North Africa, West and Central Asia | J31: Meat | K31: Total Supply Chain Estimate | M31: 0.0496
B32: Cantaloupes and other melons | E32: Meat (chicken) | F32: Animal Protein | G32: Meat | I32: North America and Oceania | J32: Meat | K32: Total Supply Chain Estimate | M32: 0.049
B33: Carrots and turnips | C33: Carrots | E33: Meat (pig) | F33: Animal Protein | G33: Meat | I33: South and Southeast Asia | J33: Meat | K33: Total Supply Chain Estimate | M33: 0.0428
B34: Cashew nuts, in shell | C34: Cashew nuts | E34: Milk (cattle) | F34: Animal Protein | G34: Milk | I34: Sub-Saharan Africa | J34: Meat | K34: Total Supply Chain Estimate | M34: 0.0594
B35: Cassava, dry | E35: Millet | F35: Pulses & Grains | G35: Cereals | I35: Europe (incl. Russia) | J35: Milk | K35: Total Supply Chain Estimate | M35: 0.0254
B36: Cassava, fresh | C36: Cassava | E36: Mushrooms | F36: Mycoprotein | G36: Fruits and vegetables | I36: Industrialized Asia | J36: Milk | K36: Total Supply Chain Estimate | M36: 0.0224
B37: Cattle | E37: Oats | F37: Pulses & Grains | G37: Cereals | I37: Latin America | J37: Milk | K37: Total Supply Chain Estimate | M37: 0.047
B38: Cattle fat, unrendered | E38: Onions, dry | F38: Tubers/Root Crops | G38: Roots and tubers | I38: North Africa, West and Central Asia | J38: Milk | K38: Total Supply Chain Estimate | M38: 0.043
B39: Cauliflowers and broccoli | E39: Oranges | F39: Fruits | G39: Fruits and vegetables | I39: North America and Oceania | J39: Milk | K39: Total Supply Chain Estimate | M39: 0.0414
B40: Cheese from whole cow milk | E40: Peanuts | F40: Nuts/Seeds | G40: Oilseeds and pulses | I40: South and Southeast Asia | J40: Milk | K40: Total Supply Chain Estimate | M40: 0.045
B41: Cherries | E41: Peas (dry) | F41: Pulses & Grains | G41: Oilseeds and pulses | I41: Sub-Saharan Africa | J41: Milk | K41: Total Supply Chain Estimate | M41: 0.0544
B42: Chestnuts, in shell | E42: Peppers | F42: Vegetables | G42: Fruits and vegetables | I42: Europe (incl. Russia) | J42: Oilseeds and pulses | K42: Total Supply Chain Estimate | M42: 0.042
B43: Chick peas, dry | C43: Chickpeas | E43: Pineapples | F43: Fruits | G43: Fruits and vegetables | I43: Industrialized Asia | J43: Oilseeds and pulses | K43: Total Supply Chain Estimate | M43: 0.038
B44: Chillies and peppers, dry (<i>Capsicum</i> spp., <i>Pimenta</i> spp.), raw | E44: Potatoes | F44: Tubers/Root Crops | G44: Roots and tubers | I44: Latin America | J44: Oilseeds and pulses | K44: Total Supply Chain Estimate | M44: 0.042
B45: Chillies and peppers, green (<i>Capsicum</i> spp. and <i>Pimenta</i> spp.) | C45: Peppers | E45: Quinoa | F45: Nuts/Seeds | G45: Oilseeds and pulses | I45: North Africa, West and Central Asia | J45: Oilseeds and pulses | K45: Total Supply Chain Estimate | M45: 0.066
B46: Chillies and peppers, green (Capsicum spp. and Pimenta spp.) | C46: Peppers | E46: Rapeseeds | F46: Nuts/Seeds | G46: Oilseeds and pulses | I46: North America and Oceania | J46: Oilseeds and pulses | K46: Total Supply Chain Estimate | M46: 0.044
B47: Cocoa beans | C47: Cocoa | E47: Rice | F47: Pulses & Grains | G47: Cereals | I47: South and Southeast Asia | J47: Oilseeds and pulses | K47: Total Supply Chain Estimate | M47: 0.06
B48: Coconuts, in shell | E48: Rye | F48: Pulses & Grains | G48: Cereals | I48: Sub-Saharan Africa | J48: Oilseeds and pulses | K48: Total Supply Chain Estimate | M48: 0.062
B49: Coffee, green | C49: Coffee | E49: Sesame seed | F49: Nuts/Seeds | G49: Oilseeds and pulses | I49: Europe (incl. Russia) | J49: Roots and tubers | K49: Total Supply Chain Estimate | M49: 0.136
B50: Copra | E50: Sorghum | F50: Pulses & Grains | G50: Cereals | I50: Industrialized Asia | J50: Roots and tubers | K50: Total Supply Chain Estimate | M50: 0.122
B51: Cow peas, dry | E51: Soybeans | F51: Pulses & Grains | G51: Oilseeds and pulses | I51: Latin America | J51: Roots and tubers | K51: Total Supply Chain Estimate | M51: 0.094
B52: Cranberries | E52: Sugar cane | F52: Tubers/Root Crops | G52: Roots and tubers | I52: North Africa, West and Central Asia | J52: Roots and tubers | K52: Total Supply Chain Estimate | M52: 0.076
B53: Cranberries and other fruits of the genus Vaccinium | E53: Sunflower seeds | F53: Nuts/Seeds | G53: Oilseeds and pulses | I53: North America and Oceania | J53: Roots and tubers | K53: Total Supply Chain Estimate | M53: 0.164
B54: Cucumbers and gherkins | E54: Sweet potatoes | F54: Tubers/Root Crops | G54: Roots and tubers | I54: South and Southeast Asia | J54: Roots and tubers | K54: Total Supply Chain Estimate | M54: 0.098
B55: Currants | E55: Tomatoes | F55: Fruits | G55: Fruits and vegetables | I55: Sub-Saharan Africa | J55: Roots and tubers | K55: Total Supply Chain Estimate | M55: 0.108
B56: Dairy products n.e.c. | E56: Wheat | F56: Pulses & Grains | G56: Cereals | I56: Europe (incl. Russia) | J56: Cereals | K56: Processing and packaging | L56: Processing | M56: 0.05
B57: Dates | I57: Industrialized Asia | J57: Cereals | K57: Processing and packaging | L57: Processing | M57: 0.05
B58: Edible offal of cattle, fresh, chilled or frozen | I58: Latin America | J58: Cereals | K58: Processing and packaging | L58: Processing | M58: 0.04
B59: Edible offal of pigs, fresh, chilled or frozen | C59: Meat (Pigs) | I59: North Africa, West and Central Asia | J59: Cereals | K59: Processing and packaging | L59: Processing | M59: 0.04
B60: Edible roots and tubers with high starch or inulin content, n.e., fresh | I60: North America and Oceania | J60: Cereals | K60: Processing and packaging | L60: Processing | M60: 0.05
B61: Edible roots and tubers with high starch or inulin content, n.e.c., dry | I61: South and Southeast Asia | J61: Cereals | K61: Processing and packaging | L61: Processing | M61: 0.035
B62: Edible roots and tubers with high starch or inulin content, n.e.c., fresh | I62: Sub-Saharan Africa | J62: Cereals | K62: Processing and packaging | L62: Processing | M62: 0.035
B63: Eggplants (aubergines) | I63: Europe (incl. Russia) | J63: Fish and seafood | K63: Processing and packaging | L63: Processing | M63: 0.06
B64: Figs | I64: Industrialized Asia | J64: Fish and seafood | K64: Processing and packaging | L64: Processing | M64: 0.06
B65: Flour of buckwheat | I65: Latin America | J65: Fish and seafood | K65: Processing and packaging | L65: Processing | M65: 0.09
B66: Flour of cassava | I66: North Africa, West and Central Asia | J66: Fish and seafood | K66: Processing and packaging | L66: Processing | M66: 0.09
B67: Flour of Maize | I67: North America and Oceania | J67: Fish and seafood | K67: Processing and packaging | L67: Processing | M67: 0.06
B68: Flour of triticale | I68: South and Southeast Asia | J68: Fish and seafood | K68: Processing and packaging | L68: Processing | M68: 0.09
B69: Fonio | I69: Sub-Saharan Africa | J69: Fish and seafood | K69: Processing and packaging | L69: Processing | M69: 0.09
B70: Goats | I70: Europe (incl. Russia) | J70: Fruits and vegetables | K70: Processing and packaging | L70: Processing | M70: 0.02
B71: Grape juice | I71: Industrialized Asia | J71: Fruits and vegetables | K71: Processing and packaging | L71: Processing | M71: 0.02
B72: Grapefruit juice | I72: Latin America | J72: Fruits and vegetables | K72: Processing and packaging | L72: Processing | M72: 0.2
B73: Grapes | C73: Grapes | I73: North Africa, West and Central Asia | J73: Fruits and vegetables | K73: Processing and packaging | L73: Processing | M73: 0.2
B74: Green corn (maize) | I74: North America and Oceania | J74: Fruits and vegetables | K74: Processing and packaging | L74: Processing | M74: 0.02
B75: Green garlic | C75: Garlic (green) | I75: South and Southeast Asia | J75: Fruits and vegetables | K75: Processing and packaging | L75: Processing | M75: 0.25
B76: Groundnuts, excluding shelled | I76: Sub-Saharan Africa | J76: Fruits and vegetables | K76: Processing and packaging | L76: Processing | M76: 0.25
B77: Groundnuts, shelled | C77: Peanuts | I77: Europe (incl. Russia) | J77: Meat | K77: Processing and packaging | L77: Processing | M77: 0.05
B78: Hazelnuts, in shell | I78: Industrialized Asia | J78: Meat | K78: Processing and packaging | L78: Processing | M78: 0.05
B79: Hen eggs in shell, fresh | C79: Eggs | I79: Latin America | J79: Meat | K79: Processing and packaging | L79: Processing | M79: 0.05
B80: Husked rice | C80: Rice | I80: North Africa, West and Central Asia | J80: Meat | K80: Processing and packaging | L80: Processing | M80: 0.05
B81: Juice of citrus fruit n.e.c. | I81: North America and Oceania | J81: Meat | K81: Processing and packaging | L81: Processing | M81: 0.05
B82: Juice of lemon | I82: South and Southeast Asia | J82: Meat | K82: Processing and packaging | L82: Processing | M82: 0.05
B83: Kiwi fruit | I83: Sub-Saharan Africa | J83: Meat | K83: Processing and packaging | L83: Processing | M83: 0.05
B84: Leeks and other alliaceous vegetables | I84: Europe (incl. Russia) | J84: Milk | K84: Processing and packaging | L84: Processing | M84: 0.012
B85: Lemons and limes | C85: Lemons | I85: Industrialized Asia | J85: Milk | K85: Processing and packaging | L85: Processing | M85: 0.012
B86: Lentils, dry | C86: Lentils | I86: Latin America | J86: Milk | K86: Processing and packaging | L86: Processing | M86: 0.02
B87: Lettuce and chicory | C87: Lettuce | I87: North Africa, West and Central Asia | J87: Milk | K87: Processing and packaging | L87: Processing | M87: 0.02
B88: Linseed | I88: North America and Oceania | J88: Milk | K88: Processing and packaging | L88: Processing | M88: 0.012
B89: Lupins | I89: South and Southeast Asia | J89: Milk | K89: Processing and packaging | L89: Processing | M89: 0.02
B90: Maize (corn) | C90: Maize | I90: Sub-Saharan Africa | J90: Milk | K90: Processing and packaging | L90: Processing | M90: 0.001
B91: Mangoes, guavas and mangosteens | C91: Mangoes | I91: Europe (incl. Russia) | J91: Oilseeds and pulses | K91: Processing and packaging | L91: Processing | M91: 0.05
B92: Mangoes, guavas, mangosteens | C92: Mangoes | I92: Industrialized Asia | J92: Oilseeds and pulses | K92: Processing and packaging | L92: Processing | M92: 0.05
B93: Meat of cattle boneless, fresh or chilled | C93: Meat (Cattle) | I93: Latin America | J93: Oilseeds and pulses | K93: Processing and packaging | L93: Processing | M93: 0.08
B94: Meat of cattle with the bone, fresh or chilled | C94: Meat (Cattle) | I94: North Africa, West and Central Asia | J94: Oilseeds and pulses | K94: Processing and packaging | L94: Processing | M94: 0.08
B95: Meat of cattle, fresh or chilled | C95: Meat (Cattle) | I95: North America and Oceania | J95: Oilseeds and pulses | K95: Processing and packaging | L95: Processing | M95: 0.05
B96: Meat of chickens, fresh or chilled | C96: Meat (Chicken) | I96: South and Southeast Asia | J96: Oilseeds and pulses | K96: Processing and packaging | L96: Processing | M96: 0.08
B97: Meat of goat, fresh or chilled | I97: Sub-Saharan Africa | J97: Oilseeds and pulses | K97: Processing and packaging | L97: Processing | M97: 0.08
B98: Meat of goat, fresh or chilled (indigenous) | I98: Europe (incl. Russia) | J98: Roots and tubers | K98: Processing and packaging | L98: Processing | M98: 0.15
B99: Meat of other domestic camelids (fresh) | I99: Industrialized Asia | J99: Roots and tubers | K99: Processing and packaging | L99: Processing | M99: 0.15
B100: Meat of pig boneless (pork), fresh or chilled | C100: Meat (Pigs) | I100: Latin America | J100: Roots and tubers | K100: Processing and packaging | L100: Processing | M100: 0.12
B101: Meat of pig with the bone, fresh or chilled | C101: Meat (Pigs) | I101: North Africa, West and Central Asia | J101: Roots and tubers | K101: Processing and packaging | L101: Processing | M101: 0.12
B102: Meat of pig, fresh or chilled | C102: Meat (Pigs) | I102: North America and Oceania | J102: Roots and tubers | K102: Processing and packaging | L102: Processing | M102: 0.15
B103: Meat of sheep, fresh or chilled | I103: South and Southeast Asia | J103: Roots and tubers | K103: Processing and packaging | L103: Processing | M103: 0.1
B104: Millet | C104: Millet | I104: Sub-Saharan Africa | J104: Roots and tubers | K104: Processing and packaging | L104: Processing | M104: 0.15
B105: Mixed grain | I105: Europe (incl. Russia) | J105: Cereals | K105: Agricultural production | L105: Production | M105: 0.02
B106: Mushrooms and truffles | C106: Mushrooms | I106: Industrialized Asia | J106: Cereals | K106: Agricultural production | L106: Production | M106: 0.02
B107: Mustard seed | I107: Latin America | J107: Cereals | K107: Agricultural production | L107: Production | M107: 0.06
B108: Natural honey | I108: North Africa, West and Central Asia | J108: Cereals | K108: Agricultural production | L108: Production | M108: 0.06
B109: Oats | C109: Oats | I109: North America and Oceania | J109: Cereals | K109: Agricultural production | L109: Production | M109: 0.02
B110: Oil palm fruit | I110: South and Southeast Asia | J110: Cereals | K110: Agricultural production | L110: Production | M110: 0.06
B111: Okra | I111: Sub-Saharan Africa | J111: Cereals | K111: Agricultural production | L111: Production | M111: 0.06
B112: Olives | I112: Europe (incl. Russia) | J112: Fish and seafood | K112: Agricultural production | L112: Production | M112: 0.094
B113: olives preserved | I113: Industrialized Asia | J113: Fish and seafood | K113: Agricultural production | L113: Production | M113: 0.15
B114: Onions and shallots, dry (excluding dehydrated) | C114: Onions (dry) | I114: Latin America | J114: Fish and seafood | K114: Agricultural production | L114: Production | M114: 0.057
B115: Onions and shallots, green | I115: North Africa, West and Central Asia | J115: Fish and seafood | K115: Agricultural production | L115: Production | M115: 0.066
B116: Orange juice | I116: North America and Oceania | J116: Fish and seafood | K116: Agricultural production | L116: Production | M116: 0.12
B117: Oranges | C117: Oranges | I117: South and Southeast Asia | J117: Fish and seafood | K117: Agricultural production | L117: Production | M117: 0.082
B118: Other beans, green | I118: Sub-Saharan Africa | J118: Fish and seafood | K118: Agricultural production | L118: Production | M118: 0.057
B119: Other berries and fruits of the genus Vaccinium n.e. | I119: Europe (incl. Russia) | J119: Fruits and vegetables | K119: Agricultural production | L119: Production | M119: 0.2
B120: Other cereals n.e. | I120: Industrialized Asia | J120: Fruits and vegetables | K120: Agricultural production | L120: Production | M120: 0.1
B121: Other citrus fruit, n.e. | I121: Latin America | J121: Fruits and vegetables | K121: Agricultural production | L121: Production | M121: 0.2
B122: Other citrus fruit, n.e.c. | I122: North Africa, West and Central Asia | J122: Fruits and vegetables | K122: Agricultural production | L122: Production | M122: 0.17
B123: Other fruits, n.e. | I123: North America and Oceania | J123: Fruits and vegetables | K123: Agricultural production | L123: Production | M123: 0.2
B124: Other fruits, n.e.c. | I124: South and Southeast Asia | J124: Fruits and vegetables | K124: Agricultural production | L124: Production | M124: 0.15
B125: Other legumes, for forage | I125: Sub-Saharan Africa | J125: Fruits and vegetables | K125: Agricultural production | L125: Production | M125: 0.1
B126: Other nuts (excluding wild edible nuts and groundnuts), in shell, n.e. | I126: Europe (incl. Russia) | J126: Meat | K126: Agricultural production | L126: Production | M126: 0.031
B127: Other pulses n.e.c. | I127: Industrialized Asia | J127: Meat | K127: Agricultural production | L127: Production | M127: 0.029
B128: Other stimulant, spice and aromatic crops, n.e.c. | I128: Latin America | J128: Meat | K128: Agricultural production | L128: Production | M128: 0.053
B129: Other stone fruits | I129: North Africa, West and Central Asia | J129: Meat | K129: Agricultural production | L129: Production | M129: 0.066
B130: Other tropical and subtropical fruits, n.e. | I130: North America and Oceania | J130: Meat | K130: Agricultural production | L130: Production | M130: 0.035
B131: Other tropical and subtropical fruits, n.e.c. | I131: South and Southeast Asia | J131: Meat | K131: Agricultural production | L131: Production | M131: 0.051
B132: Other vegetables, fresh n.e. | I132: Sub-Saharan Africa | J132: Meat | K132: Agricultural production | L132: Production | M132: 0.15
B133: Other vegetables, fresh n.e.c. | I133: Europe (incl. Russia) | J133: Milk | K133: Agricultural production | L133: Production | M133: 0.035
B134: Papayas | I134: Industrialized Asia | J134: Milk | K134: Agricultural production | L134: Production | M134: 0.035
B135: Peaches and nectarines | I135: Latin America | J135: Milk | K135: Agricultural production | L135: Production | M135: 0.035
B136: Pears | I136: North Africa, West and Central Asia | J136: Milk | K136: Agricultural production | L136: Production | M136: 0.035
B137: Peas, dry | C137: Peas (dry) | I137: North America and Oceania | J137: Milk | K137: Agricultural production | L137: Production | M137: 0.035
B138: Peas, green | I138: South and Southeast Asia | J138: Milk | K138: Agricultural production | L138: Production | M138: 0.035
B139: Pepper (<i>Piper</i> spp.), raw | C139: Peppers | I139: Sub-Saharan Africa | J139: Milk | K139: Agricultural production | L139: Production | M139: 0.06
B140: Persimmons | I140: Europe (incl. Russia) | J140: Oilseeds and pulses | K140: Agricultural production | L140: Production | M140: 0.1
B141: Pig meat, cuts, salted, dried or smoked (bacon and ham) | I141: Industrialized Asia | J141: Oilseeds and pulses | K141: Agricultural production | L141: Production | M141: 0.06
B142: Pig, Butcher Fat | I142: Latin America | J142: Oilseeds and pulses | K142: Agricultural production | L142: Production | M142: 0.06
B143: Pigeon peas, dry | I143: North Africa, West and Central Asia | J143: Oilseeds and pulses | K143: Agricultural production | L143: Production | M143: 0.15
B144: Pineapple juice | I144: North America and Oceania | J144: Oilseeds and pulses | K144: Agricultural production | L144: Production | M144: 0.12
B145: Pineapples | C145: Pineapples | I145: South and Southeast Asia | J145: Oilseeds and pulses | K145: Agricultural production | L145: Production | M145: 0.07
B146: Pistachios, in shell | I146: Sub-Saharan Africa | J146: Oilseeds and pulses | K146: Agricultural production | L146: Production | M146: 0.12
B147: Plantains and cooking bananas | I147: Europe (incl. Russia) | J147: Roots and tubers | K147: Agricultural production | L147: Production | M147: 0.2
B148: Plantains and others | I148: Industrialized Asia | J148: Roots and tubers | K148: Agricultural production | L148: Production | M148: 0.2
B149: Plums and sloes | I149: Latin America | J149: Roots and tubers | K149: Agricultural production | L149: Production | M149: 0.14
B150: Plums, dried | I150: North Africa, West and Central Asia | J150: Roots and tubers | K150: Agricultural production | L150: Production | M150: 0.06
B151: Pomelos and grapefruits | I151: North America and Oceania | J151: Roots and tubers | K151: Agricultural production | L151: Production | M151: 0.2
B152: Poppy seed | I152: South and Southeast Asia | J152: Roots and tubers | K152: Agricultural production | L152: Production | M152: 0.06
B153: Potatoes | C153: Potatoes | I153: Sub-Saharan Africa | J153: Roots and tubers | K153: Agricultural production | L153: Production | M153: 0.14
B154: Pulses n.e. | I154: Europe (incl. Russia) | J154: Cereals | K154: Distribution | L154: Retail | M154: 0.02
B155: Pumpkins, squash and gourds | I155: Industrialized Asia | J155: Cereals | K155: Distribution | L155: Retail | M155: 0.02
B156: Quinces | I156: Latin America | J156: Cereals | K156: Distribution | L156: Retail | M156: 0.04
B157: Quinoa | C157: Quinoa | I157: North Africa, West and Central Asia | J157: Cereals | K157: Distribution | L157: Retail | M157: 0.04
B158: Raisins | I158: North America and Oceania | J158: Cereals | K158: Distribution | L158: Retail | M158: 0.02
B159: Rape or colza seed | I159: South and Southeast Asia | J159: Cereals | K159: Distribution | L159: Retail | M159: 0.02
B160: Rapeseed or colza seed | C160: Rapeseeds | I160: Sub-Saharan Africa | J160: Cereals | K160: Distribution | L160: Retail | M160: 0.02
B161: Raspberries | I161: Europe (incl. Russia) | J161: Fish and seafood | K161: Distribution | L161: Retail | M161: 0.09
B162: Raspeberries | I162: Industrialized Asia | J162: Fish and seafood | K162: Distribution | L162: Retail | M162: 0.11
B163: Raw cane or beet sugar (centrifugal only) | I163: Latin America | J163: Fish and seafood | K163: Distribution | L163: Retail | M163: 0.1
B164: Raw milk of cattle | C164: Milk (cattle) | I164: North Africa, West and Central Asia | J164: Fish and seafood | K164: Distribution | L164: Retail | M164: 0.1
B165: Raw milk of goats | I165: North America and Oceania | J165: Fish and seafood | K165: Distribution | L165: Retail | M165: 0.09
B166: Raw milk of sheep | I166: South and Southeast Asia | J166: Fish and seafood | K166: Distribution | L166: Retail | M166: 0.15
B167: Refined sugar | I167: Sub-Saharan Africa | J167: Fish and seafood | K167: Distribution | L167: Retail | M167: 0.15
B168: Rice | C168: Rice | I168: Europe (incl. Russia) | J168: Fruits and vegetables | K168: Distribution | L168: Retail | M168: 0.1
B169: Rice, Broken | C169: Rice | I169: Industrialized Asia | J169: Fruits and vegetables | K169: Distribution | L169: Retail | M169: 0.08
B170: Rice, Milled | C170: Rice | I170: Latin America | J170: Fruits and vegetables | K170: Distribution | L170: Retail | M170: 0.12
B171: Rice, Milled (Husked) | C171: Rice | I171: North Africa, West and Central Asia | J171: Fruits and vegetables | K171: Distribution | L171: Retail | M171: 0.15
B172: Rye | C172: Rye | I172: North America and Oceania | J172: Fruits and vegetables | K172: Distribution | L172: Retail | M172: 0.12
B173: Safflower seed | I173: South and Southeast Asia | J173: Fruits and vegetables | K173: Distribution | L173: Retail | M173: 0.1
B174: Seed cotton, unginned | I174: Sub-Saharan Africa | J174: Fruits and vegetables | K174: Distribution | L174: Retail | M174: 0.17
B175: Sesame seed | C175: Sesame seed | I175: Europe (incl. Russia) | J175: Meat | K175: Distribution | L175: Retail | M175: 0.04
B176: Sheep | I176: Industrialized Asia | J176: Meat | K176: Distribution | L176: Retail | M176: 0.06
B177: Snails, fresh, chilled, frozen, dried, salted or in brine, except sea snails | I177: Latin America | J177: Meat | K177: Distribution | L177: Retail | M177: 0.05
B178: Sorghum | C178: Sorghum | I178: North Africa, West and Central Asia | J178: Meat | K178: Distribution | L178: Retail | M178: 0.05
B179: Sour cherries | I179: North America and Oceania | J179: Meat | K179: Distribution | L179: Retail | M179: 0.04
B180: Soya beans | C180: Soybeans | I180: South and Southeast Asia | J180: Meat | K180: Distribution | L180: Retail | M180: 0.07
B181: Spinach | I181: Sub-Saharan Africa | J181: Meat | K181: Distribution | L181: Retail | M181: 0.07
B182: Starch of Potatoes | I182: Europe (incl. Russia) | J182: Milk | K182: Distribution | L182: Retail | M182: 0.005
B183: Strawberries | I183: Industrialized Asia | J183: Milk | K183: Distribution | L183: Retail | M183: 0.005
B184: Sugar and syrups n.e.c. | I184: Latin America | J184: Milk | K184: Distribution | L184: Retail | M184: 0.08
B185: Sugar beet | I185: North Africa, West and Central Asia | J185: Milk | K185: Distribution | L185: Retail | M185: 0.08
B186: Sugar cane | C186: Sugar cane | I186: North America and Oceania | J186: Milk | K186: Distribution | L186: Retail | M186: 0.005
B187: Sunflower seed | C187: Sunflower seeds | I187: South and Southeast Asia | J187: Milk | K187: Distribution | L187: Retail | M187: 0.1
B188: Sunflower-seed oil, crude | I188: Sub-Saharan Africa | J188: Milk | K188: Distribution | L188: Retail | M188: 0.1
B189: Swedes, for forage | I189: Europe (incl. Russia) | J189: Oilseeds and pulses | K189: Distribution | L189: Retail | M189: 0.01
B190: Sweet corn, frozen | I190: Industrialized Asia | J190: Oilseeds and pulses | K190: Distribution | L190: Retail | M190: 0.01
B191: Sweet corn, prepared or preserved | I191: Latin America | J191: Oilseeds and pulses | K191: Distribution | L191: Retail | M191: 0.02
B192: Sweet potatoes | C192: Sweet Potatoes | I192: North Africa, West and Central Asia | J192: Oilseeds and pulses | K192: Distribution | L192: Retail | M192: 0.02
B193: Tangerines, mandarins, clementines | I193: North America and Oceania | J193: Oilseeds and pulses | K193: Distribution | L193: Retail | M193: 0.01
B194: Tapioca of cassava | I194: South and Southeast Asia | J194: Oilseeds and pulses | K194: Distribution | L194: Retail | M194: 0.02
B195: Taro | I195: Sub-Saharan Africa | J195: Oilseeds and pulses | K195: Distribution | L195: Retail | M195: 0.02
B196: Tomatoes | C196: Tomatoes | I196: Europe (incl. Russia) | J196: Roots and tubers | K196: Distribution | L196: Retail | M196: 0.07
B197: Triticale | I197: Industrialized Asia | J197: Roots and tubers | K197: Distribution | L197: Retail | M197: 0.09
B198: Uncooked pasta, not stuffed or otherwise prepared | I198: Latin America | J198: Roots and tubers | K198: Distribution | L198: Retail | M198: 0.03
B199: Vegetable products, fresh or dry n.e.c. | I199: North Africa, West and Central Asia | J199: Roots and tubers | K199: Distribution | L199: Retail | M199: 0.04
B200: Walnuts, in shell | I200: North America and Oceania | J200: Roots and tubers | K200: Distribution | L200: Retail | M200: 0.07
B201: Watermelons | I201: South and Southeast Asia | J201: Roots and tubers | K201: Distribution | L201: Retail | M201: 0.11
B202: Wheat | C202: Wheat | I202: Sub-Saharan Africa | J202: Roots and tubers | K202: Distribution | L202: Retail | M202: 0.05
... 226 more rows

Sheet FAO Food Loss Data (hidden)
A1: FAO data
A2: Source (updated 08/02/2022): | B2: www.fao.org/food-loss-and-food-waste/flw-data/en/
A5: FAO data
A6: Calculated fields
A8: m49_code | B8: country | C8: region | D8: cpc_code | E8: commodity | F8: year | G8: loss_percentage | H8: loss_percentage_original | I8: loss_quantity | J8: activity | K8: food_supply_stage | L8: treatment | M8: cause_of_loss | N8: sample_size | O8: method_data_collection | P8: reference | Q8: url | R8: notes | S8: Region4 | T8: UN sub-region | U8: FAO region | V8: IFC Commodity | W8: IFC Category | X8: FAO category | Y8: IFC Supply Chain Stage
A9: 104 | B9: Myanmar | D9: 142 | E9: Groundnuts, excluding shelled | F9: 2009 | G9: 5.22 | H9: 0.0522 | I9: 68100 | K9: Whole supply chain | O9: FAO's annual Agriculture Production Questionnaires | P9: FAO Sources | S9: =IFERROR(INDEX(UNcountrycodes[Region Name],MATCH(FAOdata[[#This Row],[m49_code]],UNcountrycodes[M49 Code],0)),"") -> Asia | T9: =IFERROR(INDEX(UNcountrycodes[Sub-region Name], MATCH(FAOdata[[#This Row],[m49_code]],UNcountrycodes[M49 Code],0)),"") -> South-eastern Asia | U9: =IFERROR(INDEX(RegionClassification[FAO region],MATCH(FAOdata[[#This Row],[UN sub-region]],RegionClassification[UN region],0)),"") -> South and Southeast Asia | V9: =INDEX(FAO_IFC_Commodity[IFC commodity], MATCH(FAOdata[[#This Row],[commodity]],FAO_IFC_Commodity[FAO commodity],0)) -> 0 | W9: =IFERROR(INDEX(IFC_Commodity_CommodityGroup[IFC Commodity group],MATCH(FAOdata[[#This Row],[IFC Commodity]],IFC_Commodity_CommodityGroup[IFC Commodity], 0)),"") ->  | X9: =IFERROR(INDEX(IFC_Commodity_CommodityGroup[FAO commodity group], MATCH(FAOdata[[#This Row],[IFC Commodity]],IFC_Commodity_CommodityGroup[IFC Commodity],0)),"") ->  | Y9: =IFERROR(INDEX(FTS[[#All],[IFC Supply Chain Stage]],MATCH(FAOdata[[#This Row],[food_supply_stage]],FTS[[#All],[fsc_location1]],0)),"") -> 0
A10: 104 | B10: Myanmar | D10: 142 | E10: Groundnuts, excluding shelled | F10: 2008 | G10: 5.43 | H10: 0.0543 | I10: 65240 | K10: Whole supply chain | O10: FAO's annual Agriculture Production Questionnaires | P10: FAO Sources | S10: =IFERROR(INDEX(UNcountrycodes[Region Name],MATCH(FAOdata[[#This Row],[m49_code]],UNcountrycodes[M49 Code],0)),"") -> Asia | T10: =IFERROR(INDEX(UNcountrycodes[Sub-region Name], MATCH(FAOdata[[#This Row],[m49_code]],UNcountrycodes[M49 Code],0)),"") -> South-eastern Asia | U10: =IFERROR(INDEX(RegionClassification[FAO region],MATCH(FAOdata[[#This Row],[UN sub-region]],RegionClassification[UN region],0)),"") -> South and Southeast Asia | V10: =INDEX(FAO_IFC_Commodity[IFC commodity], MATCH(FAOdata[[#This Row],[commodity]],FAO_IFC_Commodity[FAO commodity],0)) -> 0 | W10: =IFERROR(INDEX(IFC_Commodity_CommodityGroup[IFC Commodity group],MATCH(FAOdata[[#This Row],[IFC Commodity]],IFC_Commodity_CommodityGroup[IFC Commodity], 0)),"") ->  | X10: =IFERROR(INDEX(IFC_Commodity_CommodityGroup[FAO commodity group], MATCH(FAOdata[[#This Row],[IFC Commodity]],IFC_Commodity_CommodityGroup[IFC Commodity],0)),"") ->  | Y10: =IFERROR(INDEX(FTS[[#All],[IFC Supply Chain Stage]],MATCH(FAOdata[[#This Row],[food_supply_stage]],FTS[[#All],[fsc_location1]],0)),"") -> 0
A11: 104 | B11: Myanmar | D11: 142 | E11: Groundnuts, excluding shelled | F11: 2007 | G11: 5.61 | H11: 0.0561 | I11: 61080 | K11: Whole supply chain | O11: FAO's annual Agriculture Production Questionnaires | P11: FAO Sources | S11: =IFERROR(INDEX(UNcountrycodes[Region Name],MATCH(FAOdata[[#This Row],[m49_code]],UNcountrycodes[M49 Code],0)),"") -> Asia | T11: =IFERROR(INDEX(UNcountrycodes[Sub-region Name], MATCH(FAOdata[[#This Row],[m49_code]],UNcountrycodes[M49 Code],0)),"") -> South-eastern Asia | U11: =IFERROR(INDEX(RegionClassification[FAO region],MATCH(FAOdata[[#This Row],[UN sub-region]],RegionClassification[UN region],0)),"") -> South and Southeast Asia | V11: =INDEX(FAO_IFC_Commodity[IFC commodity], MATCH(FAOdata[[#This Row],[commodity]],FAO_IFC_Commodity[FAO commodity],0)) -> 0 | W11: =IFERROR(INDEX(IFC_Commodity_CommodityGroup[IFC Commodity group],MATCH(FAOdata[[#This Row],[IFC Commodity]],IFC_Commodity_CommodityGroup[IFC Commodity], 0)),"") ->  | X11: =IFERROR(INDEX(IFC_Commodity_CommodityGroup[FAO commodity group], MATCH(FAOdata[[#This Row],[IFC Commodity]],IFC_Commodity_CommodityGroup[IFC Commodity],0)),"") ->  | Y11: =IFERROR(INDEX(FTS[[#All],[IFC Supply Chain Stage]],MATCH(FAOdata[[#This Row],[food_supply_stage]],FTS[[#All],[fsc_location1]],0)),"") -> 0
A12: 104 | B12: Myanmar | D12: 142 | E12: Groundnuts, excluding shelled | F12: 2006 | G12: 5.4 | H12: 0.054 | I12: 55270 | K12: Whole supply chain | O12: FAO's annual Agriculture Production Questionnaires | P12: FAO Sources | S12: =IFERROR(INDEX(UNcountrycodes[Region Name],MATCH(FAOdata[[#This Row],[m49_code]],UNcountrycodes[M49 Code],0)),"") -> Asia | T12: =IFERROR(INDEX(UNcountrycodes[Sub-region Name], MATCH(FAOdata[[#This Row],[m49_code]],UNcountrycodes[M49 Code],0)),"") -> South-eastern Asia | U12: =IFERROR(INDEX(RegionClassification[FAO region],MATCH(FAOdata[[#This Row],[UN sub-region]],RegionClassification[UN region],0)),"") -> South and Southeast Asia | V12: =INDEX(FAO_IFC_Commodity[IFC commodity], MATCH(FAOdata[[#This Row],[commodity]],FAO_IFC_Commodity[FAO commodity],0)) -> 0 | W12: =IFERROR(INDEX(IFC_Commodity_CommodityGroup[IFC Commodity group],MATCH(FAOdata[[#This Row],[IFC Commodity]],IFC_Commodity_CommodityGroup[IFC Commodity], 0)),"") ->  | X12: =IFERROR(INDEX(IFC_Commodity_CommodityGroup[FAO commodity group], MATCH(FAOdata[[#This Row],[IFC Commodity]],IFC_Commodity_CommodityGroup[IFC Commodity],0)),"") ->  | Y12: =IFERROR(INDEX(FTS[[#All],[IFC Supply Chain Stage]],MATCH(FAOdata[[#This Row],[food_supply_stage]],FTS[[#All],[fsc_location1]],0)),"") -> 0
A13: 104 | B13: Myanmar | D13: 142 | E13: Groundnuts, excluding shelled | F13: 2005 | G13: 5 | H13: 0.05 | I13: 51970 | K13: Whole supply chain | O13: FAO's annual Agriculture Production Questionnaires | P13: FAO Sources | S13: =IFERROR(INDEX(UNcountrycodes[Region Name],MATCH(FAOdata[[#This Row],[m49_code]],UNcountrycodes[M49 Code],0)),"") -> Asia | T13: =IFERROR(INDEX(UNcountrycodes[Sub-region Name], MATCH(FAOdata[[#This Row],[m49_code]],UNcountrycodes[M49 Code],0)),"") -> South-eastern Asia | U13: =IFERROR(INDEX(RegionClassification[FAO region],MATCH(FAOdata[[#This Row],[UN sub-region]],RegionClassification[UN region],0)),"") -> South and Southeast Asia | V13: =INDEX(FAO_IFC_Commodity[IFC commodity], MATCH(FAOdata[[#This Row],[commodity]],FAO_IFC_Commodity[FAO commodity],0)) -> 0 | W13: =IFERROR(INDEX(IFC_Commodity_CommodityGroup[IFC Commodity group],MATCH(FAOdata[[#This Row],[IFC Commodity]],IFC_Commodity_CommodityGroup[IFC Commodity], 0)),"") ->  | X13: =IFERROR(INDEX(IFC_Commodity_CommodityGroup[FAO commodity group], MATCH(FAOdata[[#This Row],[IFC Commodity]],IFC_Commodity_CommodityGroup[IFC Commodity],0)),"") ->  | Y13: =IFERROR(INDEX(FTS[[#All],[IFC Supply Chain Stage]],MATCH(FAOdata[[#This Row],[food_supply_stage]],FTS[[#All],[fsc_location1]],0)),"") -> 0
A14: 104 | B14: Myanmar | D14: 142 | E14: Groundnuts, excluding shelled | F14: 2004 | G14: 5 | H14: 0.05 | I14: 47310 | K14: Whole supply chain | O14: FAO's annual Agriculture Production Questionnaires | P14: FAO Sources | S14: =IFERROR(INDEX(UNcountrycodes[Region Name],MATCH(FAOdata[[#This Row],[m49_code]],UNcountrycodes[M49 Code],0)),"") -> Asia | T14: =IFERROR(INDEX(UNcountrycodes[Sub-region Name], MATCH(FAOdata[[#This Row],[m49_code]],UNcountrycodes[M49 Code],0)),"") -> South-eastern Asia | U14: =IFERROR(INDEX(RegionClassification[FAO region],MATCH(FAOdata[[#This Row],[UN sub-region]],RegionClassification[UN region],0)),"") -> South and Southeast Asia | V14: =INDEX(FAO_IFC_Commodity[IFC commodity], MATCH(FAOdata[[#This Row],[commodity]],FAO_IFC_Commodity[FAO commodity],0)) -> 0 | W14: =IFERROR(INDEX(IFC_Commodity_CommodityGroup[IFC Commodity group],MATCH(FAOdata[[#This Row],[IFC Commodity]],IFC_Commodity_CommodityGroup[IFC Commodity], 0)),"") ->  | X14: =IFERROR(INDEX(IFC_Commodity_CommodityGroup[FAO commodity group], MATCH(FAOdata[[#This Row],[IFC Commodity]],IFC_Commodity_CommodityGroup[IFC Commodity],0)),"") ->  | Y14: =IFERROR(INDEX(FTS[[#All],[IFC Supply Chain Stage]],MATCH(FAOdata[[#This Row],[food_supply_stage]],FTS[[#All],[fsc_location1]],0)),"") -> 0
A15: 104 | B15: Myanmar | D15: 142 | E15: Groundnuts, excluding shelled | F15: 2003 | G15: 5 | H15: 0.05 | I15: 43880 | K15: Whole supply chain | O15: FAO's annual Agriculture Production Questionnaires | P15: FAO Sources | S15: =IFERROR(INDEX(UNcountrycodes[Region Name],MATCH(FAOdata[[#This Row],[m49_code]],UNcountrycodes[M49 Code],0)),"") -> Asia | T15: =IFERROR(INDEX(UNcountrycodes[Sub-region Name], MATCH(FAOdata[[#This Row],[m49_code]],UNcountrycodes[M49 Code],0)),"") -> South-eastern Asia | U15: =IFERROR(INDEX(RegionClassification[FAO region],MATCH(FAOdata[[#This Row],[UN sub-region]],RegionClassification[UN region],0)),"") -> South and Southeast Asia | V15: =INDEX(FAO_IFC_Commodity[IFC commodity], MATCH(FAOdata[[#This Row],[commodity]],FAO_IFC_Commodity[FAO commodity],0)) -> 0 | W15: =IFERROR(INDEX(IFC_Commodity_CommodityGroup[IFC Commodity group],MATCH(FAOdata[[#This Row],[IFC Commodity]],IFC_Commodity_CommodityGroup[IFC Commodity], 0)),"") ->  | X15: =IFERROR(INDEX(IFC_Commodity_CommodityGroup[FAO commodity group], MATCH(FAOdata[[#This Row],[IFC Commodity]],IFC_Commodity_CommodityGroup[IFC Commodity],0)),"") ->  | Y15: =IFERROR(INDEX(FTS[[#All],[IFC Supply Chain Stage]],MATCH(FAOdata[[#This Row],[food_supply_stage]],FTS[[#All],[fsc_location1]],0)),"") -> 0
A16: 104 | B16: Myanmar | D16: 113 | E16: Rice | F16: 1994 | G16: 2.1 | H16: 2.1 | K16: Harvest | M16: Too Mature, Leading To Breakage | Q16: http://www.fao.org/docrep/004/ac301e/AC301e04.htm#3.1 Methodological problems | S16: =IFERROR(INDEX(UNcountrycodes[Region Name],MATCH(FAOdata[[#This Row],[m49_code]],UNcountrycodes[M49 Code],0)),"") -> Asia | T16: =IFERROR(INDEX(UNcountrycodes[Sub-region Name], MATCH(FAOdata[[#This Row],[m49_code]],UNcountrycodes[M49 Code],0)),"") -> South-eastern Asia | U16: =IFERROR(INDEX(RegionClassification[FAO region],MATCH(FAOdata[[#This Row],[UN sub-region]],RegionClassification[UN region],0)),"") -> South and Southeast Asia | V16: =INDEX(FAO_IFC_Commodity[IFC commodity], MATCH(FAOdata[[#This Row],[commodity]],FAO_IFC_Commodity[FAO commodity],0)) -> Rice | W16: =IFERROR(INDEX(IFC_Commodity_CommodityGroup[IFC Commodity group],MATCH(FAOdata[[#This Row],[IFC Commodity]],IFC_Commodity_CommodityGroup[IFC Commodity], 0)),"") -> Pulses & Grains | X16: =IFERROR(INDEX(IFC_Commodity_CommodityGroup[FAO commodity group], MATCH(FAOdata[[#This Row],[IFC Commodity]],IFC_Commodity_CommodityGroup[IFC Commodity],0)),"") -> Cereals | Y16: =IFERROR(INDEX(FTS[[#All],[IFC Supply Chain Stage]],MATCH(FAOdata[[#This Row],[food_supply_stage]],FTS[[#All],[fsc_location1]],0)),"") -> 0
A17: 104 | B17: Myanmar | D17: 113 | E17: Rice | F17: 1994 | G17: 0.5 | H17: 0.5 | K17: Farm | M17: Field Stacking And Bundling | Q17: http://www.fao.org/docrep/004/ac301e/AC301e04.htm#3.1 Methodological problems | S17: =IFERROR(INDEX(UNcountrycodes[Region Name],MATCH(FAOdata[[#This Row],[m49_code]],UNcountrycodes[M49 Code],0)),"") -> Asia | T17: =IFERROR(INDEX(UNcountrycodes[Sub-region Name], MATCH(FAOdata[[#This Row],[m49_code]],UNcountrycodes[M49 Code],0)),"") -> South-eastern Asia | U17: =IFERROR(INDEX(RegionClassification[FAO region],MATCH(FAOdata[[#This Row],[UN sub-region]],RegionClassification[UN region],0)),"") -> South and Southeast Asia | V17: =INDEX(FAO_IFC_Commodity[IFC commodity], MATCH(FAOdata[[#This Row],[commodity]],FAO_IFC_Commodity[FAO commodity],0)) -> Rice | W17: =IFERROR(INDEX(IFC_Commodity_CommodityGroup[IFC Commodity group],MATCH(FAOdata[[#This Row],[IFC Commodity]],IFC_Commodity_CommodityGroup[IFC Commodity], 0)),"") -> Pulses & Grains | X17: =IFERROR(INDEX(IFC_Commodity_CommodityGroup[FAO commodity group], MATCH(FAOdata[[#This Row],[IFC Commodity]],IFC_Commodity_CommodityGroup[IFC Commodity],0)),"") -> Cereals | Y17: =IFERROR(INDEX(FTS[[#All],[IFC Supply Chain Stage]],MATCH(FAOdata[[#This Row],[food_supply_stage]],FTS[[#All],[fsc_location1]],0)),"") -> Production
A18: 104 | B18: Myanmar | D18: 113 | E18: Rice | F18: 1994 | G18: 5.2 | H18: 5.2 | K18: Farm | M18: Reaper-Binder | P18: (Calverley: evaluation of 11 FAO projects in Asia) | Q18: http://www.fao.org/docrep/004/ac301e/AC301e04.htm#3.1 Methodological problems | S18: =IFERROR(INDEX(UNcountrycodes[Region Name],MATCH(FAOdata[[#This Row],[m49_code]],UNcountrycodes[M49 Code],0)),"") -> Asia | T18: =IFERROR(INDEX(UNcountrycodes[Sub-region Name], MATCH(FAOdata[[#This Row],[m49_code]],UNcountrycodes[M49 Code],0)),"") -> South-eastern Asia | U18: =IFERROR(INDEX(RegionClassification[FAO region],MATCH(FAOdata[[#This Row],[UN sub-region]],RegionClassification[UN region],0)),"") -> South and Southeast Asia | V18: =INDEX(FAO_IFC_Commodity[IFC commodity], MATCH(FAOdata[[#This Row],[commodity]],FAO_IFC_Commodity[FAO commodity],0)) -> Rice | W18: =IFERROR(INDEX(IFC_Commodity_CommodityGroup[IFC Commodity group],MATCH(FAOdata[[#This Row],[IFC Commodity]],IFC_Commodity_CommodityGroup[IFC Commodity], 0)),"") -> Pulses & Grains | X18: =IFERROR(INDEX(IFC_Commodity_CommodityGroup[FAO commodity group], MATCH(FAOdata[[#This Row],[IFC Commodity]],IFC_Commodity_CommodityGroup[IFC Commodity],0)),"") -> Cereals | Y18: =IFERROR(INDEX(FTS[[#All],[IFC Supply Chain Stage]],MATCH(FAOdata[[#This Row],[food_supply_stage]],FTS[[#All],[fsc_location1]],0)),"") -> Production
A19: 104 | B19: Myanmar | D19: 113 | E19: Rice | F19: 1994 | G19: 1.9 | H19: 1.9 | K19: Harvest | M19: Traditional Hand Cutting | P19: (Calverley: evaluation of 11 FAO projects in Asia) | Q19: http://www.fao.org/docrep/004/ac301e/AC301e04.htm#3.1 Methodological problems | S19: =IFERROR(INDEX(UNcountrycodes[Region Name],MATCH(FAOdata[[#This Row],[m49_code]],UNcountrycodes[M49 Code],0)),"") -> Asia | T19: =IFERROR(INDEX(UNcountrycodes[Sub-region Name], MATCH(FAOdata[[#This Row],[m49_code]],UNcountrycodes[M49 Code],0)),"") -> South-eastern Asia | U19: =IFERROR(INDEX(RegionClassification[FAO region],MATCH(FAOdata[[#This Row],[UN sub-region]],RegionClassification[UN region],0)),"") -> South and Southeast Asia | V19: =INDEX(FAO_IFC_Commodity[IFC commodity], MATCH(FAOdata[[#This Row],[commodity]],FAO_IFC_Commodity[FAO commodity],0)) -> Rice | W19: =IFERROR(INDEX(IFC_Commodity_CommodityGroup[IFC Commodity group],MATCH(FAOdata[[#This Row],[IFC Commodity]],IFC_Commodity_CommodityGroup[IFC Commodity], 0)),"") -> Pulses & Grains | X19: =IFERROR(INDEX(IFC_Commodity_CommodityGroup[FAO commodity group], MATCH(FAOdata[[#This Row],[IFC Commodity]],IFC_Commodity_CommodityGroup[IFC Commodity],0)),"") -> Cereals | Y19: =IFERROR(INDEX(FTS[[#All],[IFC Supply Chain Stage]],MATCH(FAOdata[[#This Row],[food_supply_stage]],FTS[[#All],[fsc_location1]],0)),"") -> 0
A20: 104 | B20: Myanmar | D20: 113 | E20: Rice | F20: 1994 | G20: 2.1 | H20: 2.1 | J20: Harvesting | K20: Harvest | M20: Combine-Harvester | P20: (Calverley: evaluation of 11 FAO projects in Asia) | Q20: http://www.fao.org/docrep/004/ac301e/AC301e04.htm#3.1 Methodological problems | S20: =IFERROR(INDEX(UNcountrycodes[Region Name],MATCH(FAOdata[[#This Row],[m49_code]],UNcountrycodes[M49 Code],0)),"") -> Asia | T20: =IFERROR(INDEX(UNcountrycodes[Sub-region Name], MATCH(FAOdata[[#This Row],[m49_code]],UNcountrycodes[M49 Code],0)),"") -> South-eastern Asia | U20: =IFERROR(INDEX(RegionClassification[FAO region],MATCH(FAOdata[[#This Row],[UN sub-region]],RegionClassification[UN region],0)),"") -> South and Southeast Asia | V20: =INDEX(FAO_IFC_Commodity[IFC commodity], MATCH(FAOdata[[#This Row],[commodity]],FAO_IFC_Commodity[FAO commodity],0)) -> Rice | W20: =IFERROR(INDEX(IFC_Commodity_CommodityGroup[IFC Commodity group],MATCH(FAOdata[[#This Row],[IFC Commodity]],IFC_Commodity_CommodityGroup[IFC Commodity], 0)),"") -> Pulses & Grains | X20: =IFERROR(INDEX(IFC_Commodity_CommodityGroup[FAO commodity group], MATCH(FAOdata[[#This Row],[IFC Commodity]],IFC_Commodity_CommodityGroup[IFC Commodity],0)),"") -> Cereals | Y20: =IFERROR(INDEX(FTS[[#All],[IFC Supply Chain Stage]],MATCH(FAOdata[[#This Row],[food_supply_stage]],FTS[[#All],[fsc_location1]],0)),"") -> 0
A21: 104 | B21: Myanmar | D21: 113 | E21: Rice | F21: 1994 | G21: 5.4 | H21: 5.4 | K21: Harvest | M21: Shoulder Power Reaper | P21: (Calverley: evaluation of 11 FAO projects in Asia) | Q21: http://www.fao.org/docrep/004/ac301e/AC301e04.htm#3.1 Methodological problems | S21: =IFERROR(INDEX(UNcountrycodes[Region Name],MATCH(FAOdata[[#This Row],[m49_code]],UNcountrycodes[M49 Code],0)),"") -> Asia | T21: =IFERROR(INDEX(UNcountrycodes[Sub-region Name], MATCH(FAOdata[[#This Row],[m49_code]],UNcountrycodes[M49 Code],0)),"") -> South-eastern Asia | U21: =IFERROR(INDEX(RegionClassification[FAO region],MATCH(FAOdata[[#This Row],[UN sub-region]],RegionClassification[UN region],0)),"") -> South and Southeast Asia | V21: =INDEX(FAO_IFC_Commodity[IFC commodity], MATCH(FAOdata[[#This Row],[commodity]],FAO_IFC_Commodity[FAO commodity],0)) -> Rice | W21: =IFERROR(INDEX(IFC_Commodity_CommodityGroup[IFC Commodity group],MATCH(FAOdata[[#This Row],[IFC Commodity]],IFC_Commodity_CommodityGroup[IFC Commodity], 0)),"") -> Pulses & Grains | X21: =IFERROR(INDEX(IFC_Commodity_CommodityGroup[FAO commodity group], MATCH(FAOdata[[#This Row],[IFC Commodity]],IFC_Commodity_CommodityGroup[IFC Commodity],0)),"") -> Cereals | Y21: =IFERROR(INDEX(FTS[[#All],[IFC Supply Chain Stage]],MATCH(FAOdata[[#This Row],[food_supply_stage]],FTS[[#All],[fsc_location1]],0)),"") -> 0
A22: 108 | B22: Burundi | D22: 111 | E22: Wheat | F22: 2020 | G22: 3.5 | H22: 3.5 | J22: Shelling, Threshing | K22: Farm | O22: Modelled Estimates | Q22: https://www.aphlis.net/en/page/20/data-tables#/datatables?tab=value_chain&metric=prc | S22: =IFERROR(INDEX(UNcountrycodes[Region Name],MATCH(FAOdata[[#This Row],[m49_code]],UNcountrycodes[M49 Code],0)),"") -> Africa | T22: =IFERROR(INDEX(UNcountrycodes[Sub-region Name], MATCH(FAOdata[[#This Row],[m49_code]],UNcountrycodes[M49 Code],0)),"") -> Sub-Saharan Africa | U22: =IFERROR(INDEX(RegionClassification[FAO region],MATCH(FAOdata[[#This Row],[UN sub-region]],RegionClassification[UN region],0)),"") -> Sub-Saharan Africa | V22: =INDEX(FAO_IFC_Commodity[IFC commodity], MATCH(FAOdata[[#This Row],[commodity]],FAO_IFC_Commodity[FAO commodity],0)) -> Wheat | W22: =IFERROR(INDEX(IFC_Commodity_CommodityGroup[IFC Commodity group],MATCH(FAOdata[[#This Row],[IFC Commodity]],IFC_Commodity_CommodityGroup[IFC Commodity], 0)),"") -> Pulses & Grains | X22: =IFERROR(INDEX(IFC_Commodity_CommodityGroup[FAO commodity group], MATCH(FAOdata[[#This Row],[IFC Commodity]],IFC_Commodity_CommodityGroup[IFC Commodity],0)),"") -> Cereals | Y22: =IFERROR(INDEX(FTS[[#All],[IFC Supply Chain Stage]],MATCH(FAOdata[[#This Row],[food_supply_stage]],FTS[[#All],[fsc_location1]],0)),"") -> Production
A23: 108 | B23: Burundi | D23: 111 | E23: Wheat | F23: 2020 | G23: 4.87 | H23: 4.87 | J23: Storage | K23: Farm | O23: Modelled Estimates | Q23: https://www.aphlis.net/en/page/20/data-tables#/datatables?tab=value_chain&metric=prc | S23: =IFERROR(INDEX(UNcountrycodes[Region Name],MATCH(FAOdata[[#This Row],[m49_code]],UNcountrycodes[M49 Code],0)),"") -> Africa | T23: =IFERROR(INDEX(UNcountrycodes[Sub-region Name], MATCH(FAOdata[[#This Row],[m49_code]],UNcountrycodes[M49 Code],0)),"") -> Sub-Saharan Africa | U23: =IFERROR(INDEX(RegionClassification[FAO region],MATCH(FAOdata[[#This Row],[UN sub-region]],RegionClassification[UN region],0)),"") -> Sub-Saharan Africa | V23: =INDEX(FAO_IFC_Commodity[IFC commodity], MATCH(FAOdata[[#This Row],[commodity]],FAO_IFC_Commodity[FAO commodity],0)) -> Wheat | W23: =IFERROR(INDEX(IFC_Commodity_CommodityGroup[IFC Commodity group],MATCH(FAOdata[[#This Row],[IFC Commodity]],IFC_Commodity_CommodityGroup[IFC Commodity], 0)),"") -> Pulses & Grains | X23: =IFERROR(INDEX(IFC_Commodity_CommodityGroup[FAO commodity group], MATCH(FAOdata[[#This Row],[IFC Commodity]],IFC_Commodity_CommodityGroup[IFC Commodity],0)),"") -> Cereals | Y23: =IFERROR(INDEX(FTS[[#All],[IFC Supply Chain Stage]],MATCH(FAOdata[[#This Row],[food_supply_stage]],FTS[[#All],[fsc_location1]],0)),"") -> Production
A24: 108 | B24: Burundi | D24: 111 | E24: Wheat | F24: 2020 | G24: 2.5 | H24: 2.5 | J24: Transportation | K24: Farm | O24: Modelled Estimates | Q24: https://www.aphlis.net/en/page/20/data-tables#/datatables?tab=value_chain&metric=prc | S24: =IFERROR(INDEX(UNcountrycodes[Region Name],MATCH(FAOdata[[#This Row],[m49_code]],UNcountrycodes[M49 Code],0)),"") -> Africa | T24: =IFERROR(INDEX(UNcountrycodes[Sub-region Name], MATCH(FAOdata[[#This Row],[m49_code]],UNcountrycodes[M49 Code],0)),"") -> Sub-Saharan Africa | U24: =IFERROR(INDEX(RegionClassification[FAO region],MATCH(FAOdata[[#This Row],[UN sub-region]],RegionClassification[UN region],0)),"") -> Sub-Saharan Africa | V24: =INDEX(FAO_IFC_Commodity[IFC commodity], MATCH(FAOdata[[#This Row],[commodity]],FAO_IFC_Commodity[FAO commodity],0)) -> Wheat | W24: =IFERROR(INDEX(IFC_Commodity_CommodityGroup[IFC Commodity group],MATCH(FAOdata[[#This Row],[IFC Commodity]],IFC_Commodity_CommodityGroup[IFC Commodity], 0)),"") -> Pulses & Grains | X24: =IFERROR(INDEX(IFC_Commodity_CommodityGroup[FAO commodity group], MATCH(FAOdata[[#This Row],[IFC Commodity]],IFC_Commodity_CommodityGroup[IFC Commodity],0)),"") -> Cereals | Y24: =IFERROR(INDEX(FTS[[#All],[IFC Supply Chain Stage]],MATCH(FAOdata[[#This Row],[food_supply_stage]],FTS[[#All],[fsc_location1]],0)),"") -> Production
A25: 108 | B25: Burundi | D25: 111 | E25: Wheat | F25: 2020 | G25: 4.43 | H25: 4.43 | J25: Drying, Harvesting | K25: Harvest | O25: Modelled Estimates | Q25: https://www.aphlis.net/en/page/20/data-tables#/datatables?tab=value_chain&metric=prc | S25: =IFERROR(INDEX(UNcountrycodes[Region Name],MATCH(FAOdata[[#This Row],[m49_code]],UNcountrycodes[M49 Code],0)),"") -> Africa | T25: =IFERROR(INDEX(UNcountrycodes[Sub-region Name], MATCH(FAOdata[[#This Row],[m49_code]],UNcountrycodes[M49 Code],0)),"") -> Sub-Saharan Africa | U25: =IFERROR(INDEX(RegionClassification[FAO region],MATCH(FAOdata[[#This Row],[UN sub-region]],RegionClassification[UN region],0)),"") -> Sub-Saharan Africa | V25: =INDEX(FAO_IFC_Commodity[IFC commodity], MATCH(FAOdata[[#This Row],[commodity]],FAO_IFC_Commodity[FAO commodity],0)) -> Wheat | W25: =IFERROR(INDEX(IFC_Commodity_CommodityGroup[IFC Commodity group],MATCH(FAOdata[[#This Row],[IFC Commodity]],IFC_Commodity_CommodityGroup[IFC Commodity], 0)),"") -> Pulses & Grains | X25: =IFERROR(INDEX(IFC_Commodity_CommodityGroup[FAO commodity group], MATCH(FAOdata[[#This Row],[IFC Commodity]],IFC_Commodity_CommodityGroup[IFC Commodity],0)),"") -> Cereals | Y25: =IFERROR(INDEX(FTS[[#All],[IFC Supply Chain Stage]],MATCH(FAOdata[[#This Row],[food_supply_stage]],FTS[[#All],[fsc_location1]],0)),"") -> 0
A26: 108 | B26: Burundi | D26: 112 | E26: Maize (corn) | F26: 2020 | G26: 4 | H26: 4 | J26: Drying | K26: Farm | O26: Modelled Estimates | Q26: https://www.aphlis.net/en/page/20/data-tables#/datatables?tab=value_chain&metric=prc | S26: =IFERROR(INDEX(UNcountrycodes[Region Name],MATCH(FAOdata[[#This Row],[m49_code]],UNcountrycodes[M49 Code],0)),"") -> Africa | T26: =IFERROR(INDEX(UNcountrycodes[Sub-region Name], MATCH(FAOdata[[#This Row],[m49_code]],UNcountrycodes[M49 Code],0)),"") -> Sub-Saharan Africa | U26: =IFERROR(INDEX(RegionClassification[FAO region],MATCH(FAOdata[[#This Row],[UN sub-region]],RegionClassification[UN region],0)),"") -> Sub-Saharan Africa | V26: =INDEX(FAO_IFC_Commodity[IFC commodity], MATCH(FAOdata[[#This Row],[commodity]],FAO_IFC_Commodity[FAO commodity],0)) -> Maize | W26: =IFERROR(INDEX(IFC_Commodity_CommodityGroup[IFC Commodity group],MATCH(FAOdata[[#This Row],[IFC Commodity]],IFC_Commodity_CommodityGroup[IFC Commodity], 0)),"") -> Pulses & Grains | X26: =IFERROR(INDEX(IFC_Commodity_CommodityGroup[FAO commodity group], MATCH(FAOdata[[#This Row],[IFC Commodity]],IFC_Commodity_CommodityGroup[IFC Commodity],0)),"") -> Cereals | Y26: =IFERROR(INDEX(FTS[[#All],[IFC Supply Chain Stage]],MATCH(FAOdata[[#This Row],[food_supply_stage]],FTS[[#All],[fsc_location1]],0)),"") -> Production
A27: 108 | B27: Burundi | D27: 112 | E27: Maize (corn) | F27: 2020 | G27: 1.32 | H27: 1.32 | J27: Shelling, Threshing | K27: Farm | O27: Modelled Estimates | Q27: https://www.aphlis.net/en/page/20/data-tables#/datatables?tab=value_chain&metric=prc | S27: =IFERROR(INDEX(UNcountrycodes[Region Name],MATCH(FAOdata[[#This Row],[m49_code]],UNcountrycodes[M49 Code],0)),"") -> Africa | T27: =IFERROR(INDEX(UNcountrycodes[Sub-region Name], MATCH(FAOdata[[#This Row],[m49_code]],UNcountrycodes[M49 Code],0)),"") -> Sub-Saharan Africa | U27: =IFERROR(INDEX(RegionClassification[FAO region],MATCH(FAOdata[[#This Row],[UN sub-region]],RegionClassification[UN region],0)),"") -> Sub-Saharan Africa | V27: =INDEX(FAO_IFC_Commodity[IFC commodity], MATCH(FAOdata[[#This Row],[commodity]],FAO_IFC_Commodity[FAO commodity],0)) -> Maize | W27: =IFERROR(INDEX(IFC_Commodity_CommodityGroup[IFC Commodity group],MATCH(FAOdata[[#This Row],[IFC Commodity]],IFC_Commodity_CommodityGroup[IFC Commodity], 0)),"") -> Pulses & Grains | X27: =IFERROR(INDEX(IFC_Commodity_CommodityGroup[FAO commodity group], MATCH(FAOdata[[#This Row],[IFC Commodity]],IFC_Commodity_CommodityGroup[IFC Commodity],0)),"") -> Cereals | Y27: =IFERROR(INDEX(FTS[[#All],[IFC Supply Chain Stage]],MATCH(FAOdata[[#This Row],[food_supply_stage]],FTS[[#All],[fsc_location1]],0)),"") -> Production
A28: 108 | B28: Burundi | D28: 112 | E28: Maize (corn) | F28: 2020 | G28: 6.42 | H28: 6.42 | J28: Drying, Harvesting | K28: Harvest | O28: Modelled Estimates | Q28: https://www.aphlis.net/en/page/20/data-tables#/datatables?tab=value_chain&metric=prc | S28: =IFERROR(INDEX(UNcountrycodes[Region Name],MATCH(FAOdata[[#This Row],[m49_code]],UNcountrycodes[M49 Code],0)),"") -> Africa | T28: =IFERROR(INDEX(UNcountrycodes[Sub-region Name], MATCH(FAOdata[[#This Row],[m49_code]],UNcountrycodes[M49 Code],0)),"") -> Sub-Saharan Africa | U28: =IFERROR(INDEX(RegionClassification[FAO region],MATCH(FAOdata[[#This Row],[UN sub-region]],RegionClassification[UN region],0)),"") -> Sub-Saharan Africa | V28: =INDEX(FAO_IFC_Commodity[IFC commodity], MATCH(FAOdata[[#This Row],[commodity]],FAO_IFC_Commodity[FAO commodity],0)) -> Maize | W28: =IFERROR(INDEX(IFC_Commodity_CommodityGroup[IFC Commodity group],MATCH(FAOdata[[#This Row],[IFC Commodity]],IFC_Commodity_CommodityGroup[IFC Commodity], 0)),"") -> Pulses & Grains | X28: =IFERROR(INDEX(IFC_Commodity_CommodityGroup[FAO commodity group], MATCH(FAOdata[[#This Row],[IFC Commodity]],IFC_Commodity_CommodityGroup[IFC Commodity],0)),"") -> Cereals | Y28: =IFERROR(INDEX(FTS[[#All],[IFC Supply Chain Stage]],MATCH(FAOdata[[#This Row],[food_supply_stage]],FTS[[#All],[fsc_location1]],0)),"") -> 0
A29: 108 | B29: Burundi | D29: 112 | E29: Maize (corn) | F29: 2020 | G29: 5.26 | H29: 5.26 | J29: Storage | K29: Farm | O29: Modelled Estimates | Q29: https://www.aphlis.net/en/page/20/data-tables#/datatables?tab=value_chain&metric=prc | S29: =IFERROR(INDEX(UNcountrycodes[Region Name],MATCH(FAOdata[[#This Row],[m49_code]],UNcountrycodes[M49 Code],0)),"") -> Africa | T29: =IFERROR(INDEX(UNcountrycodes[Sub-region Name], MATCH(FAOdata[[#This Row],[m49_code]],UNcountrycodes[M49 Code],0)),"") -> Sub-Saharan Africa | U29: =IFERROR(INDEX(RegionClassification[FAO region],MATCH(FAOdata[[#This Row],[UN sub-region]],RegionClassification[UN region],0)),"") -> Sub-Saharan Africa | V29: =INDEX(FAO_IFC_Commodity[IFC commodity], MATCH(FAOdata[[#This Row],[commodity]],FAO_IFC_Commodity[FAO commodity],0)) -> Maize | W29: =IFERROR(INDEX(IFC_Commodity_CommodityGroup[IFC Commodity group],MATCH(FAOdata[[#This Row],[IFC Commodity]],IFC_Commodity_CommodityGroup[IFC Commodity], 0)),"") -> Pulses & Grains | X29: =IFERROR(INDEX(IFC_Commodity_CommodityGroup[FAO commodity group], MATCH(FAOdata[[#This Row],[IFC Commodity]],IFC_Commodity_CommodityGroup[IFC Commodity],0)),"") -> Cereals | Y29: =IFERROR(INDEX(FTS[[#All],[IFC Supply Chain Stage]],MATCH(FAOdata[[#This Row],[food_supply_stage]],FTS[[#All],[fsc_location1]],0)),"") -> Production
A30: 108 | B30: Burundi | D30: 112 | E30: Maize (corn) | F30: 2020 | G30: 2.36 | H30: 2.36 | J30: Transportation | K30: Farm | O30: Modelled Estimates | Q30: https://www.aphlis.net/en/page/20/data-tables#/datatables?tab=value_chain&metric=prc | S30: =IFERROR(INDEX(UNcountrycodes[Region Name],MATCH(FAOdata[[#This Row],[m49_code]],UNcountrycodes[M49 Code],0)),"") -> Africa | T30: =IFERROR(INDEX(UNcountrycodes[Sub-region Name], MATCH(FAOdata[[#This Row],[m49_code]],UNcountrycodes[M49 Code],0)),"") -> Sub-Saharan Africa | U30: =IFERROR(INDEX(RegionClassification[FAO region],MATCH(FAOdata[[#This Row],[UN sub-region]],RegionClassification[UN region],0)),"") -> Sub-Saharan Africa | V30: =INDEX(FAO_IFC_Commodity[IFC commodity], MATCH(FAOdata[[#This Row],[commodity]],FAO_IFC_Commodity[FAO commodity],0)) -> Maize | W30: =IFERROR(INDEX(IFC_Commodity_CommodityGroup[IFC Commodity group],MATCH(FAOdata[[#This Row],[IFC Commodity]],IFC_Commodity_CommodityGroup[IFC Commodity], 0)),"") -> Pulses & Grains | X30: =IFERROR(INDEX(IFC_Commodity_CommodityGroup[FAO commodity group], MATCH(FAOdata[[#This Row],[IFC Commodity]],IFC_Commodity_CommodityGroup[IFC Commodity],0)),"") -> Cereals | Y30: =IFERROR(INDEX(FTS[[#All],[IFC Supply Chain Stage]],MATCH(FAOdata[[#This Row],[food_supply_stage]],FTS[[#All],[fsc_location1]],0)),"") -> Production
A31: 108 | B31: Burundi | D31: 113 | E31: Rice | F31: 2020 | G31: 3.14 | H31: 3.14 | J31: Shelling, Threshing | K31: Farm | O31: Modelled Estimates | Q31: https://www.aphlis.net/en/page/20/data-tables#/datatables?tab=value_chain&metric=prc | S31: =IFERROR(INDEX(UNcountrycodes[Region Name],MATCH(FAOdata[[#This Row],[m49_code]],UNcountrycodes[M49 Code],0)),"") -> Africa | T31: =IFERROR(INDEX(UNcountrycodes[Sub-region Name], MATCH(FAOdata[[#This Row],[m49_code]],UNcountrycodes[M49 Code],0)),"") -> Sub-Saharan Africa | U31: =IFERROR(INDEX(RegionClassification[FAO region],MATCH(FAOdata[[#This Row],[UN sub-region]],RegionClassification[UN region],0)),"") -> Sub-Saharan Africa | V31: =INDEX(FAO_IFC_Commodity[IFC commodity], MATCH(FAOdata[[#This Row],[commodity]],FAO_IFC_Commodity[FAO commodity],0)) -> Rice | W31: =IFERROR(INDEX(IFC_Commodity_CommodityGroup[IFC Commodity group],MATCH(FAOdata[[#This Row],[IFC Commodity]],IFC_Commodity_CommodityGroup[IFC Commodity], 0)),"") -> Pulses & Grains | X31: =IFERROR(INDEX(IFC_Commodity_CommodityGroup[FAO commodity group], MATCH(FAOdata[[#This Row],[IFC Commodity]],IFC_Commodity_CommodityGroup[IFC Commodity],0)),"") -> Cereals | Y31: =IFERROR(INDEX(FTS[[#All],[IFC Supply Chain Stage]],MATCH(FAOdata[[#This Row],[food_supply_stage]],FTS[[#All],[fsc_location1]],0)),"") -> Production
A32: 108 | B32: Burundi | D32: 113 | E32: Rice | F32: 2020 | G32: 4.4 | H32: 4.4 | J32: Drying, Harvesting | K32: Harvest | O32: Modelled Estimates | Q32: https://www.aphlis.net/en/page/20/data-tables#/datatables?tab=value_chain&metric=prc | S32: =IFERROR(INDEX(UNcountrycodes[Region Name],MATCH(FAOdata[[#This Row],[m49_code]],UNcountrycodes[M49 Code],0)),"") -> Africa | T32: =IFERROR(INDEX(UNcountrycodes[Sub-region Name], MATCH(FAOdata[[#This Row],[m49_code]],UNcountrycodes[M49 Code],0)),"") -> Sub-Saharan Africa | U32: =IFERROR(INDEX(RegionClassification[FAO region],MATCH(FAOdata[[#This Row],[UN sub-region]],RegionClassification[UN region],0)),"") -> Sub-Saharan Africa | V32: =INDEX(FAO_IFC_Commodity[IFC commodity], MATCH(FAOdata[[#This Row],[commodity]],FAO_IFC_Commodity[FAO commodity],0)) -> Rice | W32: =IFERROR(INDEX(IFC_Commodity_CommodityGroup[IFC Commodity group],MATCH(FAOdata[[#This Row],[IFC Commodity]],IFC_Commodity_CommodityGroup[IFC Commodity], 0)),"") -> Pulses & Grains | X32: =IFERROR(INDEX(IFC_Commodity_CommodityGroup[FAO commodity group], MATCH(FAOdata[[#This Row],[IFC Commodity]],IFC_Commodity_CommodityGroup[IFC Commodity],0)),"") -> Cereals | Y32: =IFERROR(INDEX(FTS[[#All],[IFC Supply Chain Stage]],MATCH(FAOdata[[#This Row],[food_supply_stage]],FTS[[#All],[fsc_location1]],0)),"") -> 0
A33: 108 | B33: Burundi | D33: 113 | E33: Rice | F33: 2020 | G33: 2.5 | H33: 2.5 | J33: Winnowing | K33: Farm | O33: Modelled Estimates | Q33: https://www.aphlis.net/en/page/20/data-tables#/datatables?tab=value_chain&metric=prc | S33: =IFERROR(INDEX(UNcountrycodes[Region Name],MATCH(FAOdata[[#This Row],[m49_code]],UNcountrycodes[M49 Code],0)),"") -> Africa | T33: =IFERROR(INDEX(UNcountrycodes[Sub-region Name], MATCH(FAOdata[[#This Row],[m49_code]],UNcountrycodes[M49 Code],0)),"") -> Sub-Saharan Africa | U33: =IFERROR(INDEX(RegionClassification[FAO region],MATCH(FAOdata[[#This Row],[UN sub-region]],RegionClassification[UN region],0)),"") -> Sub-Saharan Africa | V33: =INDEX(FAO_IFC_Commodity[IFC commodity], MATCH(FAOdata[[#This Row],[commodity]],FAO_IFC_Commodity[FAO commodity],0)) -> Rice | W33: =IFERROR(INDEX(IFC_Commodity_CommodityGroup[IFC Commodity group],MATCH(FAOdata[[#This Row],[IFC Commodity]],IFC_Commodity_CommodityGroup[IFC Commodity], 0)),"") -> Pulses & Grains | X33: =IFERROR(INDEX(IFC_Commodity_CommodityGroup[FAO commodity group], MATCH(FAOdata[[#This Row],[IFC Commodity]],IFC_Commodity_CommodityGroup[IFC Commodity],0)),"") -> Cereals | Y33: =IFERROR(INDEX(FTS[[#All],[IFC Supply Chain Stage]],MATCH(FAOdata[[#This Row],[food_supply_stage]],FTS[[#All],[fsc_location1]],0)),"") -> Production
A34: 108 | B34: Burundi | D34: 113 | E34: Rice | F34: 2020 | G34: 1.2 | H34: 1.2 | J34: Storage | K34: Farm | O34: Modelled Estimates | Q34: https://www.aphlis.net/en/page/20/data-tables#/datatables?tab=value_chain&metric=prc | S34: =IFERROR(INDEX(UNcountrycodes[Region Name],MATCH(FAOdata[[#This Row],[m49_code]],UNcountrycodes[M49 Code],0)),"") -> Africa | T34: =IFERROR(INDEX(UNcountrycodes[Sub-region Name], MATCH(FAOdata[[#This Row],[m49_code]],UNcountrycodes[M49 Code],0)),"") -> Sub-Saharan Africa | U34: =IFERROR(INDEX(RegionClassification[FAO region],MATCH(FAOdata[[#This Row],[UN sub-region]],RegionClassification[UN region],0)),"") -> Sub-Saharan Africa | V34: =INDEX(FAO_IFC_Commodity[IFC commodity], MATCH(FAOdata[[#This Row],[commodity]],FAO_IFC_Commodity[FAO commodity],0)) -> Rice | W34: =IFERROR(INDEX(IFC_Commodity_CommodityGroup[IFC Commodity group],MATCH(FAOdata[[#This Row],[IFC Commodity]],IFC_Commodity_CommodityGroup[IFC Commodity], 0)),"") -> Pulses & Grains | X34: =IFERROR(INDEX(IFC_Commodity_CommodityGroup[FAO commodity group], MATCH(FAOdata[[#This Row],[IFC Commodity]],IFC_Commodity_CommodityGroup[IFC Commodity],0)),"") -> Cereals | Y34: =IFERROR(INDEX(FTS[[#All],[IFC Supply Chain Stage]],MATCH(FAOdata[[#This Row],[food_supply_stage]],FTS[[#All],[fsc_location1]],0)),"") -> Production
A35: 108 | B35: Burundi | D35: 113 | E35: Rice | F35: 2020 | G35: 1.25 | H35: 1.25 | J35: Transportation | K35: Farm | O35: Modelled Estimates | Q35: https://www.aphlis.net/en/page/20/data-tables#/datatables?tab=value_chain&metric=prc | S35: =IFERROR(INDEX(UNcountrycodes[Region Name],MATCH(FAOdata[[#This Row],[m49_code]],UNcountrycodes[M49 Code],0)),"") -> Africa | T35: =IFERROR(INDEX(UNcountrycodes[Sub-region Name], MATCH(FAOdata[[#This Row],[m49_code]],UNcountrycodes[M49 Code],0)),"") -> Sub-Saharan Africa | U35: =IFERROR(INDEX(RegionClassification[FAO region],MATCH(FAOdata[[#This Row],[UN sub-region]],RegionClassification[UN region],0)),"") -> Sub-Saharan Africa | V35: =INDEX(FAO_IFC_Commodity[IFC commodity], MATCH(FAOdata[[#This Row],[commodity]],FAO_IFC_Commodity[FAO commodity],0)) -> Rice | W35: =IFERROR(INDEX(IFC_Commodity_CommodityGroup[IFC Commodity group],MATCH(FAOdata[[#This Row],[IFC Commodity]],IFC_Commodity_CommodityGroup[IFC Commodity], 0)),"") -> Pulses & Grains | X35: =IFERROR(INDEX(IFC_Commodity_CommodityGroup[FAO commodity group], MATCH(FAOdata[[#This Row],[IFC Commodity]],IFC_Commodity_CommodityGroup[IFC Commodity],0)),"") -> Cereals | Y35: =IFERROR(INDEX(FTS[[#All],[IFC Supply Chain Stage]],MATCH(FAOdata[[#This Row],[food_supply_stage]],FTS[[#All],[fsc_location1]],0)),"") -> Production
A36: 108 | B36: Burundi | D36: 114 | E36: Sorghum | F36: 2020 | G36: 3.6 | H36: 3.6 | J36: Shelling, Threshing | K36: Farm | O36: Modelled Estimates | Q36: https://www.aphlis.net/en/page/20/data-tables#/datatables?tab=value_chain&metric=prc | S36: =IFERROR(INDEX(UNcountrycodes[Region Name],MATCH(FAOdata[[#This Row],[m49_code]],UNcountrycodes[M49 Code],0)),"") -> Africa | T36: =IFERROR(INDEX(UNcountrycodes[Sub-region Name], MATCH(FAOdata[[#This Row],[m49_code]],UNcountrycodes[M49 Code],0)),"") -> Sub-Saharan Africa | U36: =IFERROR(INDEX(RegionClassification[FAO region],MATCH(FAOdata[[#This Row],[UN sub-region]],RegionClassification[UN region],0)),"") -> Sub-Saharan Africa | V36: =INDEX(FAO_IFC_Commodity[IFC commodity], MATCH(FAOdata[[#This Row],[commodity]],FAO_IFC_Commodity[FAO commodity],0)) -> Sorghum | W36: =IFERROR(INDEX(IFC_Commodity_CommodityGroup[IFC Commodity group],MATCH(FAOdata[[#This Row],[IFC Commodity]],IFC_Commodity_CommodityGroup[IFC Commodity], 0)),"") -> Pulses & Grains | X36: =IFERROR(INDEX(IFC_Commodity_CommodityGroup[FAO commodity group], MATCH(FAOdata[[#This Row],[IFC Commodity]],IFC_Commodity_CommodityGroup[IFC Commodity],0)),"") -> Cereals | Y36: =IFERROR(INDEX(FTS[[#All],[IFC Supply Chain Stage]],MATCH(FAOdata[[#This Row],[food_supply_stage]],FTS[[#All],[fsc_location1]],0)),"") -> Production
A37: 108 | B37: Burundi | D37: 114 | E37: Sorghum | F37: 2020 | G37: 4.55 | H37: 4.55 | J37: Drying, Harvesting | K37: Harvest | O37: Modelled Estimates | Q37: https://www.aphlis.net/en/page/20/data-tables#/datatables?tab=value_chain&metric=prc | S37: =IFERROR(INDEX(UNcountrycodes[Region Name],MATCH(FAOdata[[#This Row],[m49_code]],UNcountrycodes[M49 Code],0)),"") -> Africa | T37: =IFERROR(INDEX(UNcountrycodes[Sub-region Name], MATCH(FAOdata[[#This Row],[m49_code]],UNcountrycodes[M49 Code],0)),"") -> Sub-Saharan Africa | U37: =IFERROR(INDEX(RegionClassification[FAO region],MATCH(FAOdata[[#This Row],[UN sub-region]],RegionClassification[UN region],0)),"") -> Sub-Saharan Africa | V37: =INDEX(FAO_IFC_Commodity[IFC commodity], MATCH(FAOdata[[#This Row],[commodity]],FAO_IFC_Commodity[FAO commodity],0)) -> Sorghum | W37: =IFERROR(INDEX(IFC_Commodity_CommodityGroup[IFC Commodity group],MATCH(FAOdata[[#This Row],[IFC Commodity]],IFC_Commodity_CommodityGroup[IFC Commodity], 0)),"") -> Pulses & Grains | X37: =IFERROR(INDEX(IFC_Commodity_CommodityGroup[FAO commodity group], MATCH(FAOdata[[#This Row],[IFC Commodity]],IFC_Commodity_CommodityGroup[IFC Commodity],0)),"") -> Cereals | Y37: =IFERROR(INDEX(FTS[[#All],[IFC Supply Chain Stage]],MATCH(FAOdata[[#This Row],[food_supply_stage]],FTS[[#All],[fsc_location1]],0)),"") -> 0
A38: 108 | B38: Burundi | D38: 114 | E38: Sorghum | F38: 2020 | G38: 2.69 | H38: 2.69 | J38: Storage | K38: Farm | O38: Modelled Estimates | Q38: https://www.aphlis.net/en/page/20/data-tables#/datatables?tab=value_chain&metric=prc | S38: =IFERROR(INDEX(UNcountrycodes[Region Name],MATCH(FAOdata[[#This Row],[m49_code]],UNcountrycodes[M49 Code],0)),"") -> Africa | T38: =IFERROR(INDEX(UNcountrycodes[Sub-region Name], MATCH(FAOdata[[#This Row],[m49_code]],UNcountrycodes[M49 Code],0)),"") -> Sub-Saharan Africa | U38: =IFERROR(INDEX(RegionClassification[FAO region],MATCH(FAOdata[[#This Row],[UN sub-region]],RegionClassification[UN region],0)),"") -> Sub-Saharan Africa | V38: =INDEX(FAO_IFC_Commodity[IFC commodity], MATCH(FAOdata[[#This Row],[commodity]],FAO_IFC_Commodity[FAO commodity],0)) -> Sorghum | W38: =IFERROR(INDEX(IFC_Commodity_CommodityGroup[IFC Commodity group],MATCH(FAOdata[[#This Row],[IFC Commodity]],IFC_Commodity_CommodityGroup[IFC Commodity], 0)),"") -> Pulses & Grains | X38: =IFERROR(INDEX(IFC_Commodity_CommodityGroup[FAO commodity group], MATCH(FAOdata[[#This Row],[IFC Commodity]],IFC_Commodity_CommodityGroup[IFC Commodity],0)),"") -> Cereals | Y38: =IFERROR(INDEX(FTS[[#All],[IFC Supply Chain Stage]],MATCH(FAOdata[[#This Row],[food_supply_stage]],FTS[[#All],[fsc_location1]],0)),"") -> Production
A39: 108 | B39: Burundi | D39: 114 | E39: Sorghum | F39: 2020 | G39: 2.17 | H39: 2.17 | J39: Transportation | K39: Farm | O39: Modelled Estimates | Q39: https://www.aphlis.net/en/page/20/data-tables#/datatables?tab=value_chain&metric=prc | S39: =IFERROR(INDEX(UNcountrycodes[Region Name],MATCH(FAOdata[[#This Row],[m49_code]],UNcountrycodes[M49 Code],0)),"") -> Africa | T39: =IFERROR(INDEX(UNcountrycodes[Sub-region Name], MATCH(FAOdata[[#This Row],[m49_code]],UNcountrycodes[M49 Code],0)),"") -> Sub-Saharan Africa | U39: =IFERROR(INDEX(RegionClassification[FAO region],MATCH(FAOdata[[#This Row],[UN sub-region]],RegionClassification[UN region],0)),"") -> Sub-Saharan Africa | V39: =INDEX(FAO_IFC_Commodity[IFC commodity], MATCH(FAOdata[[#This Row],[commodity]],FAO_IFC_Commodity[FAO commodity],0)) -> Sorghum | W39: =IFERROR(INDEX(IFC_Commodity_CommodityGroup[IFC Commodity group],MATCH(FAOdata[[#This Row],[IFC Commodity]],IFC_Commodity_CommodityGroup[IFC Commodity], 0)),"") -> Pulses & Grains | X39: =IFERROR(INDEX(IFC_Commodity_CommodityGroup[FAO commodity group], MATCH(FAOdata[[#This Row],[IFC Commodity]],IFC_Commodity_CommodityGroup[IFC Commodity],0)),"") -> Cereals | Y39: =IFERROR(INDEX(FTS[[#All],[IFC Supply Chain Stage]],MATCH(FAOdata[[#This Row],[food_supply_stage]],FTS[[#All],[fsc_location1]],0)),"") -> Production
A40: 108 | B40: Burundi | D40: 118 | E40: Millet | F40: 2020 | G40: 2 | H40: 2 | J40: Shelling, Threshing | K40: Farm | O40: Modelled Estimates | Q40: https://www.aphlis.net/en/page/20/data-tables#/datatables?tab=value_chain&metric=prc | S40: =IFERROR(INDEX(UNcountrycodes[Region Name],MATCH(FAOdata[[#This Row],[m49_code]],UNcountrycodes[M49 Code],0)),"") -> Africa | T40: =IFERROR(INDEX(UNcountrycodes[Sub-region Name], MATCH(FAOdata[[#This Row],[m49_code]],UNcountrycodes[M49 Code],0)),"") -> Sub-Saharan Africa | U40: =IFERROR(INDEX(RegionClassification[FAO region],MATCH(FAOdata[[#This Row],[UN sub-region]],RegionClassification[UN region],0)),"") -> Sub-Saharan Africa | V40: =INDEX(FAO_IFC_Commodity[IFC commodity], MATCH(FAOdata[[#This Row],[commodity]],FAO_IFC_Commodity[FAO commodity],0)) -> Millet | W40: =IFERROR(INDEX(IFC_Commodity_CommodityGroup[IFC Commodity group],MATCH(FAOdata[[#This Row],[IFC Commodity]],IFC_Commodity_CommodityGroup[IFC Commodity], 0)),"") -> Pulses & Grains | X40: =IFERROR(INDEX(IFC_Commodity_CommodityGroup[FAO commodity group], MATCH(FAOdata[[#This Row],[IFC Commodity]],IFC_Commodity_CommodityGroup[IFC Commodity],0)),"") -> Cereals | Y40: =IFERROR(INDEX(FTS[[#All],[IFC Supply Chain Stage]],MATCH(FAOdata[[#This Row],[food_supply_stage]],FTS[[#All],[fsc_location1]],0)),"") -> Production
A41: 108 | B41: Burundi | D41: 118 | E41: Millet | F41: 2020 | G41: 1.18 | H41: 1.18 | J41: Storage | K41: Farm | O41: Modelled Estimates | Q41: https://www.aphlis.net/en/page/20/data-tables#/datatables?tab=value_chain&metric=prc | S41: =IFERROR(INDEX(UNcountrycodes[Region Name],MATCH(FAOdata[[#This Row],[m49_code]],UNcountrycodes[M49 Code],0)),"") -> Africa | T41: =IFERROR(INDEX(UNcountrycodes[Sub-region Name], MATCH(FAOdata[[#This Row],[m49_code]],UNcountrycodes[M49 Code],0)),"") -> Sub-Saharan Africa | U41: =IFERROR(INDEX(RegionClassification[FAO region],MATCH(FAOdata[[#This Row],[UN sub-region]],RegionClassification[UN region],0)),"") -> Sub-Saharan Africa | V41: =INDEX(FAO_IFC_Commodity[IFC commodity], MATCH(FAOdata[[#This Row],[commodity]],FAO_IFC_Commodity[FAO commodity],0)) -> Millet | W41: =IFERROR(INDEX(IFC_Commodity_CommodityGroup[IFC Commodity group],MATCH(FAOdata[[#This Row],[IFC Commodity]],IFC_Commodity_CommodityGroup[IFC Commodity], 0)),"") -> Pulses & Grains | X41: =IFERROR(INDEX(IFC_Commodity_CommodityGroup[FAO commodity group], MATCH(FAOdata[[#This Row],[IFC Commodity]],IFC_Commodity_CommodityGroup[IFC Commodity],0)),"") -> Cereals | Y41: =IFERROR(INDEX(FTS[[#All],[IFC Supply Chain Stage]],MATCH(FAOdata[[#This Row],[food_supply_stage]],FTS[[#All],[fsc_location1]],0)),"") -> Production
A42: 108 | B42: Burundi | D42: 118 | E42: Millet | F42: 2020 | G42: 2.5 | H42: 2.5 | J42: Winnowing | K42: Farm | O42: Modelled Estimates | Q42: https://www.aphlis.net/en/page/20/data-tables#/datatables?tab=value_chain&metric=prc | S42: =IFERROR(INDEX(UNcountrycodes[Region Name],MATCH(FAOdata[[#This Row],[m49_code]],UNcountrycodes[M49 Code],0)),"") -> Africa | T42: =IFERROR(INDEX(UNcountrycodes[Sub-region Name], MATCH(FAOdata[[#This Row],[m49_code]],UNcountrycodes[M49 Code],0)),"") -> Sub-Saharan Africa | U42: =IFERROR(INDEX(RegionClassification[FAO region],MATCH(FAOdata[[#This Row],[UN sub-region]],RegionClassification[UN region],0)),"") -> Sub-Saharan Africa | V42: =INDEX(FAO_IFC_Commodity[IFC commodity], MATCH(FAOdata[[#This Row],[commodity]],FAO_IFC_Commodity[FAO commodity],0)) -> Millet | W42: =IFERROR(INDEX(IFC_Commodity_CommodityGroup[IFC Commodity group],MATCH(FAOdata[[#This Row],[IFC Commodity]],IFC_Commodity_CommodityGroup[IFC Commodity], 0)),"") -> Pulses & Grains | X42: =IFERROR(INDEX(IFC_Commodity_CommodityGroup[FAO commodity group], MATCH(FAOdata[[#This Row],[IFC Commodity]],IFC_Commodity_CommodityGroup[IFC Commodity],0)),"") -> Cereals | Y42: =IFERROR(INDEX(FTS[[#All],[IFC Supply Chain Stage]],MATCH(FAOdata[[#This Row],[food_supply_stage]],FTS[[#All],[fsc_location1]],0)),"") -> Production
A43: 108 | B43: Burundi | D43: 118 | E43: Millet | F43: 2020 | G43: 2.5 | H43: 2.5 | J43: Transportation | K43: Farm | O43: Modelled Estimates | Q43: https://www.aphlis.net/en/page/20/data-tables#/datatables?tab=value_chain&metric=prc | S43: =IFERROR(INDEX(UNcountrycodes[Region Name],MATCH(FAOdata[[#This Row],[m49_code]],UNcountrycodes[M49 Code],0)),"") -> Africa | T43: =IFERROR(INDEX(UNcountrycodes[Sub-region Name], MATCH(FAOdata[[#This Row],[m49_code]],UNcountrycodes[M49 Code],0)),"") -> Sub-Saharan Africa | U43: =IFERROR(INDEX(RegionClassification[FAO region],MATCH(FAOdata[[#This Row],[UN sub-region]],RegionClassification[UN region],0)),"") -> Sub-Saharan Africa | V43: =INDEX(FAO_IFC_Commodity[IFC commodity], MATCH(FAOdata[[#This Row],[commodity]],FAO_IFC_Commodity[FAO commodity],0)) -> Millet | W43: =IFERROR(INDEX(IFC_Commodity_CommodityGroup[IFC Commodity group],MATCH(FAOdata[[#This Row],[IFC Commodity]],IFC_Commodity_CommodityGroup[IFC Commodity], 0)),"") -> Pulses & Grains | X43: =IFERROR(INDEX(IFC_Commodity_CommodityGroup[FAO commodity group], MATCH(FAOdata[[#This Row],[IFC Commodity]],IFC_Commodity_CommodityGroup[IFC Commodity],0)),"") -> Cereals | Y43: =IFERROR(INDEX(FTS[[#All],[IFC Supply Chain Stage]],MATCH(FAOdata[[#This Row],[food_supply_stage]],FTS[[#All],[fsc_location1]],0)),"") -> Production
A44: 108 | B44: Burundi | D44: 118 | E44: Millet | F44: 2020 | G44: 3.5 | H44: 3.5 | J44: Drying, Harvesting | K44: Harvest | O44: Modelled Estimates | Q44: https://www.aphlis.net/en/page/20/data-tables#/datatables?tab=value_chain&metric=prc | S44: =IFERROR(INDEX(UNcountrycodes[Region Name],MATCH(FAOdata[[#This Row],[m49_code]],UNcountrycodes[M49 Code],0)),"") -> Africa | T44: =IFERROR(INDEX(UNcountrycodes[Sub-region Name], MATCH(FAOdata[[#This Row],[m49_code]],UNcountrycodes[M49 Code],0)),"") -> Sub-Saharan Africa | U44: =IFERROR(INDEX(RegionClassification[FAO region],MATCH(FAOdata[[#This Row],[UN sub-region]],RegionClassification[UN region],0)),"") -> Sub-Saharan Africa | V44: =INDEX(FAO_IFC_Commodity[IFC commodity], MATCH(FAOdata[[#This Row],[commodity]],FAO_IFC_Commodity[FAO commodity],0)) -> Millet | W44: =IFERROR(INDEX(IFC_Commodity_CommodityGroup[IFC Commodity group],MATCH(FAOdata[[#This Row],[IFC Commodity]],IFC_Commodity_CommodityGroup[IFC Commodity], 0)),"") -> Pulses & Grains | X44: =IFERROR(INDEX(IFC_Commodity_CommodityGroup[FAO commodity group], MATCH(FAOdata[[#This Row],[IFC Commodity]],IFC_Commodity_CommodityGroup[IFC Commodity],0)),"") -> Cereals | Y44: =IFERROR(INDEX(FTS[[#All],[IFC Supply Chain Stage]],MATCH(FAOdata[[#This Row],[food_supply_stage]],FTS[[#All],[fsc_location1]],0)),"") -> 0
A45: 108 | B45: Burundi | D45: 111 | E45: Wheat | F45: 2019 | G45: 4.43 | H45: 4.43 | J45: Drying, Harvesting | K45: Harvest | O45: Modelled Estimates | Q45: https://www.aphlis.net/en/page/20/data-tables#/datatables?tab=value_chain&metric=prc | S45: =IFERROR(INDEX(UNcountrycodes[Region Name],MATCH(FAOdata[[#This Row],[m49_code]],UNcountrycodes[M49 Code],0)),"") -> Africa | T45: =IFERROR(INDEX(UNcountrycodes[Sub-region Name], MATCH(FAOdata[[#This Row],[m49_code]],UNcountrycodes[M49 Code],0)),"") -> Sub-Saharan Africa | U45: =IFERROR(INDEX(RegionClassification[FAO region],MATCH(FAOdata[[#This Row],[UN sub-region]],RegionClassification[UN region],0)),"") -> Sub-Saharan Africa | V45: =INDEX(FAO_IFC_Commodity[IFC commodity], MATCH(FAOdata[[#This Row],[commodity]],FAO_IFC_Commodity[FAO commodity],0)) -> Wheat | W45: =IFERROR(INDEX(IFC_Commodity_CommodityGroup[IFC Commodity group],MATCH(FAOdata[[#This Row],[IFC Commodity]],IFC_Commodity_CommodityGroup[IFC Commodity], 0)),"") -> Pulses & Grains | X45: =IFERROR(INDEX(IFC_Commodity_CommodityGroup[FAO commodity group], MATCH(FAOdata[[#This Row],[IFC Commodity]],IFC_Commodity_CommodityGroup[IFC Commodity],0)),"") -> Cereals | Y45: =IFERROR(INDEX(FTS[[#All],[IFC Supply Chain Stage]],MATCH(FAOdata[[#This Row],[food_supply_stage]],FTS[[#All],[fsc_location1]],0)),"") -> 0
A46: 108 | B46: Burundi | D46: 111 | E46: Wheat | F46: 2019 | G46: 2.5 | H46: 2.5 | J46: Transportation | K46: Farm | O46: Modelled Estimates | Q46: https://www.aphlis.net/en/page/20/data-tables#/datatables?tab=value_chain&metric=prc | S46: =IFERROR(INDEX(UNcountrycodes[Region Name],MATCH(FAOdata[[#This Row],[m49_code]],UNcountrycodes[M49 Code],0)),"") -> Africa | T46: =IFERROR(INDEX(UNcountrycodes[Sub-region Name], MATCH(FAOdata[[#This Row],[m49_code]],UNcountrycodes[M49 Code],0)),"") -> Sub-Saharan Africa | U46: =IFERROR(INDEX(RegionClassification[FAO region],MATCH(FAOdata[[#This Row],[UN sub-region]],RegionClassification[UN region],0)),"") -> Sub-Saharan Africa | V46: =INDEX(FAO_IFC_Commodity[IFC commodity], MATCH(FAOdata[[#This Row],[commodity]],FAO_IFC_Commodity[FAO commodity],0)) -> Wheat | W46: =IFERROR(INDEX(IFC_Commodity_CommodityGroup[IFC Commodity group],MATCH(FAOdata[[#This Row],[IFC Commodity]],IFC_Commodity_CommodityGroup[IFC Commodity], 0)),"") -> Pulses & Grains | X46: =IFERROR(INDEX(IFC_Commodity_CommodityGroup[FAO commodity group], MATCH(FAOdata[[#This Row],[IFC Commodity]],IFC_Commodity_CommodityGroup[IFC Commodity],0)),"") -> Cereals | Y46: =IFERROR(INDEX(FTS[[#All],[IFC Supply Chain Stage]],MATCH(FAOdata[[#This Row],[food_supply_stage]],FTS[[#All],[fsc_location1]],0)),"") -> Production
A47: 108 | B47: Burundi | D47: 111 | E47: Wheat | F47: 2019 | G47: 3.5 | H47: 3.5 | J47: Shelling, Threshing | K47: Farm | O47: Modelled Estimates | Q47: https://www.aphlis.net/en/page/20/data-tables#/datatables?tab=value_chain&metric=prc | S47: =IFERROR(INDEX(UNcountrycodes[Region Name],MATCH(FAOdata[[#This Row],[m49_code]],UNcountrycodes[M49 Code],0)),"") -> Africa | T47: =IFERROR(INDEX(UNcountrycodes[Sub-region Name], MATCH(FAOdata[[#This Row],[m49_code]],UNcountrycodes[M49 Code],0)),"") -> Sub-Saharan Africa | U47: =IFERROR(INDEX(RegionClassification[FAO region],MATCH(FAOdata[[#This Row],[UN sub-region]],RegionClassification[UN region],0)),"") -> Sub-Saharan Africa | V47: =INDEX(FAO_IFC_Commodity[IFC commodity], MATCH(FAOdata[[#This Row],[commodity]],FAO_IFC_Commodity[FAO commodity],0)) -> Wheat | W47: =IFERROR(INDEX(IFC_Commodity_CommodityGroup[IFC Commodity group],MATCH(FAOdata[[#This Row],[IFC Commodity]],IFC_Commodity_CommodityGroup[IFC Commodity], 0)),"") -> Pulses & Grains | X47: =IFERROR(INDEX(IFC_Commodity_CommodityGroup[FAO commodity group], MATCH(FAOdata[[#This Row],[IFC Commodity]],IFC_Commodity_CommodityGroup[IFC Commodity],0)),"") -> Cereals | Y47: =IFERROR(INDEX(FTS[[#All],[IFC Supply Chain Stage]],MATCH(FAOdata[[#This Row],[food_supply_stage]],FTS[[#All],[fsc_location1]],0)),"") -> Production
A48: 108 | B48: Burundi | D48: 111 | E48: Wheat | F48: 2019 | G48: 4.87 | H48: 4.87 | J48: Storage | K48: Farm | O48: Modelled Estimates | Q48: https://www.aphlis.net/en/page/20/data-tables#/datatables?tab=value_chain&metric=prc | S48: =IFERROR(INDEX(UNcountrycodes[Region Name],MATCH(FAOdata[[#This Row],[m49_code]],UNcountrycodes[M49 Code],0)),"") -> Africa | T48: =IFERROR(INDEX(UNcountrycodes[Sub-region Name], MATCH(FAOdata[[#This Row],[m49_code]],UNcountrycodes[M49 Code],0)),"") -> Sub-Saharan Africa | U48: =IFERROR(INDEX(RegionClassification[FAO region],MATCH(FAOdata[[#This Row],[UN sub-region]],RegionClassification[UN region],0)),"") -> Sub-Saharan Africa | V48: =INDEX(FAO_IFC_Commodity[IFC commodity], MATCH(FAOdata[[#This Row],[commodity]],FAO_IFC_Commodity[FAO commodity],0)) -> Wheat | W48: =IFERROR(INDEX(IFC_Commodity_CommodityGroup[IFC Commodity group],MATCH(FAOdata[[#This Row],[IFC Commodity]],IFC_Commodity_CommodityGroup[IFC Commodity], 0)),"") -> Pulses & Grains | X48: =IFERROR(INDEX(IFC_Commodity_CommodityGroup[FAO commodity group], MATCH(FAOdata[[#This Row],[IFC Commodity]],IFC_Commodity_CommodityGroup[IFC Commodity],0)),"") -> Cereals | Y48: =IFERROR(INDEX(FTS[[#All],[IFC Supply Chain Stage]],MATCH(FAOdata[[#This Row],[food_supply_stage]],FTS[[#All],[fsc_location1]],0)),"") -> Production
A49: 108 | B49: Burundi | D49: 112 | E49: Maize (corn) | F49: 2019 | G49: 2.36 | H49: 2.36 | J49: Transportation | K49: Farm | O49: Modelled Estimates | Q49: https://www.aphlis.net/en/page/20/data-tables#/datatables?tab=value_chain&metric=prc | S49: =IFERROR(INDEX(UNcountrycodes[Region Name],MATCH(FAOdata[[#This Row],[m49_code]],UNcountrycodes[M49 Code],0)),"") -> Africa | T49: =IFERROR(INDEX(UNcountrycodes[Sub-region Name], MATCH(FAOdata[[#This Row],[m49_code]],UNcountrycodes[M49 Code],0)),"") -> Sub-Saharan Africa | U49: =IFERROR(INDEX(RegionClassification[FAO region],MATCH(FAOdata[[#This Row],[UN sub-region]],RegionClassification[UN region],0)),"") -> Sub-Saharan Africa | V49: =INDEX(FAO_IFC_Commodity[IFC commodity], MATCH(FAOdata[[#This Row],[commodity]],FAO_IFC_Commodity[FAO commodity],0)) -> Maize | W49: =IFERROR(INDEX(IFC_Commodity_CommodityGroup[IFC Commodity group],MATCH(FAOdata[[#This Row],[IFC Commodity]],IFC_Commodity_CommodityGroup[IFC Commodity], 0)),"") -> Pulses & Grains | X49: =IFERROR(INDEX(IFC_Commodity_CommodityGroup[FAO commodity group], MATCH(FAOdata[[#This Row],[IFC Commodity]],IFC_Commodity_CommodityGroup[IFC Commodity],0)),"") -> Cereals | Y49: =IFERROR(INDEX(FTS[[#All],[IFC Supply Chain Stage]],MATCH(FAOdata[[#This Row],[food_supply_stage]],FTS[[#All],[fsc_location1]],0)),"") -> Production
A50: 108 | B50: Burundi | D50: 112 | E50: Maize (corn) | F50: 2019 | G50: 6.42 | H50: 6.42 | J50: Drying, Harvesting | K50: Harvest | O50: Modelled Estimates | Q50: https://www.aphlis.net/en/page/20/data-tables#/datatables?tab=value_chain&metric=prc | S50: =IFERROR(INDEX(UNcountrycodes[Region Name],MATCH(FAOdata[[#This Row],[m49_code]],UNcountrycodes[M49 Code],0)),"") -> Africa | T50: =IFERROR(INDEX(UNcountrycodes[Sub-region Name], MATCH(FAOdata[[#This Row],[m49_code]],UNcountrycodes[M49 Code],0)),"") -> Sub-Saharan Africa | U50: =IFERROR(INDEX(RegionClassification[FAO region],MATCH(FAOdata[[#This Row],[UN sub-region]],RegionClassification[UN region],0)),"") -> Sub-Saharan Africa | V50: =INDEX(FAO_IFC_Commodity[IFC commodity], MATCH(FAOdata[[#This Row],[commodity]],FAO_IFC_Commodity[FAO commodity],0)) -> Maize | W50: =IFERROR(INDEX(IFC_Commodity_CommodityGroup[IFC Commodity group],MATCH(FAOdata[[#This Row],[IFC Commodity]],IFC_Commodity_CommodityGroup[IFC Commodity], 0)),"") -> Pulses & Grains | X50: =IFERROR(INDEX(IFC_Commodity_CommodityGroup[FAO commodity group], MATCH(FAOdata[[#This Row],[IFC Commodity]],IFC_Commodity_CommodityGroup[IFC Commodity],0)),"") -> Cereals | Y50: =IFERROR(INDEX(FTS[[#All],[IFC Supply Chain Stage]],MATCH(FAOdata[[#This Row],[food_supply_stage]],FTS[[#All],[fsc_location1]],0)),"") -> 0
A51: 108 | B51: Burundi | D51: 112 | E51: Maize (corn) | F51: 2019 | G51: 5.26 | H51: 5.26 | J51: Storage | K51: Farm | O51: Modelled Estimates | Q51: https://www.aphlis.net/en/page/20/data-tables#/datatables?tab=value_chain&metric=prc | S51: =IFERROR(INDEX(UNcountrycodes[Region Name],MATCH(FAOdata[[#This Row],[m49_code]],UNcountrycodes[M49 Code],0)),"") -> Africa | T51: =IFERROR(INDEX(UNcountrycodes[Sub-region Name], MATCH(FAOdata[[#This Row],[m49_code]],UNcountrycodes[M49 Code],0)),"") -> Sub-Saharan Africa | U51: =IFERROR(INDEX(RegionClassification[FAO region],MATCH(FAOdata[[#This Row],[UN sub-region]],RegionClassification[UN region],0)),"") -> Sub-Saharan Africa | V51: =INDEX(FAO_IFC_Commodity[IFC commodity], MATCH(FAOdata[[#This Row],[commodity]],FAO_IFC_Commodity[FAO commodity],0)) -> Maize | W51: =IFERROR(INDEX(IFC_Commodity_CommodityGroup[IFC Commodity group],MATCH(FAOdata[[#This Row],[IFC Commodity]],IFC_Commodity_CommodityGroup[IFC Commodity], 0)),"") -> Pulses & Grains | X51: =IFERROR(INDEX(IFC_Commodity_CommodityGroup[FAO commodity group], MATCH(FAOdata[[#This Row],[IFC Commodity]],IFC_Commodity_CommodityGroup[IFC Commodity],0)),"") -> Cereals | Y51: =IFERROR(INDEX(FTS[[#All],[IFC Supply Chain Stage]],MATCH(FAOdata[[#This Row],[food_supply_stage]],FTS[[#All],[fsc_location1]],0)),"") -> Production
A52: 108 | B52: Burundi | D52: 112 | E52: Maize (corn) | F52: 2019 | G52: 1.32 | H52: 1.32 | J52: Shelling, Threshing | K52: Farm | O52: Modelled Estimates | Q52: https://www.aphlis.net/en/page/20/data-tables#/datatables?tab=value_chain&metric=prc | S52: =IFERROR(INDEX(UNcountrycodes[Region Name],MATCH(FAOdata[[#This Row],[m49_code]],UNcountrycodes[M49 Code],0)),"") -> Africa | T52: =IFERROR(INDEX(UNcountrycodes[Sub-region Name], MATCH(FAOdata[[#This Row],[m49_code]],UNcountrycodes[M49 Code],0)),"") -> Sub-Saharan Africa | U52: =IFERROR(INDEX(RegionClassification[FAO region],MATCH(FAOdata[[#This Row],[UN sub-region]],RegionClassification[UN region],0)),"") -> Sub-Saharan Africa | V52: =INDEX(FAO_IFC_Commodity[IFC commodity], MATCH(FAOdata[[#This Row],[commodity]],FAO_IFC_Commodity[FAO commodity],0)) -> Maize | W52: =IFERROR(INDEX(IFC_Commodity_CommodityGroup[IFC Commodity group],MATCH(FAOdata[[#This Row],[IFC Commodity]],IFC_Commodity_CommodityGroup[IFC Commodity], 0)),"") -> Pulses & Grains | X52: =IFERROR(INDEX(IFC_Commodity_CommodityGroup[FAO commodity group], MATCH(FAOdata[[#This Row],[IFC Commodity]],IFC_Commodity_CommodityGroup[IFC Commodity],0)),"") -> Cereals | Y52: =IFERROR(INDEX(FTS[[#All],[IFC Supply Chain Stage]],MATCH(FAOdata[[#This Row],[food_supply_stage]],FTS[[#All],[fsc_location1]],0)),"") -> Production
A53: 108 | B53: Burundi | D53: 112 | E53: Maize (corn) | F53: 2019 | G53: 4 | H53: 4 | J53: Drying | K53: Farm | O53: Modelled Estimates | Q53: https://www.aphlis.net/en/page/20/data-tables#/datatables?tab=value_chain&metric=prc | S53: =IFERROR(INDEX(UNcountrycodes[Region Name],MATCH(FAOdata[[#This Row],[m49_code]],UNcountrycodes[M49 Code],0)),"") -> Africa | T53: =IFERROR(INDEX(UNcountrycodes[Sub-region Name], MATCH(FAOdata[[#This Row],[m49_code]],UNcountrycodes[M49 Code],0)),"") -> Sub-Saharan Africa | U53: =IFERROR(INDEX(RegionClassification[FAO region],MATCH(FAOdata[[#This Row],[UN sub-region]],RegionClassification[UN region],0)),"") -> Sub-Saharan Africa | V53: =INDEX(FAO_IFC_Commodity[IFC commodity], MATCH(FAOdata[[#This Row],[commodity]],FAO_IFC_Commodity[FAO commodity],0)) -> Maize | W53: =IFERROR(INDEX(IFC_Commodity_CommodityGroup[IFC Commodity group],MATCH(FAOdata[[#This Row],[IFC Commodity]],IFC_Commodity_CommodityGroup[IFC Commodity], 0)),"") -> Pulses & Grains | X53: =IFERROR(INDEX(IFC_Commodity_CommodityGroup[FAO commodity group], MATCH(FAOdata[[#This Row],[IFC Commodity]],IFC_Commodity_CommodityGroup[IFC Commodity],0)),"") -> Cereals | Y53: =IFERROR(INDEX(FTS[[#All],[IFC Supply Chain Stage]],MATCH(FAOdata[[#This Row],[food_supply_stage]],FTS[[#All],[fsc_location1]],0)),"") -> Production
A54: 108 | B54: Burundi | D54: 113 | E54: Rice | F54: 2019 | G54: 3.14 | H54: 3.14 | J54: Shelling, Threshing | K54: Farm | O54: Modelled Estimates | Q54: https://www.aphlis.net/en/page/20/data-tables#/datatables?tab=value_chain&metric=prc | S54: =IFERROR(INDEX(UNcountrycodes[Region Name],MATCH(FAOdata[[#This Row],[m49_code]],UNcountrycodes[M49 Code],0)),"") -> Africa | T54: =IFERROR(INDEX(UNcountrycodes[Sub-region Name], MATCH(FAOdata[[#This Row],[m49_code]],UNcountrycodes[M49 Code],0)),"") -> Sub-Saharan Africa | U54: =IFERROR(INDEX(RegionClassification[FAO region],MATCH(FAOdata[[#This Row],[UN sub-region]],RegionClassification[UN region],0)),"") -> Sub-Saharan Africa | V54: =INDEX(FAO_IFC_Commodity[IFC commodity], MATCH(FAOdata[[#This Row],[commodity]],FAO_IFC_Commodity[FAO commodity],0)) -> Rice | W54: =IFERROR(INDEX(IFC_Commodity_CommodityGroup[IFC Commodity group],MATCH(FAOdata[[#This Row],[IFC Commodity]],IFC_Commodity_CommodityGroup[IFC Commodity], 0)),"") -> Pulses & Grains | X54: =IFERROR(INDEX(IFC_Commodity_CommodityGroup[FAO commodity group], MATCH(FAOdata[[#This Row],[IFC Commodity]],IFC_Commodity_CommodityGroup[IFC Commodity],0)),"") -> Cereals | Y54: =IFERROR(INDEX(FTS[[#All],[IFC Supply Chain Stage]],MATCH(FAOdata[[#This Row],[food_supply_stage]],FTS[[#All],[fsc_location1]],0)),"") -> Production
A55: 108 | B55: Burundi | D55: 113 | E55: Rice | F55: 2019 | G55: 1.2 | H55: 1.2 | J55: Storage | K55: Farm | O55: Modelled Estimates | Q55: https://www.aphlis.net/en/page/20/data-tables#/datatables?tab=value_chain&metric=prc | S55: =IFERROR(INDEX(UNcountrycodes[Region Name],MATCH(FAOdata[[#This Row],[m49_code]],UNcountrycodes[M49 Code],0)),"") -> Africa | T55: =IFERROR(INDEX(UNcountrycodes[Sub-region Name], MATCH(FAOdata[[#This Row],[m49_code]],UNcountrycodes[M49 Code],0)),"") -> Sub-Saharan Africa | U55: =IFERROR(INDEX(RegionClassification[FAO region],MATCH(FAOdata[[#This Row],[UN sub-region]],RegionClassification[UN region],0)),"") -> Sub-Saharan Africa | V55: =INDEX(FAO_IFC_Commodity[IFC commodity], MATCH(FAOdata[[#This Row],[commodity]],FAO_IFC_Commodity[FAO commodity],0)) -> Rice | W55: =IFERROR(INDEX(IFC_Commodity_CommodityGroup[IFC Commodity group],MATCH(FAOdata[[#This Row],[IFC Commodity]],IFC_Commodity_CommodityGroup[IFC Commodity], 0)),"") -> Pulses & Grains | X55: =IFERROR(INDEX(IFC_Commodity_CommodityGroup[FAO commodity group], MATCH(FAOdata[[#This Row],[IFC Commodity]],IFC_Commodity_CommodityGroup[IFC Commodity],0)),"") -> Cereals | Y55: =IFERROR(INDEX(FTS[[#All],[IFC Supply Chain Stage]],MATCH(FAOdata[[#This Row],[food_supply_stage]],FTS[[#All],[fsc_location1]],0)),"") -> Production
A56: 108 | B56: Burundi | D56: 113 | E56: Rice | F56: 2019 | G56: 4.4 | H56: 4.4 | J56: Drying, Harvesting | K56: Harvest | O56: Modelled Estimates | Q56: https://www.aphlis.net/en/page/20/data-tables#/datatables?tab=value_chain&metric=prc | S56: =IFERROR(INDEX(UNcountrycodes[Region Name],MATCH(FAOdata[[#This Row],[m49_code]],UNcountrycodes[M49 Code],0)),"") -> Africa | T56: =IFERROR(INDEX(UNcountrycodes[Sub-region Name], MATCH(FAOdata[[#This Row],[m49_code]],UNcountrycodes[M49 Code],0)),"") -> Sub-Saharan Africa | U56: =IFERROR(INDEX(RegionClassification[FAO region],MATCH(FAOdata[[#This Row],[UN sub-region]],RegionClassification[UN region],0)),"") -> Sub-Saharan Africa | V56: =INDEX(FAO_IFC_Commodity[IFC commodity], MATCH(FAOdata[[#This Row],[commodity]],FAO_IFC_Commodity[FAO commodity],0)) -> Rice | W56: =IFERROR(INDEX(IFC_Commodity_CommodityGroup[IFC Commodity group],MATCH(FAOdata[[#This Row],[IFC Commodity]],IFC_Commodity_CommodityGroup[IFC Commodity], 0)),"") -> Pulses & Grains | X56: =IFERROR(INDEX(IFC_Commodity_CommodityGroup[FAO commodity group], MATCH(FAOdata[[#This Row],[IFC Commodity]],IFC_Commodity_CommodityGroup[IFC Commodity],0)),"") -> Cereals | Y56: =IFERROR(INDEX(FTS[[#All],[IFC Supply Chain Stage]],MATCH(FAOdata[[#This Row],[food_supply_stage]],FTS[[#All],[fsc_location1]],0)),"") -> 0
A57: 108 | B57: Burundi | D57: 113 | E57: Rice | F57: 2019 | G57: 2.5 | H57: 2.5 | J57: Winnowing | K57: Farm | O57: Modelled Estimates | Q57: https://www.aphlis.net/en/page/20/data-tables#/datatables?tab=value_chain&metric=prc | S57: =IFERROR(INDEX(UNcountrycodes[Region Name],MATCH(FAOdata[[#This Row],[m49_code]],UNcountrycodes[M49 Code],0)),"") -> Africa | T57: =IFERROR(INDEX(UNcountrycodes[Sub-region Name], MATCH(FAOdata[[#This Row],[m49_code]],UNcountrycodes[M49 Code],0)),"") -> Sub-Saharan Africa | U57: =IFERROR(INDEX(RegionClassification[FAO region],MATCH(FAOdata[[#This Row],[UN sub-region]],RegionClassification[UN region],0)),"") -> Sub-Saharan Africa | V57: =INDEX(FAO_IFC_Commodity[IFC commodity], MATCH(FAOdata[[#This Row],[commodity]],FAO_IFC_Commodity[FAO commodity],0)) -> Rice | W57: =IFERROR(INDEX(IFC_Commodity_CommodityGroup[IFC Commodity group],MATCH(FAOdata[[#This Row],[IFC Commodity]],IFC_Commodity_CommodityGroup[IFC Commodity], 0)),"") -> Pulses & Grains | X57: =IFERROR(INDEX(IFC_Commodity_CommodityGroup[FAO commodity group], MATCH(FAOdata[[#This Row],[IFC Commodity]],IFC_Commodity_CommodityGroup[IFC Commodity],0)),"") -> Cereals | Y57: =IFERROR(INDEX(FTS[[#All],[IFC Supply Chain Stage]],MATCH(FAOdata[[#This Row],[food_supply_stage]],FTS[[#All],[fsc_location1]],0)),"") -> Production
A58: 108 | B58: Burundi | D58: 113 | E58: Rice | F58: 2019 | G58: 1.25 | H58: 1.25 | J58: Transportation | K58: Farm | O58: Modelled Estimates | Q58: https://www.aphlis.net/en/page/20/data-tables#/datatables?tab=value_chain&metric=prc | S58: =IFERROR(INDEX(UNcountrycodes[Region Name],MATCH(FAOdata[[#This Row],[m49_code]],UNcountrycodes[M49 Code],0)),"") -> Africa | T58: =IFERROR(INDEX(UNcountrycodes[Sub-region Name], MATCH(FAOdata[[#This Row],[m49_code]],UNcountrycodes[M49 Code],0)),"") -> Sub-Saharan Africa | U58: =IFERROR(INDEX(RegionClassification[FAO region],MATCH(FAOdata[[#This Row],[UN sub-region]],RegionClassification[UN region],0)),"") -> Sub-Saharan Africa | V58: =INDEX(FAO_IFC_Commodity[IFC commodity], MATCH(FAOdata[[#This Row],[commodity]],FAO_IFC_Commodity[FAO commodity],0)) -> Rice | W58: =IFERROR(INDEX(IFC_Commodity_CommodityGroup[IFC Commodity group],MATCH(FAOdata[[#This Row],[IFC Commodity]],IFC_Commodity_CommodityGroup[IFC Commodity], 0)),"") -> Pulses & Grains | X58: =IFERROR(INDEX(IFC_Commodity_CommodityGroup[FAO commodity group], MATCH(FAOdata[[#This Row],[IFC Commodity]],IFC_Commodity_CommodityGroup[IFC Commodity],0)),"") -> Cereals | Y58: =IFERROR(INDEX(FTS[[#All],[IFC Supply Chain Stage]],MATCH(FAOdata[[#This Row],[food_supply_stage]],FTS[[#All],[fsc_location1]],0)),"") -> Production
A59: 108 | B59: Burundi | D59: 114 | E59: Sorghum | F59: 2019 | G59: 4.55 | H59: 4.55 | J59: Drying, Harvesting | K59: Harvest | O59: Modelled Estimates | Q59: https://www.aphlis.net/en/page/20/data-tables#/datatables?tab=value_chain&metric=prc | S59: =IFERROR(INDEX(UNcountrycodes[Region Name],MATCH(FAOdata[[#This Row],[m49_code]],UNcountrycodes[M49 Code],0)),"") -> Africa | T59: =IFERROR(INDEX(UNcountrycodes[Sub-region Name], MATCH(FAOdata[[#This Row],[m49_code]],UNcountrycodes[M49 Code],0)),"") -> Sub-Saharan Africa | U59: =IFERROR(INDEX(RegionClassification[FAO region],MATCH(FAOdata[[#This Row],[UN sub-region]],RegionClassification[UN region],0)),"") -> Sub-Saharan Africa | V59: =INDEX(FAO_IFC_Commodity[IFC commodity], MATCH(FAOdata[[#This Row],[commodity]],FAO_IFC_Commodity[FAO commodity],0)) -> Sorghum | W59: =IFERROR(INDEX(IFC_Commodity_CommodityGroup[IFC Commodity group],MATCH(FAOdata[[#This Row],[IFC Commodity]],IFC_Commodity_CommodityGroup[IFC Commodity], 0)),"") -> Pulses & Grains | X59: =IFERROR(INDEX(IFC_Commodity_CommodityGroup[FAO commodity group], MATCH(FAOdata[[#This Row],[IFC Commodity]],IFC_Commodity_CommodityGroup[IFC Commodity],0)),"") -> Cereals | Y59: =IFERROR(INDEX(FTS[[#All],[IFC Supply Chain Stage]],MATCH(FAOdata[[#This Row],[food_supply_stage]],FTS[[#All],[fsc_location1]],0)),"") -> 0
A60: 108 | B60: Burundi | D60: 114 | E60: Sorghum | F60: 2019 | G60: 2.17 | H60: 2.17 | J60: Transportation | K60: Farm | O60: Modelled Estimates | Q60: https://www.aphlis.net/en/page/20/data-tables#/datatables?tab=value_chain&metric=prc | S60: =IFERROR(INDEX(UNcountrycodes[Region Name],MATCH(FAOdata[[#This Row],[m49_code]],UNcountrycodes[M49 Code],0)),"") -> Africa | T60: =IFERROR(INDEX(UNcountrycodes[Sub-region Name], MATCH(FAOdata[[#This Row],[m49_code]],UNcountrycodes[M49 Code],0)),"") -> Sub-Saharan Africa | U60: =IFERROR(INDEX(RegionClassification[FAO region],MATCH(FAOdata[[#This Row],[UN sub-region]],RegionClassification[UN region],0)),"") -> Sub-Saharan Africa | V60: =INDEX(FAO_IFC_Commodity[IFC commodity], MATCH(FAOdata[[#This Row],[commodity]],FAO_IFC_Commodity[FAO commodity],0)) -> Sorghum | W60: =IFERROR(INDEX(IFC_Commodity_CommodityGroup[IFC Commodity group],MATCH(FAOdata[[#This Row],[IFC Commodity]],IFC_Commodity_CommodityGroup[IFC Commodity], 0)),"") -> Pulses & Grains | X60: =IFERROR(INDEX(IFC_Commodity_CommodityGroup[FAO commodity group], MATCH(FAOdata[[#This Row],[IFC Commodity]],IFC_Commodity_CommodityGroup[IFC Commodity],0)),"") -> Cereals | Y60: =IFERROR(INDEX(FTS[[#All],[IFC Supply Chain Stage]],MATCH(FAOdata[[#This Row],[food_supply_stage]],FTS[[#All],[fsc_location1]],0)),"") -> Production
A61: 108 | B61: Burundi | D61: 114 | E61: Sorghum | F61: 2019 | G61: 3.6 | H61: 3.6 | J61: Shelling, Threshing | K61: Farm | O61: Modelled Estimates | Q61: https://www.aphlis.net/en/page/20/data-tables#/datatables?tab=value_chain&metric=prc | S61: =IFERROR(INDEX(UNcountrycodes[Region Name],MATCH(FAOdata[[#This Row],[m49_code]],UNcountrycodes[M49 Code],0)),"") -> Africa | T61: =IFERROR(INDEX(UNcountrycodes[Sub-region Name], MATCH(FAOdata[[#This Row],[m49_code]],UNcountrycodes[M49 Code],0)),"") -> Sub-Saharan Africa | U61: =IFERROR(INDEX(RegionClassification[FAO region],MATCH(FAOdata[[#This Row],[UN sub-region]],RegionClassification[UN region],0)),"") -> Sub-Saharan Africa | V61: =INDEX(FAO_IFC_Commodity[IFC commodity], MATCH(FAOdata[[#This Row],[commodity]],FAO_IFC_Commodity[FAO commodity],0)) -> Sorghum | W61: =IFERROR(INDEX(IFC_Commodity_CommodityGroup[IFC Commodity group],MATCH(FAOdata[[#This Row],[IFC Commodity]],IFC_Commodity_CommodityGroup[IFC Commodity], 0)),"") -> Pulses & Grains | X61: =IFERROR(INDEX(IFC_Commodity_CommodityGroup[FAO commodity group], MATCH(FAOdata[[#This Row],[IFC Commodity]],IFC_Commodity_CommodityGroup[IFC Commodity],0)),"") -> Cereals | Y61: =IFERROR(INDEX(FTS[[#All],[IFC Supply Chain Stage]],MATCH(FAOdata[[#This Row],[food_supply_stage]],FTS[[#All],[fsc_location1]],0)),"") -> Production
A62: 108 | B62: Burundi | D62: 114 | E62: Sorghum | F62: 2019 | G62: 2.69 | H62: 2.69 | J62: Storage | K62: Farm | O62: Modelled Estimates | Q62: https://www.aphlis.net/en/page/20/data-tables#/datatables?tab=value_chain&metric=prc | S62: =IFERROR(INDEX(UNcountrycodes[Region Name],MATCH(FAOdata[[#This Row],[m49_code]],UNcountrycodes[M49 Code],0)),"") -> Africa | T62: =IFERROR(INDEX(UNcountrycodes[Sub-region Name], MATCH(FAOdata[[#This Row],[m49_code]],UNcountrycodes[M49 Code],0)),"") -> Sub-Saharan Africa | U62: =IFERROR(INDEX(RegionClassification[FAO region],MATCH(FAOdata[[#This Row],[UN sub-region]],RegionClassification[UN region],0)),"") -> Sub-Saharan Africa | V62: =INDEX(FAO_IFC_Commodity[IFC commodity], MATCH(FAOdata[[#This Row],[commodity]],FAO_IFC_Commodity[FAO commodity],0)) -> Sorghum | W62: =IFERROR(INDEX(IFC_Commodity_CommodityGroup[IFC Commodity group],MATCH(FAOdata[[#This Row],[IFC Commodity]],IFC_Commodity_CommodityGroup[IFC Commodity], 0)),"") -> Pulses & Grains | X62: =IFERROR(INDEX(IFC_Commodity_CommodityGroup[FAO commodity group], MATCH(FAOdata[[#This Row],[IFC Commodity]],IFC_Commodity_CommodityGroup[IFC Commodity],0)),"") -> Cereals | Y62: =IFERROR(INDEX(FTS[[#All],[IFC Supply Chain Stage]],MATCH(FAOdata[[#This Row],[food_supply_stage]],FTS[[#All],[fsc_location1]],0)),"") -> Production
A63: 108 | B63: Burundi | D63: 118 | E63: Millet | F63: 2019 | G63: 3.5 | H63: 3.5 | J63: Drying, Harvesting | K63: Harvest | O63: Modelled Estimates | Q63: https://www.aphlis.net/en/page/20/data-tables#/datatables?tab=value_chain&metric=prc | S63: =IFERROR(INDEX(UNcountrycodes[Region Name],MATCH(FAOdata[[#This Row],[m49_code]],UNcountrycodes[M49 Code],0)),"") -> Africa | T63: =IFERROR(INDEX(UNcountrycodes[Sub-region Name], MATCH(FAOdata[[#This Row],[m49_code]],UNcountrycodes[M49 Code],0)),"") -> Sub-Saharan Africa | U63: =IFERROR(INDEX(RegionClassification[FAO region],MATCH(FAOdata[[#This Row],[UN sub-region]],RegionClassification[UN region],0)),"") -> Sub-Saharan Africa | V63: =INDEX(FAO_IFC_Commodity[IFC commodity], MATCH(FAOdata[[#This Row],[commodity]],FAO_IFC_Commodity[FAO commodity],0)) -> Millet | W63: =IFERROR(INDEX(IFC_Commodity_CommodityGroup[IFC Commodity group],MATCH(FAOdata[[#This Row],[IFC Commodity]],IFC_Commodity_CommodityGroup[IFC Commodity], 0)),"") -> Pulses & Grains | X63: =IFERROR(INDEX(IFC_Commodity_CommodityGroup[FAO commodity group], MATCH(FAOdata[[#This Row],[IFC Commodity]],IFC_Commodity_CommodityGroup[IFC Commodity],0)),"") -> Cereals | Y63: =IFERROR(INDEX(FTS[[#All],[IFC Supply Chain Stage]],MATCH(FAOdata[[#This Row],[food_supply_stage]],FTS[[#All],[fsc_location1]],0)),"") -> 0
A64: 108 | B64: Burundi | D64: 118 | E64: Millet | F64: 2019 | G64: 1.18 | H64: 1.18 | J64: Storage | K64: Farm | O64: Modelled Estimates | Q64: https://www.aphlis.net/en/page/20/data-tables#/datatables?tab=value_chain&metric=prc | S64: =IFERROR(INDEX(UNcountrycodes[Region Name],MATCH(FAOdata[[#This Row],[m49_code]],UNcountrycodes[M49 Code],0)),"") -> Africa | T64: =IFERROR(INDEX(UNcountrycodes[Sub-region Name], MATCH(FAOdata[[#This Row],[m49_code]],UNcountrycodes[M49 Code],0)),"") -> Sub-Saharan Africa | U64: =IFERROR(INDEX(RegionClassification[FAO region],MATCH(FAOdata[[#This Row],[UN sub-region]],RegionClassification[UN region],0)),"") -> Sub-Saharan Africa | V64: =INDEX(FAO_IFC_Commodity[IFC commodity], MATCH(FAOdata[[#This Row],[commodity]],FAO_IFC_Commodity[FAO commodity],0)) -> Millet | W64: =IFERROR(INDEX(IFC_Commodity_CommodityGroup[IFC Commodity group],MATCH(FAOdata[[#This Row],[IFC Commodity]],IFC_Commodity_CommodityGroup[IFC Commodity], 0)),"") -> Pulses & Grains | X64: =IFERROR(INDEX(IFC_Commodity_CommodityGroup[FAO commodity group], MATCH(FAOdata[[#This Row],[IFC Commodity]],IFC_Commodity_CommodityGroup[IFC Commodity],0)),"") -> Cereals | Y64: =IFERROR(INDEX(FTS[[#All],[IFC Supply Chain Stage]],MATCH(FAOdata[[#This Row],[food_supply_stage]],FTS[[#All],[fsc_location1]],0)),"") -> Production
A65: 108 | B65: Burundi | D65: 118 | E65: Millet | F65: 2019 | G65: 2.5 | H65: 2.5 | J65: Transportation | K65: Farm | O65: Modelled Estimates | Q65: https://www.aphlis.net/en/page/20/data-tables#/datatables?tab=value_chain&metric=prc | S65: =IFERROR(INDEX(UNcountrycodes[Region Name],MATCH(FAOdata[[#This Row],[m49_code]],UNcountrycodes[M49 Code],0)),"") -> Africa | T65: =IFERROR(INDEX(UNcountrycodes[Sub-region Name], MATCH(FAOdata[[#This Row],[m49_code]],UNcountrycodes[M49 Code],0)),"") -> Sub-Saharan Africa | U65: =IFERROR(INDEX(RegionClassification[FAO region],MATCH(FAOdata[[#This Row],[UN sub-region]],RegionClassification[UN region],0)),"") -> Sub-Saharan Africa | V65: =INDEX(FAO_IFC_Commodity[IFC commodity], MATCH(FAOdata[[#This Row],[commodity]],FAO_IFC_Commodity[FAO commodity],0)) -> Millet | W65: =IFERROR(INDEX(IFC_Commodity_CommodityGroup[IFC Commodity group],MATCH(FAOdata[[#This Row],[IFC Commodity]],IFC_Commodity_CommodityGroup[IFC Commodity], 0)),"") -> Pulses & Grains | X65: =IFERROR(INDEX(IFC_Commodity_CommodityGroup[FAO commodity group], MATCH(FAOdata[[#This Row],[IFC Commodity]],IFC_Commodity_CommodityGroup[IFC Commodity],0)),"") -> Cereals | Y65: =IFERROR(INDEX(FTS[[#All],[IFC Supply Chain Stage]],MATCH(FAOdata[[#This Row],[food_supply_stage]],FTS[[#All],[fsc_location1]],0)),"") -> Production
A66: 108 | B66: Burundi | D66: 118 | E66: Millet | F66: 2019 | G66: 2.5 | H66: 2.5 | J66: Winnowing | K66: Farm | O66: Modelled Estimates | Q66: https://www.aphlis.net/en/page/20/data-tables#/datatables?tab=value_chain&metric=prc | S66: =IFERROR(INDEX(UNcountrycodes[Region Name],MATCH(FAOdata[[#This Row],[m49_code]],UNcountrycodes[M49 Code],0)),"") -> Africa | T66: =IFERROR(INDEX(UNcountrycodes[Sub-region Name], MATCH(FAOdata[[#This Row],[m49_code]],UNcountrycodes[M49 Code],0)),"") -> Sub-Saharan Africa | U66: =IFERROR(INDEX(RegionClassification[FAO region],MATCH(FAOdata[[#This Row],[UN sub-region]],RegionClassification[UN region],0)),"") -> Sub-Saharan Africa | V66: =INDEX(FAO_IFC_Commodity[IFC commodity], MATCH(FAOdata[[#This Row],[commodity]],FAO_IFC_Commodity[FAO commodity],0)) -> Millet | W66: =IFERROR(INDEX(IFC_Commodity_CommodityGroup[IFC Commodity group],MATCH(FAOdata[[#This Row],[IFC Commodity]],IFC_Commodity_CommodityGroup[IFC Commodity], 0)),"") -> Pulses & Grains | X66: =IFERROR(INDEX(IFC_Commodity_CommodityGroup[FAO commodity group], MATCH(FAOdata[[#This Row],[IFC Commodity]],IFC_Commodity_CommodityGroup[IFC Commodity],0)),"") -> Cereals | Y66: =IFERROR(INDEX(FTS[[#All],[IFC Supply Chain Stage]],MATCH(FAOdata[[#This Row],[food_supply_stage]],FTS[[#All],[fsc_location1]],0)),"") -> Production
A67: 108 | B67: Burundi | D67: 118 | E67: Millet | F67: 2019 | G67: 2 | H67: 2 | J67: Shelling, Threshing | K67: Farm | O67: Modelled Estimates | Q67: https://www.aphlis.net/en/page/20/data-tables#/datatables?tab=value_chain&metric=prc | S67: =IFERROR(INDEX(UNcountrycodes[Region Name],MATCH(FAOdata[[#This Row],[m49_code]],UNcountrycodes[M49 Code],0)),"") -> Africa | T67: =IFERROR(INDEX(UNcountrycodes[Sub-region Name], MATCH(FAOdata[[#This Row],[m49_code]],UNcountrycodes[M49 Code],0)),"") -> Sub-Saharan Africa | U67: =IFERROR(INDEX(RegionClassification[FAO region],MATCH(FAOdata[[#This Row],[UN sub-region]],RegionClassification[UN region],0)),"") -> Sub-Saharan Africa | V67: =INDEX(FAO_IFC_Commodity[IFC commodity], MATCH(FAOdata[[#This Row],[commodity]],FAO_IFC_Commodity[FAO commodity],0)) -> Millet | W67: =IFERROR(INDEX(IFC_Commodity_CommodityGroup[IFC Commodity group],MATCH(FAOdata[[#This Row],[IFC Commodity]],IFC_Commodity_CommodityGroup[IFC Commodity], 0)),"") -> Pulses & Grains | X67: =IFERROR(INDEX(IFC_Commodity_CommodityGroup[FAO commodity group], MATCH(FAOdata[[#This Row],[IFC Commodity]],IFC_Commodity_CommodityGroup[IFC Commodity],0)),"") -> Cereals | Y67: =IFERROR(INDEX(FTS[[#All],[IFC Supply Chain Stage]],MATCH(FAOdata[[#This Row],[food_supply_stage]],FTS[[#All],[fsc_location1]],0)),"") -> Production
A68: 108 | B68: Burundi | D68: 111 | E68: Wheat | F68: 2018 | G68: 3.5 | H68: 3.5 | J68: Shelling, Threshing | K68: Farm | O68: Modelled Estimates | Q68: https://www.aphlis.net/en/page/20/data-tables#/datatables?tab=value_chain&metric=prc | S68: =IFERROR(INDEX(UNcountrycodes[Region Name],MATCH(FAOdata[[#This Row],[m49_code]],UNcountrycodes[M49 Code],0)),"") -> Africa | T68: =IFERROR(INDEX(UNcountrycodes[Sub-region Name], MATCH(FAOdata[[#This Row],[m49_code]],UNcountrycodes[M49 Code],0)),"") -> Sub-Saharan Africa | U68: =IFERROR(INDEX(RegionClassification[FAO region],MATCH(FAOdata[[#This Row],[UN sub-region]],RegionClassification[UN region],0)),"") -> Sub-Saharan Africa | V68: =INDEX(FAO_IFC_Commodity[IFC commodity], MATCH(FAOdata[[#This Row],[commodity]],FAO_IFC_Commodity[FAO commodity],0)) -> Wheat | W68: =IFERROR(INDEX(IFC_Commodity_CommodityGroup[IFC Commodity group],MATCH(FAOdata[[#This Row],[IFC Commodity]],IFC_Commodity_CommodityGroup[IFC Commodity], 0)),"") -> Pulses & Grains | X68: =IFERROR(INDEX(IFC_Commodity_CommodityGroup[FAO commodity group], MATCH(FAOdata[[#This Row],[IFC Commodity]],IFC_Commodity_CommodityGroup[IFC Commodity],0)),"") -> Cereals | Y68: =IFERROR(INDEX(FTS[[#All],[IFC Supply Chain Stage]],MATCH(FAOdata[[#This Row],[food_supply_stage]],FTS[[#All],[fsc_location1]],0)),"") -> Production
A69: 108 | B69: Burundi | D69: 111 | E69: Wheat | F69: 2018 | G69: 4.43 | H69: 4.43 | J69: Drying, Harvesting | K69: Harvest | O69: Modelled Estimates | Q69: https://www.aphlis.net/en/page/20/data-tables#/datatables?tab=value_chain&metric=prc | S69: =IFERROR(INDEX(UNcountrycodes[Region Name],MATCH(FAOdata[[#This Row],[m49_code]],UNcountrycodes[M49 Code],0)),"") -> Africa | T69: =IFERROR(INDEX(UNcountrycodes[Sub-region Name], MATCH(FAOdata[[#This Row],[m49_code]],UNcountrycodes[M49 Code],0)),"") -> Sub-Saharan Africa | U69: =IFERROR(INDEX(RegionClassification[FAO region],MATCH(FAOdata[[#This Row],[UN sub-region]],RegionClassification[UN region],0)),"") -> Sub-Saharan Africa | V69: =INDEX(FAO_IFC_Commodity[IFC commodity], MATCH(FAOdata[[#This Row],[commodity]],FAO_IFC_Commodity[FAO commodity],0)) -> Wheat | W69: =IFERROR(INDEX(IFC_Commodity_CommodityGroup[IFC Commodity group],MATCH(FAOdata[[#This Row],[IFC Commodity]],IFC_Commodity_CommodityGroup[IFC Commodity], 0)),"") -> Pulses & Grains | X69: =IFERROR(INDEX(IFC_Commodity_CommodityGroup[FAO commodity group], MATCH(FAOdata[[#This Row],[IFC Commodity]],IFC_Commodity_CommodityGroup[IFC Commodity],0)),"") -> Cereals | Y69: =IFERROR(INDEX(FTS[[#All],[IFC Supply Chain Stage]],MATCH(FAOdata[[#This Row],[food_supply_stage]],FTS[[#All],[fsc_location1]],0)),"") -> 0
A70: 108 | B70: Burundi | D70: 111 | E70: Wheat | F70: 2018 | G70: 2.5 | H70: 2.5 | J70: Transportation | K70: Farm | O70: Modelled Estimates | Q70: https://www.aphlis.net/en/page/20/data-tables#/datatables?tab=value_chain&metric=prc | S70: =IFERROR(INDEX(UNcountrycodes[Region Name],MATCH(FAOdata[[#This Row],[m49_code]],UNcountrycodes[M49 Code],0)),"") -> Africa | T70: =IFERROR(INDEX(UNcountrycodes[Sub-region Name], MATCH(FAOdata[[#This Row],[m49_code]],UNcountrycodes[M49 Code],0)),"") -> Sub-Saharan Africa | U70: =IFERROR(INDEX(RegionClassification[FAO region],MATCH(FAOdata[[#This Row],[UN sub-region]],RegionClassification[UN region],0)),"") -> Sub-Saharan Africa | V70: =INDEX(FAO_IFC_Commodity[IFC commodity], MATCH(FAOdata[[#This Row],[commodity]],FAO_IFC_Commodity[FAO commodity],0)) -> Wheat | W70: =IFERROR(INDEX(IFC_Commodity_CommodityGroup[IFC Commodity group],MATCH(FAOdata[[#This Row],[IFC Commodity]],IFC_Commodity_CommodityGroup[IFC Commodity], 0)),"") -> Pulses & Grains | X70: =IFERROR(INDEX(IFC_Commodity_CommodityGroup[FAO commodity group], MATCH(FAOdata[[#This Row],[IFC Commodity]],IFC_Commodity_CommodityGroup[IFC Commodity],0)),"") -> Cereals | Y70: =IFERROR(INDEX(FTS[[#All],[IFC Supply Chain Stage]],MATCH(FAOdata[[#This Row],[food_supply_stage]],FTS[[#All],[fsc_location1]],0)),"") -> Production
A71: 108 | B71: Burundi | D71: 111 | E71: Wheat | F71: 2018 | G71: 4.87 | H71: 4.87 | J71: Storage | K71: Farm | O71: Modelled Estimates | Q71: https://www.aphlis.net/en/page/20/data-tables#/datatables?tab=value_chain&metric=prc | S71: =IFERROR(INDEX(UNcountrycodes[Region Name],MATCH(FAOdata[[#This Row],[m49_code]],UNcountrycodes[M49 Code],0)),"") -> Africa | T71: =IFERROR(INDEX(UNcountrycodes[Sub-region Name], MATCH(FAOdata[[#This Row],[m49_code]],UNcountrycodes[M49 Code],0)),"") -> Sub-Saharan Africa | U71: =IFERROR(INDEX(RegionClassification[FAO region],MATCH(FAOdata[[#This Row],[UN sub-region]],RegionClassification[UN region],0)),"") -> Sub-Saharan Africa | V71: =INDEX(FAO_IFC_Commodity[IFC commodity], MATCH(FAOdata[[#This Row],[commodity]],FAO_IFC_Commodity[FAO commodity],0)) -> Wheat | W71: =IFERROR(INDEX(IFC_Commodity_CommodityGroup[IFC Commodity group],MATCH(FAOdata[[#This Row],[IFC Commodity]],IFC_Commodity_CommodityGroup[IFC Commodity], 0)),"") -> Pulses & Grains | X71: =IFERROR(INDEX(IFC_Commodity_CommodityGroup[FAO commodity group], MATCH(FAOdata[[#This Row],[IFC Commodity]],IFC_Commodity_CommodityGroup[IFC Commodity],0)),"") -> Cereals | Y71: =IFERROR(INDEX(FTS[[#All],[IFC Supply Chain Stage]],MATCH(FAOdata[[#This Row],[food_supply_stage]],FTS[[#All],[fsc_location1]],0)),"") -> Production
A72: 108 | B72: Burundi | D72: 112 | E72: Maize (corn) | F72: 2018 | G72: 6.42 | H72: 6.42 | J72: Drying, Harvesting | K72: Harvest | O72: Modelled Estimates | Q72: https://www.aphlis.net/en/page/20/data-tables#/datatables?tab=value_chain&metric=prc | S72: =IFERROR(INDEX(UNcountrycodes[Region Name],MATCH(FAOdata[[#This Row],[m49_code]],UNcountrycodes[M49 Code],0)),"") -> Africa | T72: =IFERROR(INDEX(UNcountrycodes[Sub-region Name], MATCH(FAOdata[[#This Row],[m49_code]],UNcountrycodes[M49 Code],0)),"") -> Sub-Saharan Africa | U72: =IFERROR(INDEX(RegionClassification[FAO region],MATCH(FAOdata[[#This Row],[UN sub-region]],RegionClassification[UN region],0)),"") -> Sub-Saharan Africa | V72: =INDEX(FAO_IFC_Commodity[IFC commodity], MATCH(FAOdata[[#This Row],[commodity]],FAO_IFC_Commodity[FAO commodity],0)) -> Maize | W72: =IFERROR(INDEX(IFC_Commodity_CommodityGroup[IFC Commodity group],MATCH(FAOdata[[#This Row],[IFC Commodity]],IFC_Commodity_CommodityGroup[IFC Commodity], 0)),"") -> Pulses & Grains | X72: =IFERROR(INDEX(IFC_Commodity_CommodityGroup[FAO commodity group], MATCH(FAOdata[[#This Row],[IFC Commodity]],IFC_Commodity_CommodityGroup[IFC Commodity],0)),"") -> Cereals | Y72: =IFERROR(INDEX(FTS[[#All],[IFC Supply Chain Stage]],MATCH(FAOdata[[#This Row],[food_supply_stage]],FTS[[#All],[fsc_location1]],0)),"") -> 0
A73: 108 | B73: Burundi | D73: 112 | E73: Maize (corn) | F73: 2018 | G73: 1.32 | H73: 1.32 | J73: Shelling, Threshing | K73: Farm | O73: Modelled Estimates | Q73: https://www.aphlis.net/en/page/20/data-tables#/datatables?tab=value_chain&metric=prc | S73: =IFERROR(INDEX(UNcountrycodes[Region Name],MATCH(FAOdata[[#This Row],[m49_code]],UNcountrycodes[M49 Code],0)),"") -> Africa | T73: =IFERROR(INDEX(UNcountrycodes[Sub-region Name], MATCH(FAOdata[[#This Row],[m49_code]],UNcountrycodes[M49 Code],0)),"") -> Sub-Saharan Africa | U73: =IFERROR(INDEX(RegionClassification[FAO region],MATCH(FAOdata[[#This Row],[UN sub-region]],RegionClassification[UN region],0)),"") -> Sub-Saharan Africa | V73: =INDEX(FAO_IFC_Commodity[IFC commodity], MATCH(FAOdata[[#This Row],[commodity]],FAO_IFC_Commodity[FAO commodity],0)) -> Maize | W73: =IFERROR(INDEX(IFC_Commodity_CommodityGroup[IFC Commodity group],MATCH(FAOdata[[#This Row],[IFC Commodity]],IFC_Commodity_CommodityGroup[IFC Commodity], 0)),"") -> Pulses & Grains | X73: =IFERROR(INDEX(IFC_Commodity_CommodityGroup[FAO commodity group], MATCH(FAOdata[[#This Row],[IFC Commodity]],IFC_Commodity_CommodityGroup[IFC Commodity],0)),"") -> Cereals | Y73: =IFERROR(INDEX(FTS[[#All],[IFC Supply Chain Stage]],MATCH(FAOdata[[#This Row],[food_supply_stage]],FTS[[#All],[fsc_location1]],0)),"") -> Production
A74: 108 | B74: Burundi | D74: 112 | E74: Maize (corn) | F74: 2018 | G74: 4 | H74: 4 | J74: Drying | K74: Farm | O74: Modelled Estimates | Q74: https://www.aphlis.net/en/page/20/data-tables#/datatables?tab=value_chain&metric=prc | S74: =IFERROR(INDEX(UNcountrycodes[Region Name],MATCH(FAOdata[[#This Row],[m49_code]],UNcountrycodes[M49 Code],0)),"") -> Africa | T74: =IFERROR(INDEX(UNcountrycodes[Sub-region Name], MATCH(FAOdata[[#This Row],[m49_code]],UNcountrycodes[M49 Code],0)),"") -> Sub-Saharan Africa | U74: =IFERROR(INDEX(RegionClassification[FAO region],MATCH(FAOdata[[#This Row],[UN sub-region]],RegionClassification[UN region],0)),"") -> Sub-Saharan Africa | V74: =INDEX(FAO_IFC_Commodity[IFC commodity], MATCH(FAOdata[[#This Row],[commodity]],FAO_IFC_Commodity[FAO commodity],0)) -> Maize | W74: =IFERROR(INDEX(IFC_Commodity_CommodityGroup[IFC Commodity group],MATCH(FAOdata[[#This Row],[IFC Commodity]],IFC_Commodity_CommodityGroup[IFC Commodity], 0)),"") -> Pulses & Grains | X74: =IFERROR(INDEX(IFC_Commodity_CommodityGroup[FAO commodity group], MATCH(FAOdata[[#This Row],[IFC Commodity]],IFC_Commodity_CommodityGroup[IFC Commodity],0)),"") -> Cereals | Y74: =IFERROR(INDEX(FTS[[#All],[IFC Supply Chain Stage]],MATCH(FAOdata[[#This Row],[food_supply_stage]],FTS[[#All],[fsc_location1]],0)),"") -> Production
A75: 108 | B75: Burundi | D75: 112 | E75: Maize (corn) | F75: 2018 | G75: 5.26 | H75: 5.26 | J75: Storage | K75: Farm | O75: Modelled Estimates | Q75: https://www.aphlis.net/en/page/20/data-tables#/datatables?tab=value_chain&metric=prc | S75: =IFERROR(INDEX(UNcountrycodes[Region Name],MATCH(FAOdata[[#This Row],[m49_code]],UNcountrycodes[M49 Code],0)),"") -> Africa | T75: =IFERROR(INDEX(UNcountrycodes[Sub-region Name], MATCH(FAOdata[[#This Row],[m49_code]],UNcountrycodes[M49 Code],0)),"") -> Sub-Saharan Africa | U75: =IFERROR(INDEX(RegionClassification[FAO region],MATCH(FAOdata[[#This Row],[UN sub-region]],RegionClassification[UN region],0)),"") -> Sub-Saharan Africa | V75: =INDEX(FAO_IFC_Commodity[IFC commodity], MATCH(FAOdata[[#This Row],[commodity]],FAO_IFC_Commodity[FAO commodity],0)) -> Maize | W75: =IFERROR(INDEX(IFC_Commodity_CommodityGroup[IFC Commodity group],MATCH(FAOdata[[#This Row],[IFC Commodity]],IFC_Commodity_CommodityGroup[IFC Commodity], 0)),"") -> Pulses & Grains | X75: =IFERROR(INDEX(IFC_Commodity_CommodityGroup[FAO commodity group], MATCH(FAOdata[[#This Row],[IFC Commodity]],IFC_Commodity_CommodityGroup[IFC Commodity],0)),"") -> Cereals | Y75: =IFERROR(INDEX(FTS[[#All],[IFC Supply Chain Stage]],MATCH(FAOdata[[#This Row],[food_supply_stage]],FTS[[#All],[fsc_location1]],0)),"") -> Production
A76: 108 | B76: Burundi | D76: 112 | E76: Maize (corn) | F76: 2018 | G76: 2.36 | H76: 2.36 | J76: Transportation | K76: Farm | O76: Modelled Estimates | Q76: https://www.aphlis.net/en/page/20/data-tables#/datatables?tab=value_chain&metric=prc | S76: =IFERROR(INDEX(UNcountrycodes[Region Name],MATCH(FAOdata[[#This Row],[m49_code]],UNcountrycodes[M49 Code],0)),"") -> Africa | T76: =IFERROR(INDEX(UNcountrycodes[Sub-region Name], MATCH(FAOdata[[#This Row],[m49_code]],UNcountrycodes[M49 Code],0)),"") -> Sub-Saharan Africa | U76: =IFERROR(INDEX(RegionClassification[FAO region],MATCH(FAOdata[[#This Row],[UN sub-region]],RegionClassification[UN region],0)),"") -> Sub-Saharan Africa | V76: =INDEX(FAO_IFC_Commodity[IFC commodity], MATCH(FAOdata[[#This Row],[commodity]],FAO_IFC_Commodity[FAO commodity],0)) -> Maize | W76: =IFERROR(INDEX(IFC_Commodity_CommodityGroup[IFC Commodity group],MATCH(FAOdata[[#This Row],[IFC Commodity]],IFC_Commodity_CommodityGroup[IFC Commodity], 0)),"") -> Pulses & Grains | X76: =IFERROR(INDEX(IFC_Commodity_CommodityGroup[FAO commodity group], MATCH(FAOdata[[#This Row],[IFC Commodity]],IFC_Commodity_CommodityGroup[IFC Commodity],0)),"") -> Cereals | Y76: =IFERROR(INDEX(FTS[[#All],[IFC Supply Chain Stage]],MATCH(FAOdata[[#This Row],[food_supply_stage]],FTS[[#All],[fsc_location1]],0)),"") -> Production
A77: 108 | B77: Burundi | D77: 113 | E77: Rice | F77: 2018 | G77: 3.14 | H77: 3.14 | J77: Shelling, Threshing | K77: Farm | O77: Modelled Estimates | Q77: https://www.aphlis.net/en/page/20/data-tables#/datatables?tab=value_chain&metric=prc | S77: =IFERROR(INDEX(UNcountrycodes[Region Name],MATCH(FAOdata[[#This Row],[m49_code]],UNcountrycodes[M49 Code],0)),"") -> Africa | T77: =IFERROR(INDEX(UNcountrycodes[Sub-region Name], MATCH(FAOdata[[#This Row],[m49_code]],UNcountrycodes[M49 Code],0)),"") -> Sub-Saharan Africa | U77: =IFERROR(INDEX(RegionClassification[FAO region],MATCH(FAOdata[[#This Row],[UN sub-region]],RegionClassification[UN region],0)),"") -> Sub-Saharan Africa | V77: =INDEX(FAO_IFC_Commodity[IFC commodity], MATCH(FAOdata[[#This Row],[commodity]],FAO_IFC_Commodity[FAO commodity],0)) -> Rice | W77: =IFERROR(INDEX(IFC_Commodity_CommodityGroup[IFC Commodity group],MATCH(FAOdata[[#This Row],[IFC Commodity]],IFC_Commodity_CommodityGroup[IFC Commodity], 0)),"") -> Pulses & Grains | X77: =IFERROR(INDEX(IFC_Commodity_CommodityGroup[FAO commodity group], MATCH(FAOdata[[#This Row],[IFC Commodity]],IFC_Commodity_CommodityGroup[IFC Commodity],0)),"") -> Cereals | Y77: =IFERROR(INDEX(FTS[[#All],[IFC Supply Chain Stage]],MATCH(FAOdata[[#This Row],[food_supply_stage]],FTS[[#All],[fsc_location1]],0)),"") -> Production
A78: 108 | B78: Burundi | D78: 113 | E78: Rice | F78: 2018 | G78: 2.5 | H78: 2.5 | J78: Winnowing | K78: Farm | O78: Modelled Estimates | Q78: https://www.aphlis.net/en/page/20/data-tables#/datatables?tab=value_chain&metric=prc | S78: =IFERROR(INDEX(UNcountrycodes[Region Name],MATCH(FAOdata[[#This Row],[m49_code]],UNcountrycodes[M49 Code],0)),"") -> Africa | T78: =IFERROR(INDEX(UNcountrycodes[Sub-region Name], MATCH(FAOdata[[#This Row],[m49_code]],UNcountrycodes[M49 Code],0)),"") -> Sub-Saharan Africa | U78: =IFERROR(INDEX(RegionClassification[FAO region],MATCH(FAOdata[[#This Row],[UN sub-region]],RegionClassification[UN region],0)),"") -> Sub-Saharan Africa | V78: =INDEX(FAO_IFC_Commodity[IFC commodity], MATCH(FAOdata[[#This Row],[commodity]],FAO_IFC_Commodity[FAO commodity],0)) -> Rice | W78: =IFERROR(INDEX(IFC_Commodity_CommodityGroup[IFC Commodity group],MATCH(FAOdata[[#This Row],[IFC Commodity]],IFC_Commodity_CommodityGroup[IFC Commodity], 0)),"") -> Pulses & Grains | X78: =IFERROR(INDEX(IFC_Commodity_CommodityGroup[FAO commodity group], MATCH(FAOdata[[#This Row],[IFC Commodity]],IFC_Commodity_CommodityGroup[IFC Commodity],0)),"") -> Cereals | Y78: =IFERROR(INDEX(FTS[[#All],[IFC Supply Chain Stage]],MATCH(FAOdata[[#This Row],[food_supply_stage]],FTS[[#All],[fsc_location1]],0)),"") -> Production
A79: 108 | B79: Burundi | D79: 113 | E79: Rice | F79: 2018 | G79: 1.25 | H79: 1.25 | J79: Transportation | K79: Farm | O79: Modelled Estimates | Q79: https://www.aphlis.net/en/page/20/data-tables#/datatables?tab=value_chain&metric=prc | S79: =IFERROR(INDEX(UNcountrycodes[Region Name],MATCH(FAOdata[[#This Row],[m49_code]],UNcountrycodes[M49 Code],0)),"") -> Africa | T79: =IFERROR(INDEX(UNcountrycodes[Sub-region Name], MATCH(FAOdata[[#This Row],[m49_code]],UNcountrycodes[M49 Code],0)),"") -> Sub-Saharan Africa | U79: =IFERROR(INDEX(RegionClassification[FAO region],MATCH(FAOdata[[#This Row],[UN sub-region]],RegionClassification[UN region],0)),"") -> Sub-Saharan Africa | V79: =INDEX(FAO_IFC_Commodity[IFC commodity], MATCH(FAOdata[[#This Row],[commodity]],FAO_IFC_Commodity[FAO commodity],0)) -> Rice | W79: =IFERROR(INDEX(IFC_Commodity_CommodityGroup[IFC Commodity group],MATCH(FAOdata[[#This Row],[IFC Commodity]],IFC_Commodity_CommodityGroup[IFC Commodity], 0)),"") -> Pulses & Grains | X79: =IFERROR(INDEX(IFC_Commodity_CommodityGroup[FAO commodity group], MATCH(FAOdata[[#This Row],[IFC Commodity]],IFC_Commodity_CommodityGroup[IFC Commodity],0)),"") -> Cereals | Y79: =IFERROR(INDEX(FTS[[#All],[IFC Supply Chain Stage]],MATCH(FAOdata[[#This Row],[food_supply_stage]],FTS[[#All],[fsc_location1]],0)),"") -> Production
A80: 108 | B80: Burundi | D80: 113 | E80: Rice | F80: 2018 | G80: 1.2 | H80: 1.2 | J80: Storage | K80: Farm | O80: Modelled Estimates | Q80: https://www.aphlis.net/en/page/20/data-tables#/datatables?tab=value_chain&metric=prc | S80: =IFERROR(INDEX(UNcountrycodes[Region Name],MATCH(FAOdata[[#This Row],[m49_code]],UNcountrycodes[M49 Code],0)),"") -> Africa | T80: =IFERROR(INDEX(UNcountrycodes[Sub-region Name], MATCH(FAOdata[[#This Row],[m49_code]],UNcountrycodes[M49 Code],0)),"") -> Sub-Saharan Africa | U80: =IFERROR(INDEX(RegionClassification[FAO region],MATCH(FAOdata[[#This Row],[UN sub-region]],RegionClassification[UN region],0)),"") -> Sub-Saharan Africa | V80: =INDEX(FAO_IFC_Commodity[IFC commodity], MATCH(FAOdata[[#This Row],[commodity]],FAO_IFC_Commodity[FAO commodity],0)) -> Rice | W80: =IFERROR(INDEX(IFC_Commodity_CommodityGroup[IFC Commodity group],MATCH(FAOdata[[#This Row],[IFC Commodity]],IFC_Commodity_CommodityGroup[IFC Commodity], 0)),"") -> Pulses & Grains | X80: =IFERROR(INDEX(IFC_Commodity_CommodityGroup[FAO commodity group], MATCH(FAOdata[[#This Row],[IFC Commodity]],IFC_Commodity_CommodityGroup[IFC Commodity],0)),"") -> Cereals | Y80: =IFERROR(INDEX(FTS[[#All],[IFC Supply Chain Stage]],MATCH(FAOdata[[#This Row],[food_supply_stage]],FTS[[#All],[fsc_location1]],0)),"") -> Production
A81: 108 | B81: Burundi | D81: 113 | E81: Rice | F81: 2018 | G81: 4.4 | H81: 4.4 | J81: Drying, Harvesting | K81: Harvest | O81: Modelled Estimates | Q81: https://www.aphlis.net/en/page/20/data-tables#/datatables?tab=value_chain&metric=prc | S81: =IFERROR(INDEX(UNcountrycodes[Region Name],MATCH(FAOdata[[#This Row],[m49_code]],UNcountrycodes[M49 Code],0)),"") -> Africa | T81: =IFERROR(INDEX(UNcountrycodes[Sub-region Name], MATCH(FAOdata[[#This Row],[m49_code]],UNcountrycodes[M49 Code],0)),"") -> Sub-Saharan Africa | U81: =IFERROR(INDEX(RegionClassification[FAO region],MATCH(FAOdata[[#This Row],[UN sub-region]],RegionClassification[UN region],0)),"") -> Sub-Saharan Africa | V81: =INDEX(FAO_IFC_Commodity[IFC commodity], MATCH(FAOdata[[#This Row],[commodity]],FAO_IFC_Commodity[FAO commodity],0)) -> Rice | W81: =IFERROR(INDEX(IFC_Commodity_CommodityGroup[IFC Commodity group],MATCH(FAOdata[[#This Row],[IFC Commodity]],IFC_Commodity_CommodityGroup[IFC Commodity], 0)),"") -> Pulses & Grains | X81: =IFERROR(INDEX(IFC_Commodity_CommodityGroup[FAO commodity group], MATCH(FAOdata[[#This Row],[IFC Commodity]],IFC_Commodity_CommodityGroup[IFC Commodity],0)),"") -> Cereals | Y81: =IFERROR(INDEX(FTS[[#All],[IFC Supply Chain Stage]],MATCH(FAOdata[[#This Row],[food_supply_stage]],FTS[[#All],[fsc_location1]],0)),"") -> 0
A82: 108 | B82: Burundi | D82: 114 | E82: Sorghum | F82: 2018 | G82: 2.69 | H82: 2.69 | J82: Storage | K82: Farm | O82: Modelled Estimates | Q82: https://www.aphlis.net/en/page/20/data-tables#/datatables?tab=value_chain&metric=prc | S82: =IFERROR(INDEX(UNcountrycodes[Region Name],MATCH(FAOdata[[#This Row],[m49_code]],UNcountrycodes[M49 Code],0)),"") -> Africa | T82: =IFERROR(INDEX(UNcountrycodes[Sub-region Name], MATCH(FAOdata[[#This Row],[m49_code]],UNcountrycodes[M49 Code],0)),"") -> Sub-Saharan Africa | U82: =IFERROR(INDEX(RegionClassification[FAO region],MATCH(FAOdata[[#This Row],[UN sub-region]],RegionClassification[UN region],0)),"") -> Sub-Saharan Africa | V82: =INDEX(FAO_IFC_Commodity[IFC commodity], MATCH(FAOdata[[#This Row],[commodity]],FAO_IFC_Commodity[FAO commodity],0)) -> Sorghum | W82: =IFERROR(INDEX(IFC_Commodity_CommodityGroup[IFC Commodity group],MATCH(FAOdata[[#This Row],[IFC Commodity]],IFC_Commodity_CommodityGroup[IFC Commodity], 0)),"") -> Pulses & Grains | X82: =IFERROR(INDEX(IFC_Commodity_CommodityGroup[FAO commodity group], MATCH(FAOdata[[#This Row],[IFC Commodity]],IFC_Commodity_CommodityGroup[IFC Commodity],0)),"") -> Cereals | Y82: =IFERROR(INDEX(FTS[[#All],[IFC Supply Chain Stage]],MATCH(FAOdata[[#This Row],[food_supply_stage]],FTS[[#All],[fsc_location1]],0)),"") -> Production
A83: 108 | B83: Burundi | D83: 114 | E83: Sorghum | F83: 2018 | G83: 3.6 | H83: 3.6 | J83: Shelling, Threshing | K83: Farm | O83: Modelled Estimates | Q83: https://www.aphlis.net/en/page/20/data-tables#/datatables?tab=value_chain&metric=prc | S83: =IFERROR(INDEX(UNcountrycodes[Region Name],MATCH(FAOdata[[#This Row],[m49_code]],UNcountrycodes[M49 Code],0)),"") -> Africa | T83: =IFERROR(INDEX(UNcountrycodes[Sub-region Name], MATCH(FAOdata[[#This Row],[m49_code]],UNcountrycodes[M49 Code],0)),"") -> Sub-Saharan Africa | U83: =IFERROR(INDEX(RegionClassification[FAO region],MATCH(FAOdata[[#This Row],[UN sub-region]],RegionClassification[UN region],0)),"") -> Sub-Saharan Africa | V83: =INDEX(FAO_IFC_Commodity[IFC commodity], MATCH(FAOdata[[#This Row],[commodity]],FAO_IFC_Commodity[FAO commodity],0)) -> Sorghum | W83: =IFERROR(INDEX(IFC_Commodity_CommodityGroup[IFC Commodity group],MATCH(FAOdata[[#This Row],[IFC Commodity]],IFC_Commodity_CommodityGroup[IFC Commodity], 0)),"") -> Pulses & Grains | X83: =IFERROR(INDEX(IFC_Commodity_CommodityGroup[FAO commodity group], MATCH(FAOdata[[#This Row],[IFC Commodity]],IFC_Commodity_CommodityGroup[IFC Commodity],0)),"") -> Cereals | Y83: =IFERROR(INDEX(FTS[[#All],[IFC Supply Chain Stage]],MATCH(FAOdata[[#This Row],[food_supply_stage]],FTS[[#All],[fsc_location1]],0)),"") -> Production
A84: 108 | B84: Burundi | D84: 114 | E84: Sorghum | F84: 2018 | G84: 2.17 | H84: 2.17 | J84: Transportation | K84: Farm | O84: Modelled Estimates | Q84: https://www.aphlis.net/en/page/20/data-tables#/datatables?tab=value_chain&metric=prc | S84: =IFERROR(INDEX(UNcountrycodes[Region Name],MATCH(FAOdata[[#This Row],[m49_code]],UNcountrycodes[M49 Code],0)),"") -> Africa | T84: =IFERROR(INDEX(UNcountrycodes[Sub-region Name], MATCH(FAOdata[[#This Row],[m49_code]],UNcountrycodes[M49 Code],0)),"") -> Sub-Saharan Africa | U84: =IFERROR(INDEX(RegionClassification[FAO region],MATCH(FAOdata[[#This Row],[UN sub-region]],RegionClassification[UN region],0)),"") -> Sub-Saharan Africa | V84: =INDEX(FAO_IFC_Commodity[IFC commodity], MATCH(FAOdata[[#This Row],[commodity]],FAO_IFC_Commodity[FAO commodity],0)) -> Sorghum | W84: =IFERROR(INDEX(IFC_Commodity_CommodityGroup[IFC Commodity group],MATCH(FAOdata[[#This Row],[IFC Commodity]],IFC_Commodity_CommodityGroup[IFC Commodity], 0)),"") -> Pulses & Grains | X84: =IFERROR(INDEX(IFC_Commodity_CommodityGroup[FAO commodity group], MATCH(FAOdata[[#This Row],[IFC Commodity]],IFC_Commodity_CommodityGroup[IFC Commodity],0)),"") -> Cereals | Y84: =IFERROR(INDEX(FTS[[#All],[IFC Supply Chain Stage]],MATCH(FAOdata[[#This Row],[food_supply_stage]],FTS[[#All],[fsc_location1]],0)),"") -> Production
A85: 108 | B85: Burundi | D85: 114 | E85: Sorghum | F85: 2018 | G85: 4.55 | H85: 4.55 | J85: Drying, Harvesting | K85: Harvest | O85: Modelled Estimates | Q85: https://www.aphlis.net/en/page/20/data-tables#/datatables?tab=value_chain&metric=prc | S85: =IFERROR(INDEX(UNcountrycodes[Region Name],MATCH(FAOdata[[#This Row],[m49_code]],UNcountrycodes[M49 Code],0)),"") -> Africa | T85: =IFERROR(INDEX(UNcountrycodes[Sub-region Name], MATCH(FAOdata[[#This Row],[m49_code]],UNcountrycodes[M49 Code],0)),"") -> Sub-Saharan Africa | U85: =IFERROR(INDEX(RegionClassification[FAO region],MATCH(FAOdata[[#This Row],[UN sub-region]],RegionClassification[UN region],0)),"") -> Sub-Saharan Africa | V85: =INDEX(FAO_IFC_Commodity[IFC commodity], MATCH(FAOdata[[#This Row],[commodity]],FAO_IFC_Commodity[FAO commodity],0)) -> Sorghum | W85: =IFERROR(INDEX(IFC_Commodity_CommodityGroup[IFC Commodity group],MATCH(FAOdata[[#This Row],[IFC Commodity]],IFC_Commodity_CommodityGroup[IFC Commodity], 0)),"") -> Pulses & Grains | X85: =IFERROR(INDEX(IFC_Commodity_CommodityGroup[FAO commodity group], MATCH(FAOdata[[#This Row],[IFC Commodity]],IFC_Commodity_CommodityGroup[IFC Commodity],0)),"") -> Cereals | Y85: =IFERROR(INDEX(FTS[[#All],[IFC Supply Chain Stage]],MATCH(FAOdata[[#This Row],[food_supply_stage]],FTS[[#All],[fsc_location1]],0)),"") -> 0
A86: 108 | B86: Burundi | D86: 118 | E86: Millet | F86: 2018 | G86: 1.18 | H86: 1.18 | J86: Storage | K86: Farm | O86: Modelled Estimates | Q86: https://www.aphlis.net/en/page/20/data-tables#/datatables?tab=value_chain&metric=prc | S86: =IFERROR(INDEX(UNcountrycodes[Region Name],MATCH(FAOdata[[#This Row],[m49_code]],UNcountrycodes[M49 Code],0)),"") -> Africa | T86: =IFERROR(INDEX(UNcountrycodes[Sub-region Name], MATCH(FAOdata[[#This Row],[m49_code]],UNcountrycodes[M49 Code],0)),"") -> Sub-Saharan Africa | U86: =IFERROR(INDEX(RegionClassification[FAO region],MATCH(FAOdata[[#This Row],[UN sub-region]],RegionClassification[UN region],0)),"") -> Sub-Saharan Africa | V86: =INDEX(FAO_IFC_Commodity[IFC commodity], MATCH(FAOdata[[#This Row],[commodity]],FAO_IFC_Commodity[FAO commodity],0)) -> Millet | W86: =IFERROR(INDEX(IFC_Commodity_CommodityGroup[IFC Commodity group],MATCH(FAOdata[[#This Row],[IFC Commodity]],IFC_Commodity_CommodityGroup[IFC Commodity], 0)),"") -> Pulses & Grains | X86: =IFERROR(INDEX(IFC_Commodity_CommodityGroup[FAO commodity group], MATCH(FAOdata[[#This Row],[IFC Commodity]],IFC_Commodity_CommodityGroup[IFC Commodity],0)),"") -> Cereals | Y86: =IFERROR(INDEX(FTS[[#All],[IFC Supply Chain Stage]],MATCH(FAOdata[[#This Row],[food_supply_stage]],FTS[[#All],[fsc_location1]],0)),"") -> Production
A87: 108 | B87: Burundi | D87: 118 | E87: Millet | F87: 2018 | G87: 2.5 | H87: 2.5 | J87: Transportation | K87: Farm | O87: Modelled Estimates | Q87: https://www.aphlis.net/en/page/20/data-tables#/datatables?tab=value_chain&metric=prc | S87: =IFERROR(INDEX(UNcountrycodes[Region Name],MATCH(FAOdata[[#This Row],[m49_code]],UNcountrycodes[M49 Code],0)),"") -> Africa | T87: =IFERROR(INDEX(UNcountrycodes[Sub-region Name], MATCH(FAOdata[[#This Row],[m49_code]],UNcountrycodes[M49 Code],0)),"") -> Sub-Saharan Africa | U87: =IFERROR(INDEX(RegionClassification[FAO region],MATCH(FAOdata[[#This Row],[UN sub-region]],RegionClassification[UN region],0)),"") -> Sub-Saharan Africa | V87: =INDEX(FAO_IFC_Commodity[IFC commodity], MATCH(FAOdata[[#This Row],[commodity]],FAO_IFC_Commodity[FAO commodity],0)) -> Millet | W87: =IFERROR(INDEX(IFC_Commodity_CommodityGroup[IFC Commodity group],MATCH(FAOdata[[#This Row],[IFC Commodity]],IFC_Commodity_CommodityGroup[IFC Commodity], 0)),"") -> Pulses & Grains | X87: =IFERROR(INDEX(IFC_Commodity_CommodityGroup[FAO commodity group], MATCH(FAOdata[[#This Row],[IFC Commodity]],IFC_Commodity_CommodityGroup[IFC Commodity],0)),"") -> Cereals | Y87: =IFERROR(INDEX(FTS[[#All],[IFC Supply Chain Stage]],MATCH(FAOdata[[#This Row],[food_supply_stage]],FTS[[#All],[fsc_location1]],0)),"") -> Production
A88: 108 | B88: Burundi | D88: 118 | E88: Millet | F88: 2018 | G88: 3.5 | H88: 3.5 | J88: Drying, Harvesting | K88: Harvest | O88: Modelled Estimates | Q88: https://www.aphlis.net/en/page/20/data-tables#/datatables?tab=value_chain&metric=prc | S88: =IFERROR(INDEX(UNcountrycodes[Region Name],MATCH(FAOdata[[#This Row],[m49_code]],UNcountrycodes[M49 Code],0)),"") -> Africa | T88: =IFERROR(INDEX(UNcountrycodes[Sub-region Name], MATCH(FAOdata[[#This Row],[m49_code]],UNcountrycodes[M49 Code],0)),"") -> Sub-Saharan Africa | U88: =IFERROR(INDEX(RegionClassification[FAO region],MATCH(FAOdata[[#This Row],[UN sub-region]],RegionClassification[UN region],0)),"") -> Sub-Saharan Africa | V88: =INDEX(FAO_IFC_Commodity[IFC commodity], MATCH(FAOdata[[#This Row],[commodity]],FAO_IFC_Commodity[FAO commodity],0)) -> Millet | W88: =IFERROR(INDEX(IFC_Commodity_CommodityGroup[IFC Commodity group],MATCH(FAOdata[[#This Row],[IFC Commodity]],IFC_Commodity_CommodityGroup[IFC Commodity], 0)),"") -> Pulses & Grains | X88: =IFERROR(INDEX(IFC_Commodity_CommodityGroup[FAO commodity group], MATCH(FAOdata[[#This Row],[IFC Commodity]],IFC_Commodity_CommodityGroup[IFC Commodity],0)),"") -> Cereals | Y88: =IFERROR(INDEX(FTS[[#All],[IFC Supply Chain Stage]],MATCH(FAOdata[[#This Row],[food_supply_stage]],FTS[[#All],[fsc_location1]],0)),"") -> 0
A89: 108 | B89: Burundi | D89: 118 | E89: Millet | F89: 2018 | G89: 2.5 | H89: 2.5 | J89: Winnowing | K89: Farm | O89: Modelled Estimates | Q89: https://www.aphlis.net/en/page/20/data-tables#/datatables?tab=value_chain&metric=prc | S89: =IFERROR(INDEX(UNcountrycodes[Region Name],MATCH(FAOdata[[#This Row],[m49_code]],UNcountrycodes[M49 Code],0)),"") -> Africa | T89: =IFERROR(INDEX(UNcountrycodes[Sub-region Name], MATCH(FAOdata[[#This Row],[m49_code]],UNcountrycodes[M49 Code],0)),"") -> Sub-Saharan Africa | U89: =IFERROR(INDEX(RegionClassification[FAO region],MATCH(FAOdata[[#This Row],[UN sub-region]],RegionClassification[UN region],0)),"") -> Sub-Saharan Africa | V89: =INDEX(FAO_IFC_Commodity[IFC commodity], MATCH(FAOdata[[#This Row],[commodity]],FAO_IFC_Commodity[FAO commodity],0)) -> Millet | W89: =IFERROR(INDEX(IFC_Commodity_CommodityGroup[IFC Commodity group],MATCH(FAOdata[[#This Row],[IFC Commodity]],IFC_Commodity_CommodityGroup[IFC Commodity], 0)),"") -> Pulses & Grains | X89: =IFERROR(INDEX(IFC_Commodity_CommodityGroup[FAO commodity group], MATCH(FAOdata[[#This Row],[IFC Commodity]],IFC_Commodity_CommodityGroup[IFC Commodity],0)),"") -> Cereals | Y89: =IFERROR(INDEX(FTS[[#All],[IFC Supply Chain Stage]],MATCH(FAOdata[[#This Row],[food_supply_stage]],FTS[[#All],[fsc_location1]],0)),"") -> Production
A90: 108 | B90: Burundi | D90: 118 | E90: Millet | F90: 2018 | G90: 2 | H90: 2 | J90: Shelling, Threshing | K90: Farm | O90: Modelled Estimates | Q90: https://www.aphlis.net/en/page/20/data-tables#/datatables?tab=value_chain&metric=prc | S90: =IFERROR(INDEX(UNcountrycodes[Region Name],MATCH(FAOdata[[#This Row],[m49_code]],UNcountrycodes[M49 Code],0)),"") -> Africa | T90: =IFERROR(INDEX(UNcountrycodes[Sub-region Name], MATCH(FAOdata[[#This Row],[m49_code]],UNcountrycodes[M49 Code],0)),"") -> Sub-Saharan Africa | U90: =IFERROR(INDEX(RegionClassification[FAO region],MATCH(FAOdata[[#This Row],[UN sub-region]],RegionClassification[UN region],0)),"") -> Sub-Saharan Africa | V90: =INDEX(FAO_IFC_Commodity[IFC commodity], MATCH(FAOdata[[#This Row],[commodity]],FAO_IFC_Commodity[FAO commodity],0)) -> Millet | W90: =IFERROR(INDEX(IFC_Commodity_CommodityGroup[IFC Commodity group],MATCH(FAOdata[[#This Row],[IFC Commodity]],IFC_Commodity_CommodityGroup[IFC Commodity], 0)),"") -> Pulses & Grains | X90: =IFERROR(INDEX(IFC_Commodity_CommodityGroup[FAO commodity group], MATCH(FAOdata[[#This Row],[IFC Commodity]],IFC_Commodity_CommodityGroup[IFC Commodity],0)),"") -> Cereals | Y90: =IFERROR(INDEX(FTS[[#All],[IFC Supply Chain Stage]],MATCH(FAOdata[[#This Row],[food_supply_stage]],FTS[[#All],[fsc_location1]],0)),"") -> Production
A91: 108 | B91: Burundi | D91: 111 | E91: Wheat | F91: 2017 | G91: 4.87 | H91: 4.87 | J91: Storage | K91: Farm | O91: Modelled Estimates | Q91: https://www.aphlis.net/en/page/20/data-tables#/datatables?tab=value_chain&metric=prc | S91: =IFERROR(INDEX(UNcountrycodes[Region Name],MATCH(FAOdata[[#This Row],[m49_code]],UNcountrycodes[M49 Code],0)),"") -> Africa | T91: =IFERROR(INDEX(UNcountrycodes[Sub-region Name], MATCH(FAOdata[[#This Row],[m49_code]],UNcountrycodes[M49 Code],0)),"") -> Sub-Saharan Africa | U91: =IFERROR(INDEX(RegionClassification[FAO region],MATCH(FAOdata[[#This Row],[UN sub-region]],RegionClassification[UN region],0)),"") -> Sub-Saharan Africa | V91: =INDEX(FAO_IFC_Commodity[IFC commodity], MATCH(FAOdata[[#This Row],[commodity]],FAO_IFC_Commodity[FAO commodity],0)) -> Wheat | W91: =IFERROR(INDEX(IFC_Commodity_CommodityGroup[IFC Commodity group],MATCH(FAOdata[[#This Row],[IFC Commodity]],IFC_Commodity_CommodityGroup[IFC Commodity], 0)),"") -> Pulses & Grains | X91: =IFERROR(INDEX(IFC_Commodity_CommodityGroup[FAO commodity group], MATCH(FAOdata[[#This Row],[IFC Commodity]],IFC_Commodity_CommodityGroup[IFC Commodity],0)),"") -> Cereals | Y91: =IFERROR(INDEX(FTS[[#All],[IFC Supply Chain Stage]],MATCH(FAOdata[[#This Row],[food_supply_stage]],FTS[[#All],[fsc_location1]],0)),"") -> Production
A92: 108 | B92: Burundi | D92: 111 | E92: Wheat | F92: 2017 | G92: 2.5 | H92: 2.5 | J92: Transportation | K92: Farm | O92: Modelled Estimates | Q92: https://www.aphlis.net/en/page/20/data-tables#/datatables?tab=value_chain&metric=prc | S92: =IFERROR(INDEX(UNcountrycodes[Region Name],MATCH(FAOdata[[#This Row],[m49_code]],UNcountrycodes[M49 Code],0)),"") -> Africa | T92: =IFERROR(INDEX(UNcountrycodes[Sub-region Name], MATCH(FAOdata[[#This Row],[m49_code]],UNcountrycodes[M49 Code],0)),"") -> Sub-Saharan Africa | U92: =IFERROR(INDEX(RegionClassification[FAO region],MATCH(FAOdata[[#This Row],[UN sub-region]],RegionClassification[UN region],0)),"") -> Sub-Saharan Africa | V92: =INDEX(FAO_IFC_Commodity[IFC commodity], MATCH(FAOdata[[#This Row],[commodity]],FAO_IFC_Commodity[FAO commodity],0)) -> Wheat | W92: =IFERROR(INDEX(IFC_Commodity_CommodityGroup[IFC Commodity group],MATCH(FAOdata[[#This Row],[IFC Commodity]],IFC_Commodity_CommodityGroup[IFC Commodity], 0)),"") -> Pulses & Grains | X92: =IFERROR(INDEX(IFC_Commodity_CommodityGroup[FAO commodity group], MATCH(FAOdata[[#This Row],[IFC Commodity]],IFC_Commodity_CommodityGroup[IFC Commodity],0)),"") -> Cereals | Y92: =IFERROR(INDEX(FTS[[#All],[IFC Supply Chain Stage]],MATCH(FAOdata[[#This Row],[food_supply_stage]],FTS[[#All],[fsc_location1]],0)),"") -> Production
A93: 108 | B93: Burundi | D93: 111 | E93: Wheat | F93: 2017 | G93: 4.43 | H93: 4.43 | J93: Drying, Harvesting | K93: Harvest | O93: Modelled Estimates | Q93: https://www.aphlis.net/en/page/20/data-tables#/datatables?tab=value_chain&metric=prc | S93: =IFERROR(INDEX(UNcountrycodes[Region Name],MATCH(FAOdata[[#This Row],[m49_code]],UNcountrycodes[M49 Code],0)),"") -> Africa | T93: =IFERROR(INDEX(UNcountrycodes[Sub-region Name], MATCH(FAOdata[[#This Row],[m49_code]],UNcountrycodes[M49 Code],0)),"") -> Sub-Saharan Africa | U93: =IFERROR(INDEX(RegionClassification[FAO region],MATCH(FAOdata[[#This Row],[UN sub-region]],RegionClassification[UN region],0)),"") -> Sub-Saharan Africa | V93: =INDEX(FAO_IFC_Commodity[IFC commodity], MATCH(FAOdata[[#This Row],[commodity]],FAO_IFC_Commodity[FAO commodity],0)) -> Wheat | W93: =IFERROR(INDEX(IFC_Commodity_CommodityGroup[IFC Commodity group],MATCH(FAOdata[[#This Row],[IFC Commodity]],IFC_Commodity_CommodityGroup[IFC Commodity], 0)),"") -> Pulses & Grains | X93: =IFERROR(INDEX(IFC_Commodity_CommodityGroup[FAO commodity group], MATCH(FAOdata[[#This Row],[IFC Commodity]],IFC_Commodity_CommodityGroup[IFC Commodity],0)),"") -> Cereals | Y93: =IFERROR(INDEX(FTS[[#All],[IFC Supply Chain Stage]],MATCH(FAOdata[[#This Row],[food_supply_stage]],FTS[[#All],[fsc_location1]],0)),"") -> 0
A94: 108 | B94: Burundi | D94: 111 | E94: Wheat | F94: 2017 | G94: 3.5 | H94: 3.5 | J94: Shelling, Threshing | K94: Farm | O94: Modelled Estimates | Q94: https://www.aphlis.net/en/page/20/data-tables#/datatables?tab=value_chain&metric=prc | S94: =IFERROR(INDEX(UNcountrycodes[Region Name],MATCH(FAOdata[[#This Row],[m49_code]],UNcountrycodes[M49 Code],0)),"") -> Africa | T94: =IFERROR(INDEX(UNcountrycodes[Sub-region Name], MATCH(FAOdata[[#This Row],[m49_code]],UNcountrycodes[M49 Code],0)),"") -> Sub-Saharan Africa | U94: =IFERROR(INDEX(RegionClassification[FAO region],MATCH(FAOdata[[#This Row],[UN sub-region]],RegionClassification[UN region],0)),"") -> Sub-Saharan Africa | V94: =INDEX(FAO_IFC_Commodity[IFC commodity], MATCH(FAOdata[[#This Row],[commodity]],FAO_IFC_Commodity[FAO commodity],0)) -> Wheat | W94: =IFERROR(INDEX(IFC_Commodity_CommodityGroup[IFC Commodity group],MATCH(FAOdata[[#This Row],[IFC Commodity]],IFC_Commodity_CommodityGroup[IFC Commodity], 0)),"") -> Pulses & Grains | X94: =IFERROR(INDEX(IFC_Commodity_CommodityGroup[FAO commodity group], MATCH(FAOdata[[#This Row],[IFC Commodity]],IFC_Commodity_CommodityGroup[IFC Commodity],0)),"") -> Cereals | Y94: =IFERROR(INDEX(FTS[[#All],[IFC Supply Chain Stage]],MATCH(FAOdata[[#This Row],[food_supply_stage]],FTS[[#All],[fsc_location1]],0)),"") -> Production
A95: 108 | B95: Burundi | D95: 112 | E95: Maize (corn) | F95: 2017 | G95: 1.32 | H95: 1.32 | J95: Shelling, Threshing | K95: Farm | O95: Modelled Estimates | Q95: https://www.aphlis.net/en/page/20/data-tables#/datatables?tab=value_chain&metric=prc | S95: =IFERROR(INDEX(UNcountrycodes[Region Name],MATCH(FAOdata[[#This Row],[m49_code]],UNcountrycodes[M49 Code],0)),"") -> Africa | T95: =IFERROR(INDEX(UNcountrycodes[Sub-region Name], MATCH(FAOdata[[#This Row],[m49_code]],UNcountrycodes[M49 Code],0)),"") -> Sub-Saharan Africa | U95: =IFERROR(INDEX(RegionClassification[FAO region],MATCH(FAOdata[[#This Row],[UN sub-region]],RegionClassification[UN region],0)),"") -> Sub-Saharan Africa | V95: =INDEX(FAO_IFC_Commodity[IFC commodity], MATCH(FAOdata[[#This Row],[commodity]],FAO_IFC_Commodity[FAO commodity],0)) -> Maize | W95: =IFERROR(INDEX(IFC_Commodity_CommodityGroup[IFC Commodity group],MATCH(FAOdata[[#This Row],[IFC Commodity]],IFC_Commodity_CommodityGroup[IFC Commodity], 0)),"") -> Pulses & Grains | X95: =IFERROR(INDEX(IFC_Commodity_CommodityGroup[FAO commodity group], MATCH(FAOdata[[#This Row],[IFC Commodity]],IFC_Commodity_CommodityGroup[IFC Commodity],0)),"") -> Cereals | Y95: =IFERROR(INDEX(FTS[[#All],[IFC Supply Chain Stage]],MATCH(FAOdata[[#This Row],[food_supply_stage]],FTS[[#All],[fsc_location1]],0)),"") -> Production
A96: 108 | B96: Burundi | D96: 112 | E96: Maize (corn) | F96: 2017 | G96: 2.36 | H96: 2.36 | J96: Transportation | K96: Farm | O96: Modelled Estimates | Q96: https://www.aphlis.net/en/page/20/data-tables#/datatables?tab=value_chain&metric=prc | S96: =IFERROR(INDEX(UNcountrycodes[Region Name],MATCH(FAOdata[[#This Row],[m49_code]],UNcountrycodes[M49 Code],0)),"") -> Africa | T96: =IFERROR(INDEX(UNcountrycodes[Sub-region Name], MATCH(FAOdata[[#This Row],[m49_code]],UNcountrycodes[M49 Code],0)),"") -> Sub-Saharan Africa | U96: =IFERROR(INDEX(RegionClassification[FAO region],MATCH(FAOdata[[#This Row],[UN sub-region]],RegionClassification[UN region],0)),"") -> Sub-Saharan Africa | V96: =INDEX(FAO_IFC_Commodity[IFC commodity], MATCH(FAOdata[[#This Row],[commodity]],FAO_IFC_Commodity[FAO commodity],0)) -> Maize | W96: =IFERROR(INDEX(IFC_Commodity_CommodityGroup[IFC Commodity group],MATCH(FAOdata[[#This Row],[IFC Commodity]],IFC_Commodity_CommodityGroup[IFC Commodity], 0)),"") -> Pulses & Grains | X96: =IFERROR(INDEX(IFC_Commodity_CommodityGroup[FAO commodity group], MATCH(FAOdata[[#This Row],[IFC Commodity]],IFC_Commodity_CommodityGroup[IFC Commodity],0)),"") -> Cereals | Y96: =IFERROR(INDEX(FTS[[#All],[IFC Supply Chain Stage]],MATCH(FAOdata[[#This Row],[food_supply_stage]],FTS[[#All],[fsc_location1]],0)),"") -> Production
A97: 108 | B97: Burundi | D97: 112 | E97: Maize (corn) | F97: 2017 | G97: 6.42 | H97: 6.42 | J97: Drying, Harvesting | K97: Harvest | O97: Modelled Estimates | Q97: https://www.aphlis.net/en/page/20/data-tables#/datatables?tab=value_chain&metric=prc | S97: =IFERROR(INDEX(UNcountrycodes[Region Name],MATCH(FAOdata[[#This Row],[m49_code]],UNcountrycodes[M49 Code],0)),"") -> Africa | T97: =IFERROR(INDEX(UNcountrycodes[Sub-region Name], MATCH(FAOdata[[#This Row],[m49_code]],UNcountrycodes[M49 Code],0)),"") -> Sub-Saharan Africa | U97: =IFERROR(INDEX(RegionClassification[FAO region],MATCH(FAOdata[[#This Row],[UN sub-region]],RegionClassification[UN region],0)),"") -> Sub-Saharan Africa | V97: =INDEX(FAO_IFC_Commodity[IFC commodity], MATCH(FAOdata[[#This Row],[commodity]],FAO_IFC_Commodity[FAO commodity],0)) -> Maize | W97: =IFERROR(INDEX(IFC_Commodity_CommodityGroup[IFC Commodity group],MATCH(FAOdata[[#This Row],[IFC Commodity]],IFC_Commodity_CommodityGroup[IFC Commodity], 0)),"") -> Pulses & Grains | X97: =IFERROR(INDEX(IFC_Commodity_CommodityGroup[FAO commodity group], MATCH(FAOdata[[#This Row],[IFC Commodity]],IFC_Commodity_CommodityGroup[IFC Commodity],0)),"") -> Cereals | Y97: =IFERROR(INDEX(FTS[[#All],[IFC Supply Chain Stage]],MATCH(FAOdata[[#This Row],[food_supply_stage]],FTS[[#All],[fsc_location1]],0)),"") -> 0
A98: 108 | B98: Burundi | D98: 112 | E98: Maize (corn) | F98: 2017 | G98: 5.26 | H98: 5.26 | J98: Storage | K98: Farm | O98: Modelled Estimates | Q98: https://www.aphlis.net/en/page/20/data-tables#/datatables?tab=value_chain&metric=prc | S98: =IFERROR(INDEX(UNcountrycodes[Region Name],MATCH(FAOdata[[#This Row],[m49_code]],UNcountrycodes[M49 Code],0)),"") -> Africa | T98: =IFERROR(INDEX(UNcountrycodes[Sub-region Name], MATCH(FAOdata[[#This Row],[m49_code]],UNcountrycodes[M49 Code],0)),"") -> Sub-Saharan Africa | U98: =IFERROR(INDEX(RegionClassification[FAO region],MATCH(FAOdata[[#This Row],[UN sub-region]],RegionClassification[UN region],0)),"") -> Sub-Saharan Africa | V98: =INDEX(FAO_IFC_Commodity[IFC commodity], MATCH(FAOdata[[#This Row],[commodity]],FAO_IFC_Commodity[FAO commodity],0)) -> Maize | W98: =IFERROR(INDEX(IFC_Commodity_CommodityGroup[IFC Commodity group],MATCH(FAOdata[[#This Row],[IFC Commodity]],IFC_Commodity_CommodityGroup[IFC Commodity], 0)),"") -> Pulses & Grains | X98: =IFERROR(INDEX(IFC_Commodity_CommodityGroup[FAO commodity group], MATCH(FAOdata[[#This Row],[IFC Commodity]],IFC_Commodity_CommodityGroup[IFC Commodity],0)),"") -> Cereals | Y98: =IFERROR(INDEX(FTS[[#All],[IFC Supply Chain Stage]],MATCH(FAOdata[[#This Row],[food_supply_stage]],FTS[[#All],[fsc_location1]],0)),"") -> Production
A99: 108 | B99: Burundi | D99: 112 | E99: Maize (corn) | F99: 2017 | G99: 4 | H99: 4 | J99: Drying | K99: Farm | O99: Modelled Estimates | Q99: https://www.aphlis.net/en/page/20/data-tables#/datatables?tab=value_chain&metric=prc | S99: =IFERROR(INDEX(UNcountrycodes[Region Name],MATCH(FAOdata[[#This Row],[m49_code]],UNcountrycodes[M49 Code],0)),"") -> Africa | T99: =IFERROR(INDEX(UNcountrycodes[Sub-region Name], MATCH(FAOdata[[#This Row],[m49_code]],UNcountrycodes[M49 Code],0)),"") -> Sub-Saharan Africa | U99: =IFERROR(INDEX(RegionClassification[FAO region],MATCH(FAOdata[[#This Row],[UN sub-region]],RegionClassification[UN region],0)),"") -> Sub-Saharan Africa | V99: =INDEX(FAO_IFC_Commodity[IFC commodity], MATCH(FAOdata[[#This Row],[commodity]],FAO_IFC_Commodity[FAO commodity],0)) -> Maize | W99: =IFERROR(INDEX(IFC_Commodity_CommodityGroup[IFC Commodity group],MATCH(FAOdata[[#This Row],[IFC Commodity]],IFC_Commodity_CommodityGroup[IFC Commodity], 0)),"") -> Pulses & Grains | X99: =IFERROR(INDEX(IFC_Commodity_CommodityGroup[FAO commodity group], MATCH(FAOdata[[#This Row],[IFC Commodity]],IFC_Commodity_CommodityGroup[IFC Commodity],0)),"") -> Cereals | Y99: =IFERROR(INDEX(FTS[[#All],[IFC Supply Chain Stage]],MATCH(FAOdata[[#This Row],[food_supply_stage]],FTS[[#All],[fsc_location1]],0)),"") -> Production
A100: 108 | B100: Burundi | D100: 113 | E100: Rice | F100: 2017 | G100: 3.14 | H100: 3.14 | J100: Shelling, Threshing | K100: Farm | O100: Modelled Estimates | Q100: https://www.aphlis.net/en/page/20/data-tables#/datatables?tab=value_chain&metric=prc | S100: =IFERROR(INDEX(UNcountrycodes[Region Name],MATCH(FAOdata[[#This Row],[m49_code]],UNcountrycodes[M49 Code],0)),"") -> Africa | T100: =IFERROR(INDEX(UNcountrycodes[Sub-region Name], MATCH(FAOdata[[#This Row],[m49_code]],UNcountrycodes[M49 Code],0)),"") -> Sub-Saharan Africa | U100: =IFERROR(INDEX(RegionClassification[FAO region],MATCH(FAOdata[[#This Row],[UN sub-region]],RegionClassification[UN region],0)),"") -> Sub-Saharan Africa | V100: =INDEX(FAO_IFC_Commodity[IFC commodity], MATCH(FAOdata[[#This Row],[commodity]],FAO_IFC_Commodity[FAO commodity],0)) -> Rice | W100: =IFERROR(INDEX(IFC_Commodity_CommodityGroup[IFC Commodity group],MATCH(FAOdata[[#This Row],[IFC Commodity]],IFC_Commodity_CommodityGroup[IFC Commodity], 0)),"") -> Pulses & Grains | X100: =IFERROR(INDEX(IFC_Commodity_CommodityGroup[FAO commodity group], MATCH(FAOdata[[#This Row],[IFC Commodity]],IFC_Commodity_CommodityGroup[IFC Commodity],0)),"") -> Cereals | Y100: =IFERROR(INDEX(FTS[[#All],[IFC Supply Chain Stage]],MATCH(FAOdata[[#This Row],[food_supply_stage]],FTS[[#All],[fsc_location1]],0)),"") -> Production
A101: 108 | B101: Burundi | D101: 113 | E101: Rice | F101: 2017 | G101: 1.25 | H101: 1.25 | J101: Transportation | K101: Farm | O101: Modelled Estimates | Q101: https://www.aphlis.net/en/page/20/data-tables#/datatables?tab=value_chain&metric=prc | S101: =IFERROR(INDEX(UNcountrycodes[Region Name],MATCH(FAOdata[[#This Row],[m49_code]],UNcountrycodes[M49 Code],0)),"") -> Africa | T101: =IFERROR(INDEX(UNcountrycodes[Sub-region Name], MATCH(FAOdata[[#This Row],[m49_code]],UNcountrycodes[M49 Code],0)),"") -> Sub-Saharan Africa | U101: =IFERROR(INDEX(RegionClassification[FAO region],MATCH(FAOdata[[#This Row],[UN sub-region]],RegionClassification[UN region],0)),"") -> Sub-Saharan Africa | V101: =INDEX(FAO_IFC_Commodity[IFC commodity], MATCH(FAOdata[[#This Row],[commodity]],FAO_IFC_Commodity[FAO commodity],0)) -> Rice | W101: =IFERROR(INDEX(IFC_Commodity_CommodityGroup[IFC Commodity group],MATCH(FAOdata[[#This Row],[IFC Commodity]],IFC_Commodity_CommodityGroup[IFC Commodity], 0)),"") -> Pulses & Grains | X101: =IFERROR(INDEX(IFC_Commodity_CommodityGroup[FAO commodity group], MATCH(FAOdata[[#This Row],[IFC Commodity]],IFC_Commodity_CommodityGroup[IFC Commodity],0)),"") -> Cereals | Y101: =IFERROR(INDEX(FTS[[#All],[IFC Supply Chain Stage]],MATCH(FAOdata[[#This Row],[food_supply_stage]],FTS[[#All],[fsc_location1]],0)),"") -> Production
A102: 108 | B102: Burundi | D102: 113 | E102: Rice | F102: 2017 | G102: 2.5 | H102: 2.5 | J102: Winnowing | K102: Farm | O102: Modelled Estimates | Q102: https://www.aphlis.net/en/page/20/data-tables#/datatables?tab=value_chain&metric=prc | S102: =IFERROR(INDEX(UNcountrycodes[Region Name],MATCH(FAOdata[[#This Row],[m49_code]],UNcountrycodes[M49 Code],0)),"") -> Africa | T102: =IFERROR(INDEX(UNcountrycodes[Sub-region Name], MATCH(FAOdata[[#This Row],[m49_code]],UNcountrycodes[M49 Code],0)),"") -> Sub-Saharan Africa | U102: =IFERROR(INDEX(RegionClassification[FAO region],MATCH(FAOdata[[#This Row],[UN sub-region]],RegionClassification[UN region],0)),"") -> Sub-Saharan Africa | V102: =INDEX(FAO_IFC_Commodity[IFC commodity], MATCH(FAOdata[[#This Row],[commodity]],FAO_IFC_Commodity[FAO commodity],0)) -> Rice | W102: =IFERROR(INDEX(IFC_Commodity_CommodityGroup[IFC Commodity group],MATCH(FAOdata[[#This Row],[IFC Commodity]],IFC_Commodity_CommodityGroup[IFC Commodity], 0)),"") -> Pulses & Grains | X102: =IFERROR(INDEX(IFC_Commodity_CommodityGroup[FAO commodity group], MATCH(FAOdata[[#This Row],[IFC Commodity]],IFC_Commodity_CommodityGroup[IFC Commodity],0)),"") -> Cereals | Y102: =IFERROR(INDEX(FTS[[#All],[IFC Supply Chain Stage]],MATCH(FAOdata[[#This Row],[food_supply_stage]],FTS[[#All],[fsc_location1]],0)),"") -> Production
A103: 108 | B103: Burundi | D103: 113 | E103: Rice | F103: 2017 | G103: 4.4 | H103: 4.4 | J103: Drying, Harvesting | K103: Harvest | O103: Modelled Estimates | Q103: https://www.aphlis.net/en/page/20/data-tables#/datatables?tab=value_chain&metric=prc | S103: =IFERROR(INDEX(UNcountrycodes[Region Name],MATCH(FAOdata[[#This Row],[m49_code]],UNcountrycodes[M49 Code],0)),"") -> Africa | T103: =IFERROR(INDEX(UNcountrycodes[Sub-region Name], MATCH(FAOdata[[#This Row],[m49_code]],UNcountrycodes[M49 Code],0)),"") -> Sub-Saharan Africa | U103: =IFERROR(INDEX(RegionClassification[FAO region],MATCH(FAOdata[[#This Row],[UN sub-region]],RegionClassification[UN region],0)),"") -> Sub-Saharan Africa | V103: =INDEX(FAO_IFC_Commodity[IFC commodity], MATCH(FAOdata[[#This Row],[commodity]],FAO_IFC_Commodity[FAO commodity],0)) -> Rice | W103: =IFERROR(INDEX(IFC_Commodity_CommodityGroup[IFC Commodity group],MATCH(FAOdata[[#This Row],[IFC Commodity]],IFC_Commodity_CommodityGroup[IFC Commodity], 0)),"") -> Pulses & Grains | X103: =IFERROR(INDEX(IFC_Commodity_CommodityGroup[FAO commodity group], MATCH(FAOdata[[#This Row],[IFC Commodity]],IFC_Commodity_CommodityGroup[IFC Commodity],0)),"") -> Cereals | Y103: =IFERROR(INDEX(FTS[[#All],[IFC Supply Chain Stage]],MATCH(FAOdata[[#This Row],[food_supply_stage]],FTS[[#All],[fsc_location1]],0)),"") -> 0
A104: 108 | B104: Burundi | D104: 113 | E104: Rice | F104: 2017 | G104: 1.2 | H104: 1.2 | J104: Storage | K104: Farm | O104: Modelled Estimates | Q104: https://www.aphlis.net/en/page/20/data-tables#/datatables?tab=value_chain&metric=prc | S104: =IFERROR(INDEX(UNcountrycodes[Region Name],MATCH(FAOdata[[#This Row],[m49_code]],UNcountrycodes[M49 Code],0)),"") -> Africa | T104: =IFERROR(INDEX(UNcountrycodes[Sub-region Name], MATCH(FAOdata[[#This Row],[m49_code]],UNcountrycodes[M49 Code],0)),"") -> Sub-Saharan Africa | U104: =IFERROR(INDEX(RegionClassification[FAO region],MATCH(FAOdata[[#This Row],[UN sub-region]],RegionClassification[UN region],0)),"") -> Sub-Saharan Africa | V104: =INDEX(FAO_IFC_Commodity[IFC commodity], MATCH(FAOdata[[#This Row],[commodity]],FAO_IFC_Commodity[FAO commodity],0)) -> Rice | W104: =IFERROR(INDEX(IFC_Commodity_CommodityGroup[IFC Commodity group],MATCH(FAOdata[[#This Row],[IFC Commodity]],IFC_Commodity_CommodityGroup[IFC Commodity], 0)),"") -> Pulses & Grains | X104: =IFERROR(INDEX(IFC_Commodity_CommodityGroup[FAO commodity group], MATCH(FAOdata[[#This Row],[IFC Commodity]],IFC_Commodity_CommodityGroup[IFC Commodity],0)),"") -> Cereals | Y104: =IFERROR(INDEX(FTS[[#All],[IFC Supply Chain Stage]],MATCH(FAOdata[[#This Row],[food_supply_stage]],FTS[[#All],[fsc_location1]],0)),"") -> Production
A105: 108 | B105: Burundi | D105: 114 | E105: Sorghum | F105: 2017 | G105: 3.6 | H105: 3.6 | J105: Shelling, Threshing | K105: Farm | O105: Modelled Estimates | Q105: https://www.aphlis.net/en/page/20/data-tables#/datatables?tab=value_chain&metric=prc | S105: =IFERROR(INDEX(UNcountrycodes[Region Name],MATCH(FAOdata[[#This Row],[m49_code]],UNcountrycodes[M49 Code],0)),"") -> Africa | T105: =IFERROR(INDEX(UNcountrycodes[Sub-region Name], MATCH(FAOdata[[#This Row],[m49_code]],UNcountrycodes[M49 Code],0)),"") -> Sub-Saharan Africa | U105: =IFERROR(INDEX(RegionClassification[FAO region],MATCH(FAOdata[[#This Row],[UN sub-region]],RegionClassification[UN region],0)),"") -> Sub-Saharan Africa | V105: =INDEX(FAO_IFC_Commodity[IFC commodity], MATCH(FAOdata[[#This Row],[commodity]],FAO_IFC_Commodity[FAO commodity],0)) -> Sorghum | W105: =IFERROR(INDEX(IFC_Commodity_CommodityGroup[IFC Commodity group],MATCH(FAOdata[[#This Row],[IFC Commodity]],IFC_Commodity_CommodityGroup[IFC Commodity], 0)),"") -> Pulses & Grains | X105: =IFERROR(INDEX(IFC_Commodity_CommodityGroup[FAO commodity group], MATCH(FAOdata[[#This Row],[IFC Commodity]],IFC_Commodity_CommodityGroup[IFC Commodity],0)),"") -> Cereals | Y105: =IFERROR(INDEX(FTS[[#All],[IFC Supply Chain Stage]],MATCH(FAOdata[[#This Row],[food_supply_stage]],FTS[[#All],[fsc_location1]],0)),"") -> Production
A106: 108 | B106: Burundi | D106: 114 | E106: Sorghum | F106: 2017 | G106: 2.17 | H106: 2.17 | J106: Transportation | K106: Farm | O106: Modelled Estimates | Q106: https://www.aphlis.net/en/page/20/data-tables#/datatables?tab=value_chain&metric=prc | S106: =IFERROR(INDEX(UNcountrycodes[Region Name],MATCH(FAOdata[[#This Row],[m49_code]],UNcountrycodes[M49 Code],0)),"") -> Africa | T106: =IFERROR(INDEX(UNcountrycodes[Sub-region Name], MATCH(FAOdata[[#This Row],[m49_code]],UNcountrycodes[M49 Code],0)),"") -> Sub-Saharan Africa | U106: =IFERROR(INDEX(RegionClassification[FAO region],MATCH(FAOdata[[#This Row],[UN sub-region]],RegionClassification[UN region],0)),"") -> Sub-Saharan Africa | V106: =INDEX(FAO_IFC_Commodity[IFC commodity], MATCH(FAOdata[[#This Row],[commodity]],FAO_IFC_Commodity[FAO commodity],0)) -> Sorghum | W106: =IFERROR(INDEX(IFC_Commodity_CommodityGroup[IFC Commodity group],MATCH(FAOdata[[#This Row],[IFC Commodity]],IFC_Commodity_CommodityGroup[IFC Commodity], 0)),"") -> Pulses & Grains | X106: =IFERROR(INDEX(IFC_Commodity_CommodityGroup[FAO commodity group], MATCH(FAOdata[[#This Row],[IFC Commodity]],IFC_Commodity_CommodityGroup[IFC Commodity],0)),"") -> Cereals | Y106: =IFERROR(INDEX(FTS[[#All],[IFC Supply Chain Stage]],MATCH(FAOdata[[#This Row],[food_supply_stage]],FTS[[#All],[fsc_location1]],0)),"") -> Production
A107: 108 | B107: Burundi | D107: 114 | E107: Sorghum | F107: 2017 | G107: 2.69 | H107: 2.69 | J107: Storage | K107: Farm | O107: Modelled Estimates | Q107: https://www.aphlis.net/en/page/20/data-tables#/datatables?tab=value_chain&metric=prc | S107: =IFERROR(INDEX(UNcountrycodes[Region Name],MATCH(FAOdata[[#This Row],[m49_code]],UNcountrycodes[M49 Code],0)),"") -> Africa | T107: =IFERROR(INDEX(UNcountrycodes[Sub-region Name], MATCH(FAOdata[[#This Row],[m49_code]],UNcountrycodes[M49 Code],0)),"") -> Sub-Saharan Africa | U107: =IFERROR(INDEX(RegionClassification[FAO region],MATCH(FAOdata[[#This Row],[UN sub-region]],RegionClassification[UN region],0)),"") -> Sub-Saharan Africa | V107: =INDEX(FAO_IFC_Commodity[IFC commodity], MATCH(FAOdata[[#This Row],[commodity]],FAO_IFC_Commodity[FAO commodity],0)) -> Sorghum | W107: =IFERROR(INDEX(IFC_Commodity_CommodityGroup[IFC Commodity group],MATCH(FAOdata[[#This Row],[IFC Commodity]],IFC_Commodity_CommodityGroup[IFC Commodity], 0)),"") -> Pulses & Grains | X107: =IFERROR(INDEX(IFC_Commodity_CommodityGroup[FAO commodity group], MATCH(FAOdata[[#This Row],[IFC Commodity]],IFC_Commodity_CommodityGroup[IFC Commodity],0)),"") -> Cereals | Y107: =IFERROR(INDEX(FTS[[#All],[IFC Supply Chain Stage]],MATCH(FAOdata[[#This Row],[food_supply_stage]],FTS[[#All],[fsc_location1]],0)),"") -> Production
A108: 108 | B108: Burundi | D108: 114 | E108: Sorghum | F108: 2017 | G108: 4.55 | H108: 4.55 | J108: Drying, Harvesting | K108: Harvest | O108: Modelled Estimates | Q108: https://www.aphlis.net/en/page/20/data-tables#/datatables?tab=value_chain&metric=prc | S108: =IFERROR(INDEX(UNcountrycodes[Region Name],MATCH(FAOdata[[#This Row],[m49_code]],UNcountrycodes[M49 Code],0)),"") -> Africa | T108: =IFERROR(INDEX(UNcountrycodes[Sub-region Name], MATCH(FAOdata[[#This Row],[m49_code]],UNcountrycodes[M49 Code],0)),"") -> Sub-Saharan Africa | U108: =IFERROR(INDEX(RegionClassification[FAO region],MATCH(FAOdata[[#This Row],[UN sub-region]],RegionClassification[UN region],0)),"") -> Sub-Saharan Africa | V108: =INDEX(FAO_IFC_Commodity[IFC commodity], MATCH(FAOdata[[#This Row],[commodity]],FAO_IFC_Commodity[FAO commodity],0)) -> Sorghum | W108: =IFERROR(INDEX(IFC_Commodity_CommodityGroup[IFC Commodity group],MATCH(FAOdata[[#This Row],[IFC Commodity]],IFC_Commodity_CommodityGroup[IFC Commodity], 0)),"") -> Pulses & Grains | X108: =IFERROR(INDEX(IFC_Commodity_CommodityGroup[FAO commodity group], MATCH(FAOdata[[#This Row],[IFC Commodity]],IFC_Commodity_CommodityGroup[IFC Commodity],0)),"") -> Cereals | Y108: =IFERROR(INDEX(FTS[[#All],[IFC Supply Chain Stage]],MATCH(FAOdata[[#This Row],[food_supply_stage]],FTS[[#All],[fsc_location1]],0)),"") -> 0
A109: 108 | B109: Burundi | D109: 118 | E109: Millet | F109: 2017 | G109: 2.5 | H109: 2.5 | J109: Transportation | K109: Farm | O109: Modelled Estimates | Q109: https://www.aphlis.net/en/page/20/data-tables#/datatables?tab=value_chain&metric=prc | S109: =IFERROR(INDEX(UNcountrycodes[Region Name],MATCH(FAOdata[[#This Row],[m49_code]],UNcountrycodes[M49 Code],0)),"") -> Africa | T109: =IFERROR(INDEX(UNcountrycodes[Sub-region Name], MATCH(FAOdata[[#This Row],[m49_code]],UNcountrycodes[M49 Code],0)),"") -> Sub-Saharan Africa | U109: =IFERROR(INDEX(RegionClassification[FAO region],MATCH(FAOdata[[#This Row],[UN sub-region]],RegionClassification[UN region],0)),"") -> Sub-Saharan Africa | V109: =INDEX(FAO_IFC_Commodity[IFC commodity], MATCH(FAOdata[[#This Row],[commodity]],FAO_IFC_Commodity[FAO commodity],0)) -> Millet | W109: =IFERROR(INDEX(IFC_Commodity_CommodityGroup[IFC Commodity group],MATCH(FAOdata[[#This Row],[IFC Commodity]],IFC_Commodity_CommodityGroup[IFC Commodity], 0)),"") -> Pulses & Grains | X109: =IFERROR(INDEX(IFC_Commodity_CommodityGroup[FAO commodity group], MATCH(FAOdata[[#This Row],[IFC Commodity]],IFC_Commodity_CommodityGroup[IFC Commodity],0)),"") -> Cereals | Y109: =IFERROR(INDEX(FTS[[#All],[IFC Supply Chain Stage]],MATCH(FAOdata[[#This Row],[food_supply_stage]],FTS[[#All],[fsc_location1]],0)),"") -> Production
A110: 108 | B110: Burundi | D110: 118 | E110: Millet | F110: 2017 | G110: 1.18 | H110: 1.18 | J110: Storage | K110: Farm | O110: Modelled Estimates | Q110: https://www.aphlis.net/en/page/20/data-tables#/datatables?tab=value_chain&metric=prc | S110: =IFERROR(INDEX(UNcountrycodes[Region Name],MATCH(FAOdata[[#This Row],[m49_code]],UNcountrycodes[M49 Code],0)),"") -> Africa | T110: =IFERROR(INDEX(UNcountrycodes[Sub-region Name], MATCH(FAOdata[[#This Row],[m49_code]],UNcountrycodes[M49 Code],0)),"") -> Sub-Saharan Africa | U110: =IFERROR(INDEX(RegionClassification[FAO region],MATCH(FAOdata[[#This Row],[UN sub-region]],RegionClassification[UN region],0)),"") -> Sub-Saharan Africa | V110: =INDEX(FAO_IFC_Commodity[IFC commodity], MATCH(FAOdata[[#This Row],[commodity]],FAO_IFC_Commodity[FAO commodity],0)) -> Millet | W110: =IFERROR(INDEX(IFC_Commodity_CommodityGroup[IFC Commodity group],MATCH(FAOdata[[#This Row],[IFC Commodity]],IFC_Commodity_CommodityGroup[IFC Commodity], 0)),"") -> Pulses & Grains | X110: =IFERROR(INDEX(IFC_Commodity_CommodityGroup[FAO commodity group], MATCH(FAOdata[[#This Row],[IFC Commodity]],IFC_Commodity_CommodityGroup[IFC Commodity],0)),"") -> Cereals | Y110: =IFERROR(INDEX(FTS[[#All],[IFC Supply Chain Stage]],MATCH(FAOdata[[#This Row],[food_supply_stage]],FTS[[#All],[fsc_location1]],0)),"") -> Production
A111: 108 | B111: Burundi | D111: 118 | E111: Millet | F111: 2017 | G111: 3.5 | H111: 3.5 | J111: Drying, Harvesting | K111: Harvest | O111: Modelled Estimates | Q111: https://www.aphlis.net/en/page/20/data-tables#/datatables?tab=value_chain&metric=prc | S111: =IFERROR(INDEX(UNcountrycodes[Region Name],MATCH(FAOdata[[#This Row],[m49_code]],UNcountrycodes[M49 Code],0)),"") -> Africa | T111: =IFERROR(INDEX(UNcountrycodes[Sub-region Name], MATCH(FAOdata[[#This Row],[m49_code]],UNcountrycodes[M49 Code],0)),"") -> Sub-Saharan Africa | U111: =IFERROR(INDEX(RegionClassification[FAO region],MATCH(FAOdata[[#This Row],[UN sub-region]],RegionClassification[UN region],0)),"") -> Sub-Saharan Africa | V111: =INDEX(FAO_IFC_Commodity[IFC commodity], MATCH(FAOdata[[#This Row],[commodity]],FAO_IFC_Commodity[FAO commodity],0)) -> Millet | W111: =IFERROR(INDEX(IFC_Commodity_CommodityGroup[IFC Commodity group],MATCH(FAOdata[[#This Row],[IFC Commodity]],IFC_Commodity_CommodityGroup[IFC Commodity], 0)),"") -> Pulses & Grains | X111: =IFERROR(INDEX(IFC_Commodity_CommodityGroup[FAO commodity group], MATCH(FAOdata[[#This Row],[IFC Commodity]],IFC_Commodity_CommodityGroup[IFC Commodity],0)),"") -> Cereals | Y111: =IFERROR(INDEX(FTS[[#All],[IFC Supply Chain Stage]],MATCH(FAOdata[[#This Row],[food_supply_stage]],FTS[[#All],[fsc_location1]],0)),"") -> 0
A112: 108 | B112: Burundi | D112: 118 | E112: Millet | F112: 2017 | G112: 2 | H112: 2 | J112: Shelling, Threshing | K112: Farm | O112: Modelled Estimates | Q112: https://www.aphlis.net/en/page/20/data-tables#/datatables?tab=value_chain&metric=prc | S112: =IFERROR(INDEX(UNcountrycodes[Region Name],MATCH(FAOdata[[#This Row],[m49_code]],UNcountrycodes[M49 Code],0)),"") -> Africa | T112: =IFERROR(INDEX(UNcountrycodes[Sub-region Name], MATCH(FAOdata[[#This Row],[m49_code]],UNcountrycodes[M49 Code],0)),"") -> Sub-Saharan Africa | U112: =IFERROR(INDEX(RegionClassification[FAO region],MATCH(FAOdata[[#This Row],[UN sub-region]],RegionClassification[UN region],0)),"") -> Sub-Saharan Africa | V112: =INDEX(FAO_IFC_Commodity[IFC commodity], MATCH(FAOdata[[#This Row],[commodity]],FAO_IFC_Commodity[FAO commodity],0)) -> Millet | W112: =IFERROR(INDEX(IFC_Commodity_CommodityGroup[IFC Commodity group],MATCH(FAOdata[[#This Row],[IFC Commodity]],IFC_Commodity_CommodityGroup[IFC Commodity], 0)),"") -> Pulses & Grains | X112: =IFERROR(INDEX(IFC_Commodity_CommodityGroup[FAO commodity group], MATCH(FAOdata[[#This Row],[IFC Commodity]],IFC_Commodity_CommodityGroup[IFC Commodity],0)),"") -> Cereals | Y112: =IFERROR(INDEX(FTS[[#All],[IFC Supply Chain Stage]],MATCH(FAOdata[[#This Row],[food_supply_stage]],FTS[[#All],[fsc_location1]],0)),"") -> Production
A113: 108 | B113: Burundi | D113: 118 | E113: Millet | F113: 2017 | G113: 2.5 | H113: 2.5 | J113: Winnowing | K113: Farm | O113: Modelled Estimates | Q113: https://www.aphlis.net/en/page/20/data-tables#/datatables?tab=value_chain&metric=prc | S113: =IFERROR(INDEX(UNcountrycodes[Region Name],MATCH(FAOdata[[#This Row],[m49_code]],UNcountrycodes[M49 Code],0)),"") -> Africa | T113: =IFERROR(INDEX(UNcountrycodes[Sub-region Name], MATCH(FAOdata[[#This Row],[m49_code]],UNcountrycodes[M49 Code],0)),"") -> Sub-Saharan Africa | U113: =IFERROR(INDEX(RegionClassification[FAO region],MATCH(FAOdata[[#This Row],[UN sub-region]],RegionClassification[UN region],0)),"") -> Sub-Saharan Africa | V113: =INDEX(FAO_IFC_Commodity[IFC commodity], MATCH(FAOdata[[#This Row],[commodity]],FAO_IFC_Commodity[FAO commodity],0)) -> Millet | W113: =IFERROR(INDEX(IFC_Commodity_CommodityGroup[IFC Commodity group],MATCH(FAOdata[[#This Row],[IFC Commodity]],IFC_Commodity_CommodityGroup[IFC Commodity], 0)),"") -> Pulses & Grains | X113: =IFERROR(INDEX(IFC_Commodity_CommodityGroup[FAO commodity group], MATCH(FAOdata[[#This Row],[IFC Commodity]],IFC_Commodity_CommodityGroup[IFC Commodity],0)),"") -> Cereals | Y113: =IFERROR(INDEX(FTS[[#All],[IFC Supply Chain Stage]],MATCH(FAOdata[[#This Row],[food_supply_stage]],FTS[[#All],[fsc_location1]],0)),"") -> Production
A114: 108 | B114: Burundi | D114: 111 | E114: Wheat | F114: 2016 | G114: 4.87 | H114: 4.87 | J114: Storage | K114: Farm | O114: Modelled Estimates | Q114: https://www.aphlis.net/en/page/20/data-tables#/datatables?tab=value_chain&metric=prc | S114: =IFERROR(INDEX(UNcountrycodes[Region Name],MATCH(FAOdata[[#This Row],[m49_code]],UNcountrycodes[M49 Code],0)),"") -> Africa | T114: =IFERROR(INDEX(UNcountrycodes[Sub-region Name], MATCH(FAOdata[[#This Row],[m49_code]],UNcountrycodes[M49 Code],0)),"") -> Sub-Saharan Africa | U114: =IFERROR(INDEX(RegionClassification[FAO region],MATCH(FAOdata[[#This Row],[UN sub-region]],RegionClassification[UN region],0)),"") -> Sub-Saharan Africa | V114: =INDEX(FAO_IFC_Commodity[IFC commodity], MATCH(FAOdata[[#This Row],[commodity]],FAO_IFC_Commodity[FAO commodity],0)) -> Wheat | W114: =IFERROR(INDEX(IFC_Commodity_CommodityGroup[IFC Commodity group],MATCH(FAOdata[[#This Row],[IFC Commodity]],IFC_Commodity_CommodityGroup[IFC Commodity], 0)),"") -> Pulses & Grains | X114: =IFERROR(INDEX(IFC_Commodity_CommodityGroup[FAO commodity group], MATCH(FAOdata[[#This Row],[IFC Commodity]],IFC_Commodity_CommodityGroup[IFC Commodity],0)),"") -> Cereals | Y114: =IFERROR(INDEX(FTS[[#All],[IFC Supply Chain Stage]],MATCH(FAOdata[[#This Row],[food_supply_stage]],FTS[[#All],[fsc_location1]],0)),"") -> Production
A115: 108 | B115: Burundi | D115: 111 | E115: Wheat | F115: 2016 | G115: 4.43 | H115: 4.43 | J115: Drying, Harvesting | K115: Harvest | O115: Modelled Estimates | Q115: https://www.aphlis.net/en/page/20/data-tables#/datatables?tab=value_chain&metric=prc | S115: =IFERROR(INDEX(UNcountrycodes[Region Name],MATCH(FAOdata[[#This Row],[m49_code]],UNcountrycodes[M49 Code],0)),"") -> Africa | T115: =IFERROR(INDEX(UNcountrycodes[Sub-region Name], MATCH(FAOdata[[#This Row],[m49_code]],UNcountrycodes[M49 Code],0)),"") -> Sub-Saharan Africa | U115: =IFERROR(INDEX(RegionClassification[FAO region],MATCH(FAOdata[[#This Row],[UN sub-region]],RegionClassification[UN region],0)),"") -> Sub-Saharan Africa | V115: =INDEX(FAO_IFC_Commodity[IFC commodity], MATCH(FAOdata[[#This Row],[commodity]],FAO_IFC_Commodity[FAO commodity],0)) -> Wheat | W115: =IFERROR(INDEX(IFC_Commodity_CommodityGroup[IFC Commodity group],MATCH(FAOdata[[#This Row],[IFC Commodity]],IFC_Commodity_CommodityGroup[IFC Commodity], 0)),"") -> Pulses & Grains | X115: =IFERROR(INDEX(IFC_Commodity_CommodityGroup[FAO commodity group], MATCH(FAOdata[[#This Row],[IFC Commodity]],IFC_Commodity_CommodityGroup[IFC Commodity],0)),"") -> Cereals | Y115: =IFERROR(INDEX(FTS[[#All],[IFC Supply Chain Stage]],MATCH(FAOdata[[#This Row],[food_supply_stage]],FTS[[#All],[fsc_location1]],0)),"") -> 0
A116: 108 | B116: Burundi | D116: 111 | E116: Wheat | F116: 2016 | G116: 2.5 | H116: 2.5 | J116: Transportation | K116: Farm | O116: Modelled Estimates | Q116: https://www.aphlis.net/en/page/20/data-tables#/datatables?tab=value_chain&metric=prc | S116: =IFERROR(INDEX(UNcountrycodes[Region Name],MATCH(FAOdata[[#This Row],[m49_code]],UNcountrycodes[M49 Code],0)),"") -> Africa | T116: =IFERROR(INDEX(UNcountrycodes[Sub-region Name], MATCH(FAOdata[[#This Row],[m49_code]],UNcountrycodes[M49 Code],0)),"") -> Sub-Saharan Africa | U116: =IFERROR(INDEX(RegionClassification[FAO region],MATCH(FAOdata[[#This Row],[UN sub-region]],RegionClassification[UN region],0)),"") -> Sub-Saharan Africa | V116: =INDEX(FAO_IFC_Commodity[IFC commodity], MATCH(FAOdata[[#This Row],[commodity]],FAO_IFC_Commodity[FAO commodity],0)) -> Wheat | W116: =IFERROR(INDEX(IFC_Commodity_CommodityGroup[IFC Commodity group],MATCH(FAOdata[[#This Row],[IFC Commodity]],IFC_Commodity_CommodityGroup[IFC Commodity], 0)),"") -> Pulses & Grains | X116: =IFERROR(INDEX(IFC_Commodity_CommodityGroup[FAO commodity group], MATCH(FAOdata[[#This Row],[IFC Commodity]],IFC_Commodity_CommodityGroup[IFC Commodity],0)),"") -> Cereals | Y116: =IFERROR(INDEX(FTS[[#All],[IFC Supply Chain Stage]],MATCH(FAOdata[[#This Row],[food_supply_stage]],FTS[[#All],[fsc_location1]],0)),"") -> Production
A117: 108 | B117: Burundi | D117: 111 | E117: Wheat | F117: 2016 | G117: 3.5 | H117: 3.5 | J117: Shelling, Threshing | K117: Farm | O117: Modelled Estimates | Q117: https://www.aphlis.net/en/page/20/data-tables#/datatables?tab=value_chain&metric=prc | S117: =IFERROR(INDEX(UNcountrycodes[Region Name],MATCH(FAOdata[[#This Row],[m49_code]],UNcountrycodes[M49 Code],0)),"") -> Africa | T117: =IFERROR(INDEX(UNcountrycodes[Sub-region Name], MATCH(FAOdata[[#This Row],[m49_code]],UNcountrycodes[M49 Code],0)),"") -> Sub-Saharan Africa | U117: =IFERROR(INDEX(RegionClassification[FAO region],MATCH(FAOdata[[#This Row],[UN sub-region]],RegionClassification[UN region],0)),"") -> Sub-Saharan Africa | V117: =INDEX(FAO_IFC_Commodity[IFC commodity], MATCH(FAOdata[[#This Row],[commodity]],FAO_IFC_Commodity[FAO commodity],0)) -> Wheat | W117: =IFERROR(INDEX(IFC_Commodity_CommodityGroup[IFC Commodity group],MATCH(FAOdata[[#This Row],[IFC Commodity]],IFC_Commodity_CommodityGroup[IFC Commodity], 0)),"") -> Pulses & Grains | X117: =IFERROR(INDEX(IFC_Commodity_CommodityGroup[FAO commodity group], MATCH(FAOdata[[#This Row],[IFC Commodity]],IFC_Commodity_CommodityGroup[IFC Commodity],0)),"") -> Cereals | Y117: =IFERROR(INDEX(FTS[[#All],[IFC Supply Chain Stage]],MATCH(FAOdata[[#This Row],[food_supply_stage]],FTS[[#All],[fsc_location1]],0)),"") -> Production
A118: 108 | B118: Burundi | D118: 112 | E118: Maize (corn) | F118: 2016 | G118: 1.32 | H118: 1.32 | J118: Shelling, Threshing | K118: Farm | O118: Modelled Estimates | Q118: https://www.aphlis.net/en/page/20/data-tables#/datatables?tab=value_chain&metric=prc | S118: =IFERROR(INDEX(UNcountrycodes[Region Name],MATCH(FAOdata[[#This Row],[m49_code]],UNcountrycodes[M49 Code],0)),"") -> Africa | T118: =IFERROR(INDEX(UNcountrycodes[Sub-region Name], MATCH(FAOdata[[#This Row],[m49_code]],UNcountrycodes[M49 Code],0)),"") -> Sub-Saharan Africa | U118: =IFERROR(INDEX(RegionClassification[FAO region],MATCH(FAOdata[[#This Row],[UN sub-region]],RegionClassification[UN region],0)),"") -> Sub-Saharan Africa | V118: =INDEX(FAO_IFC_Commodity[IFC commodity], MATCH(FAOdata[[#This Row],[commodity]],FAO_IFC_Commodity[FAO commodity],0)) -> Maize | W118: =IFERROR(INDEX(IFC_Commodity_CommodityGroup[IFC Commodity group],MATCH(FAOdata[[#This Row],[IFC Commodity]],IFC_Commodity_CommodityGroup[IFC Commodity], 0)),"") -> Pulses & Grains | X118: =IFERROR(INDEX(IFC_Commodity_CommodityGroup[FAO commodity group], MATCH(FAOdata[[#This Row],[IFC Commodity]],IFC_Commodity_CommodityGroup[IFC Commodity],0)),"") -> Cereals | Y118: =IFERROR(INDEX(FTS[[#All],[IFC Supply Chain Stage]],MATCH(FAOdata[[#This Row],[food_supply_stage]],FTS[[#All],[fsc_location1]],0)),"") -> Production
A119: 108 | B119: Burundi | D119: 112 | E119: Maize (corn) | F119: 2016 | G119: 4 | H119: 4 | J119: Drying | K119: Farm | O119: Modelled Estimates | Q119: https://www.aphlis.net/en/page/20/data-tables#/datatables?tab=value_chain&metric=prc | S119: =IFERROR(INDEX(UNcountrycodes[Region Name],MATCH(FAOdata[[#This Row],[m49_code]],UNcountrycodes[M49 Code],0)),"") -> Africa | T119: =IFERROR(INDEX(UNcountrycodes[Sub-region Name], MATCH(FAOdata[[#This Row],[m49_code]],UNcountrycodes[M49 Code],0)),"") -> Sub-Saharan Africa | U119: =IFERROR(INDEX(RegionClassification[FAO region],MATCH(FAOdata[[#This Row],[UN sub-region]],RegionClassification[UN region],0)),"") -> Sub-Saharan Africa | V119: =INDEX(FAO_IFC_Commodity[IFC commodity], MATCH(FAOdata[[#This Row],[commodity]],FAO_IFC_Commodity[FAO commodity],0)) -> Maize | W119: =IFERROR(INDEX(IFC_Commodity_CommodityGroup[IFC Commodity group],MATCH(FAOdata[[#This Row],[IFC Commodity]],IFC_Commodity_CommodityGroup[IFC Commodity], 0)),"") -> Pulses & Grains | X119: =IFERROR(INDEX(IFC_Commodity_CommodityGroup[FAO commodity group], MATCH(FAOdata[[#This Row],[IFC Commodity]],IFC_Commodity_CommodityGroup[IFC Commodity],0)),"") -> Cereals | Y119: =IFERROR(INDEX(FTS[[#All],[IFC Supply Chain Stage]],MATCH(FAOdata[[#This Row],[food_supply_stage]],FTS[[#All],[fsc_location1]],0)),"") -> Production
A120: 108 | B120: Burundi | D120: 112 | E120: Maize (corn) | F120: 2016 | G120: 6.42 | H120: 6.42 | J120: Drying, Harvesting | K120: Harvest | O120: Modelled Estimates | Q120: https://www.aphlis.net/en/page/20/data-tables#/datatables?tab=value_chain&metric=prc | S120: =IFERROR(INDEX(UNcountrycodes[Region Name],MATCH(FAOdata[[#This Row],[m49_code]],UNcountrycodes[M49 Code],0)),"") -> Africa | T120: =IFERROR(INDEX(UNcountrycodes[Sub-region Name], MATCH(FAOdata[[#This Row],[m49_code]],UNcountrycodes[M49 Code],0)),"") -> Sub-Saharan Africa | U120: =IFERROR(INDEX(RegionClassification[FAO region],MATCH(FAOdata[[#This Row],[UN sub-region]],RegionClassification[UN region],0)),"") -> Sub-Saharan Africa | V120: =INDEX(FAO_IFC_Commodity[IFC commodity], MATCH(FAOdata[[#This Row],[commodity]],FAO_IFC_Commodity[FAO commodity],0)) -> Maize | W120: =IFERROR(INDEX(IFC_Commodity_CommodityGroup[IFC Commodity group],MATCH(FAOdata[[#This Row],[IFC Commodity]],IFC_Commodity_CommodityGroup[IFC Commodity], 0)),"") -> Pulses & Grains | X120: =IFERROR(INDEX(IFC_Commodity_CommodityGroup[FAO commodity group], MATCH(FAOdata[[#This Row],[IFC Commodity]],IFC_Commodity_CommodityGroup[IFC Commodity],0)),"") -> Cereals | Y120: =IFERROR(INDEX(FTS[[#All],[IFC Supply Chain Stage]],MATCH(FAOdata[[#This Row],[food_supply_stage]],FTS[[#All],[fsc_location1]],0)),"") -> 0
A121: 108 | B121: Burundi | D121: 112 | E121: Maize (corn) | F121: 2016 | G121: 2.36 | H121: 2.36 | J121: Transportation | K121: Farm | O121: Modelled Estimates | Q121: https://www.aphlis.net/en/page/20/data-tables#/datatables?tab=value_chain&metric=prc | S121: =IFERROR(INDEX(UNcountrycodes[Region Name],MATCH(FAOdata[[#This Row],[m49_code]],UNcountrycodes[M49 Code],0)),"") -> Africa | T121: =IFERROR(INDEX(UNcountrycodes[Sub-region Name], MATCH(FAOdata[[#This Row],[m49_code]],UNcountrycodes[M49 Code],0)),"") -> Sub-Saharan Africa | U121: =IFERROR(INDEX(RegionClassification[FAO region],MATCH(FAOdata[[#This Row],[UN sub-region]],RegionClassification[UN region],0)),"") -> Sub-Saharan Africa | V121: =INDEX(FAO_IFC_Commodity[IFC commodity], MATCH(FAOdata[[#This Row],[commodity]],FAO_IFC_Commodity[FAO commodity],0)) -> Maize | W121: =IFERROR(INDEX(IFC_Commodity_CommodityGroup[IFC Commodity group],MATCH(FAOdata[[#This Row],[IFC Commodity]],IFC_Commodity_CommodityGroup[IFC Commodity], 0)),"") -> Pulses & Grains | X121: =IFERROR(INDEX(IFC_Commodity_CommodityGroup[FAO commodity group], MATCH(FAOdata[[#This Row],[IFC Commodity]],IFC_Commodity_CommodityGroup[IFC Commodity],0)),"") -> Cereals | Y121: =IFERROR(INDEX(FTS[[#All],[IFC Supply Chain Stage]],MATCH(FAOdata[[#This Row],[food_supply_stage]],FTS[[#All],[fsc_location1]],0)),"") -> Production
A122: 108 | B122: Burundi | D122: 112 | E122: Maize (corn) | F122: 2016 | G122: 5.26 | H122: 5.26 | J122: Storage | K122: Farm | O122: Modelled Estimates | Q122: https://www.aphlis.net/en/page/20/data-tables#/datatables?tab=value_chain&metric=prc | S122: =IFERROR(INDEX(UNcountrycodes[Region Name],MATCH(FAOdata[[#This Row],[m49_code]],UNcountrycodes[M49 Code],0)),"") -> Africa | T122: =IFERROR(INDEX(UNcountrycodes[Sub-region Name], MATCH(FAOdata[[#This Row],[m49_code]],UNcountrycodes[M49 Code],0)),"") -> Sub-Saharan Africa | U122: =IFERROR(INDEX(RegionClassification[FAO region],MATCH(FAOdata[[#This Row],[UN sub-region]],RegionClassification[UN region],0)),"") -> Sub-Saharan Africa | V122: =INDEX(FAO_IFC_Commodity[IFC commodity], MATCH(FAOdata[[#This Row],[commodity]],FAO_IFC_Commodity[FAO commodity],0)) -> Maize | W122: =IFERROR(INDEX(IFC_Commodity_CommodityGroup[IFC Commodity group],MATCH(FAOdata[[#This Row],[IFC Commodity]],IFC_Commodity_CommodityGroup[IFC Commodity], 0)),"") -> Pulses & Grains | X122: =IFERROR(INDEX(IFC_Commodity_CommodityGroup[FAO commodity group], MATCH(FAOdata[[#This Row],[IFC Commodity]],IFC_Commodity_CommodityGroup[IFC Commodity],0)),"") -> Cereals | Y122: =IFERROR(INDEX(FTS[[#All],[IFC Supply Chain Stage]],MATCH(FAOdata[[#This Row],[food_supply_stage]],FTS[[#All],[fsc_location1]],0)),"") -> Production
A123: 108 | B123: Burundi | D123: 113 | E123: Rice | F123: 2016 | G123: 2.5 | H123: 2.5 | J123: Winnowing | K123: Farm | O123: Modelled Estimates | Q123: https://www.aphlis.net/en/page/20/data-tables#/datatables?tab=value_chain&metric=prc | S123: =IFERROR(INDEX(UNcountrycodes[Region Name],MATCH(FAOdata[[#This Row],[m49_code]],UNcountrycodes[M49 Code],0)),"") -> Africa | T123: =IFERROR(INDEX(UNcountrycodes[Sub-region Name], MATCH(FAOdata[[#This Row],[m49_code]],UNcountrycodes[M49 Code],0)),"") -> Sub-Saharan Africa | U123: =IFERROR(INDEX(RegionClassification[FAO region],MATCH(FAOdata[[#This Row],[UN sub-region]],RegionClassification[UN region],0)),"") -> Sub-Saharan Africa | V123: =INDEX(FAO_IFC_Commodity[IFC commodity], MATCH(FAOdata[[#This Row],[commodity]],FAO_IFC_Commodity[FAO commodity],0)) -> Rice | W123: =IFERROR(INDEX(IFC_Commodity_CommodityGroup[IFC Commodity group],MATCH(FAOdata[[#This Row],[IFC Commodity]],IFC_Commodity_CommodityGroup[IFC Commodity], 0)),"") -> Pulses & Grains | X123: =IFERROR(INDEX(IFC_Commodity_CommodityGroup[FAO commodity group], MATCH(FAOdata[[#This Row],[IFC Commodity]],IFC_Commodity_CommodityGroup[IFC Commodity],0)),"") -> Cereals | Y123: =IFERROR(INDEX(FTS[[#All],[IFC Supply Chain Stage]],MATCH(FAOdata[[#This Row],[food_supply_stage]],FTS[[#All],[fsc_location1]],0)),"") -> Production
A124: 108 | B124: Burundi | D124: 113 | E124: Rice | F124: 2016 | G124: 1.25 | H124: 1.25 | J124: Transportation | K124: Farm | O124: Modelled Estimates | Q124: https://www.aphlis.net/en/page/20/data-tables#/datatables?tab=value_chain&metric=prc | S124: =IFERROR(INDEX(UNcountrycodes[Region Name],MATCH(FAOdata[[#This Row],[m49_code]],UNcountrycodes[M49 Code],0)),"") -> Africa | T124: =IFERROR(INDEX(UNcountrycodes[Sub-region Name], MATCH(FAOdata[[#This Row],[m49_code]],UNcountrycodes[M49 Code],0)),"") -> Sub-Saharan Africa | U124: =IFERROR(INDEX(RegionClassification[FAO region],MATCH(FAOdata[[#This Row],[UN sub-region]],RegionClassification[UN region],0)),"") -> Sub-Saharan Africa | V124: =INDEX(FAO_IFC_Commodity[IFC commodity], MATCH(FAOdata[[#This Row],[commodity]],FAO_IFC_Commodity[FAO commodity],0)) -> Rice | W124: =IFERROR(INDEX(IFC_Commodity_CommodityGroup[IFC Commodity group],MATCH(FAOdata[[#This Row],[IFC Commodity]],IFC_Commodity_CommodityGroup[IFC Commodity], 0)),"") -> Pulses & Grains | X124: =IFERROR(INDEX(IFC_Commodity_CommodityGroup[FAO commodity group], MATCH(FAOdata[[#This Row],[IFC Commodity]],IFC_Commodity_CommodityGroup[IFC Commodity],0)),"") -> Cereals | Y124: =IFERROR(INDEX(FTS[[#All],[IFC Supply Chain Stage]],MATCH(FAOdata[[#This Row],[food_supply_stage]],FTS[[#All],[fsc_location1]],0)),"") -> Production
A125: 108 | B125: Burundi | D125: 113 | E125: Rice | F125: 2016 | G125: 1.2 | H125: 1.2 | J125: Storage | K125: Farm | O125: Modelled Estimates | Q125: https://www.aphlis.net/en/page/20/data-tables#/datatables?tab=value_chain&metric=prc | S125: =IFERROR(INDEX(UNcountrycodes[Region Name],MATCH(FAOdata[[#This Row],[m49_code]],UNcountrycodes[M49 Code],0)),"") -> Africa | T125: =IFERROR(INDEX(UNcountrycodes[Sub-region Name], MATCH(FAOdata[[#This Row],[m49_code]],UNcountrycodes[M49 Code],0)),"") -> Sub-Saharan Africa | U125: =IFERROR(INDEX(RegionClassification[FAO region],MATCH(FAOdata[[#This Row],[UN sub-region]],RegionClassification[UN region],0)),"") -> Sub-Saharan Africa | V125: =INDEX(FAO_IFC_Commodity[IFC commodity], MATCH(FAOdata[[#This Row],[commodity]],FAO_IFC_Commodity[FAO commodity],0)) -> Rice | W125: =IFERROR(INDEX(IFC_Commodity_CommodityGroup[IFC Commodity group],MATCH(FAOdata[[#This Row],[IFC Commodity]],IFC_Commodity_CommodityGroup[IFC Commodity], 0)),"") -> Pulses & Grains | X125: =IFERROR(INDEX(IFC_Commodity_CommodityGroup[FAO commodity group], MATCH(FAOdata[[#This Row],[IFC Commodity]],IFC_Commodity_CommodityGroup[IFC Commodity],0)),"") -> Cereals | Y125: =IFERROR(INDEX(FTS[[#All],[IFC Supply Chain Stage]],MATCH(FAOdata[[#This Row],[food_supply_stage]],FTS[[#All],[fsc_location1]],0)),"") -> Production
A126: 108 | B126: Burundi | D126: 113 | E126: Rice | F126: 2016 | G126: 4.4 | H126: 4.4 | J126: Drying, Harvesting | K126: Harvest | O126: Modelled Estimates | Q126: https://www.aphlis.net/en/page/20/data-tables#/datatables?tab=value_chain&metric=prc | S126: =IFERROR(INDEX(UNcountrycodes[Region Name],MATCH(FAOdata[[#This Row],[m49_code]],UNcountrycodes[M49 Code],0)),"") -> Africa | T126: =IFERROR(INDEX(UNcountrycodes[Sub-region Name], MATCH(FAOdata[[#This Row],[m49_code]],UNcountrycodes[M49 Code],0)),"") -> Sub-Saharan Africa | U126: =IFERROR(INDEX(RegionClassification[FAO region],MATCH(FAOdata[[#This Row],[UN sub-region]],RegionClassification[UN region],0)),"") -> Sub-Saharan Africa | V126: =INDEX(FAO_IFC_Commodity[IFC commodity], MATCH(FAOdata[[#This Row],[commodity]],FAO_IFC_Commodity[FAO commodity],0)) -> Rice | W126: =IFERROR(INDEX(IFC_Commodity_CommodityGroup[IFC Commodity group],MATCH(FAOdata[[#This Row],[IFC Commodity]],IFC_Commodity_CommodityGroup[IFC Commodity], 0)),"") -> Pulses & Grains | X126: =IFERROR(INDEX(IFC_Commodity_CommodityGroup[FAO commodity group], MATCH(FAOdata[[#This Row],[IFC Commodity]],IFC_Commodity_CommodityGroup[IFC Commodity],0)),"") -> Cereals | Y126: =IFERROR(INDEX(FTS[[#All],[IFC Supply Chain Stage]],MATCH(FAOdata[[#This Row],[food_supply_stage]],FTS[[#All],[fsc_location1]],0)),"") -> 0
A127: 108 | B127: Burundi | D127: 113 | E127: Rice | F127: 2016 | G127: 3.14 | H127: 3.14 | J127: Shelling, Threshing | K127: Farm | O127: Modelled Estimates | Q127: https://www.aphlis.net/en/page/20/data-tables#/datatables?tab=value_chain&metric=prc | S127: =IFERROR(INDEX(UNcountrycodes[Region Name],MATCH(FAOdata[[#This Row],[m49_code]],UNcountrycodes[M49 Code],0)),"") -> Africa | T127: =IFERROR(INDEX(UNcountrycodes[Sub-region Name], MATCH(FAOdata[[#This Row],[m49_code]],UNcountrycodes[M49 Code],0)),"") -> Sub-Saharan Africa | U127: =IFERROR(INDEX(RegionClassification[FAO region],MATCH(FAOdata[[#This Row],[UN sub-region]],RegionClassification[UN region],0)),"") -> Sub-Saharan Africa | V127: =INDEX(FAO_IFC_Commodity[IFC commodity], MATCH(FAOdata[[#This Row],[commodity]],FAO_IFC_Commodity[FAO commodity],0)) -> Rice | W127: =IFERROR(INDEX(IFC_Commodity_CommodityGroup[IFC Commodity group],MATCH(FAOdata[[#This Row],[IFC Commodity]],IFC_Commodity_CommodityGroup[IFC Commodity], 0)),"") -> Pulses & Grains | X127: =IFERROR(INDEX(IFC_Commodity_CommodityGroup[FAO commodity group], MATCH(FAOdata[[#This Row],[IFC Commodity]],IFC_Commodity_CommodityGroup[IFC Commodity],0)),"") -> Cereals | Y127: =IFERROR(INDEX(FTS[[#All],[IFC Supply Chain Stage]],MATCH(FAOdata[[#This Row],[food_supply_stage]],FTS[[#All],[fsc_location1]],0)),"") -> Production
A128: 108 | B128: Burundi | D128: 114 | E128: Sorghum | F128: 2016 | G128: 3.6 | H128: 3.6 | J128: Shelling, Threshing | K128: Farm | O128: Modelled Estimates | Q128: https://www.aphlis.net/en/page/20/data-tables#/datatables?tab=value_chain&metric=prc | S128: =IFERROR(INDEX(UNcountrycodes[Region Name],MATCH(FAOdata[[#This Row],[m49_code]],UNcountrycodes[M49 Code],0)),"") -> Africa | T128: =IFERROR(INDEX(UNcountrycodes[Sub-region Name], MATCH(FAOdata[[#This Row],[m49_code]],UNcountrycodes[M49 Code],0)),"") -> Sub-Saharan Africa | U128: =IFERROR(INDEX(RegionClassification[FAO region],MATCH(FAOdata[[#This Row],[UN sub-region]],RegionClassification[UN region],0)),"") -> Sub-Saharan Africa | V128: =INDEX(FAO_IFC_Commodity[IFC commodity], MATCH(FAOdata[[#This Row],[commodity]],FAO_IFC_Commodity[FAO commodity],0)) -> Sorghum | W128: =IFERROR(INDEX(IFC_Commodity_CommodityGroup[IFC Commodity group],MATCH(FAOdata[[#This Row],[IFC Commodity]],IFC_Commodity_CommodityGroup[IFC Commodity], 0)),"") -> Pulses & Grains | X128: =IFERROR(INDEX(IFC_Commodity_CommodityGroup[FAO commodity group], MATCH(FAOdata[[#This Row],[IFC Commodity]],IFC_Commodity_CommodityGroup[IFC Commodity],0)),"") -> Cereals | Y128: =IFERROR(INDEX(FTS[[#All],[IFC Supply Chain Stage]],MATCH(FAOdata[[#This Row],[food_supply_stage]],FTS[[#All],[fsc_location1]],0)),"") -> Production
A129: 108 | B129: Burundi | D129: 114 | E129: Sorghum | F129: 2016 | G129: 2.69 | H129: 2.69 | J129: Storage | K129: Farm | O129: Modelled Estimates | Q129: https://www.aphlis.net/en/page/20/data-tables#/datatables?tab=value_chain&metric=prc | S129: =IFERROR(INDEX(UNcountrycodes[Region Name],MATCH(FAOdata[[#This Row],[m49_code]],UNcountrycodes[M49 Code],0)),"") -> Africa | T129: =IFERROR(INDEX(UNcountrycodes[Sub-region Name], MATCH(FAOdata[[#This Row],[m49_code]],UNcountrycodes[M49 Code],0)),"") -> Sub-Saharan Africa | U129: =IFERROR(INDEX(RegionClassification[FAO region],MATCH(FAOdata[[#This Row],[UN sub-region]],RegionClassification[UN region],0)),"") -> Sub-Saharan Africa | V129: =INDEX(FAO_IFC_Commodity[IFC commodity], MATCH(FAOdata[[#This Row],[commodity]],FAO_IFC_Commodity[FAO commodity],0)) -> Sorghum | W129: =IFERROR(INDEX(IFC_Commodity_CommodityGroup[IFC Commodity group],MATCH(FAOdata[[#This Row],[IFC Commodity]],IFC_Commodity_CommodityGroup[IFC Commodity], 0)),"") -> Pulses & Grains | X129: =IFERROR(INDEX(IFC_Commodity_CommodityGroup[FAO commodity group], MATCH(FAOdata[[#This Row],[IFC Commodity]],IFC_Commodity_CommodityGroup[IFC Commodity],0)),"") -> Cereals | Y129: =IFERROR(INDEX(FTS[[#All],[IFC Supply Chain Stage]],MATCH(FAOdata[[#This Row],[food_supply_stage]],FTS[[#All],[fsc_location1]],0)),"") -> Production
A130: 108 | B130: Burundi | D130: 114 | E130: Sorghum | F130: 2016 | G130: 4.55 | H130: 4.55 | J130: Drying, Harvesting | K130: Harvest | O130: Modelled Estimates | Q130: https://www.aphlis.net/en/page/20/data-tables#/datatables?tab=value_chain&metric=prc | S130: =IFERROR(INDEX(UNcountrycodes[Region Name],MATCH(FAOdata[[#This Row],[m49_code]],UNcountrycodes[M49 Code],0)),"") -> Africa | T130: =IFERROR(INDEX(UNcountrycodes[Sub-region Name], MATCH(FAOdata[[#This Row],[m49_code]],UNcountrycodes[M49 Code],0)),"") -> Sub-Saharan Africa | U130: =IFERROR(INDEX(RegionClassification[FAO region],MATCH(FAOdata[[#This Row],[UN sub-region]],RegionClassification[UN region],0)),"") -> Sub-Saharan Africa | V130: =INDEX(FAO_IFC_Commodity[IFC commodity], MATCH(FAOdata[[#This Row],[commodity]],FAO_IFC_Commodity[FAO commodity],0)) -> Sorghum | W130: =IFERROR(INDEX(IFC_Commodity_CommodityGroup[IFC Commodity group],MATCH(FAOdata[[#This Row],[IFC Commodity]],IFC_Commodity_CommodityGroup[IFC Commodity], 0)),"") -> Pulses & Grains | X130: =IFERROR(INDEX(IFC_Commodity_CommodityGroup[FAO commodity group], MATCH(FAOdata[[#This Row],[IFC Commodity]],IFC_Commodity_CommodityGroup[IFC Commodity],0)),"") -> Cereals | Y130: =IFERROR(INDEX(FTS[[#All],[IFC Supply Chain Stage]],MATCH(FAOdata[[#This Row],[food_supply_stage]],FTS[[#All],[fsc_location1]],0)),"") -> 0
A131: 108 | B131: Burundi | D131: 114 | E131: Sorghum | F131: 2016 | G131: 2.17 | H131: 2.17 | J131: Transportation | K131: Farm | O131: Modelled Estimates | Q131: https://www.aphlis.net/en/page/20/data-tables#/datatables?tab=value_chain&metric=prc | S131: =IFERROR(INDEX(UNcountrycodes[Region Name],MATCH(FAOdata[[#This Row],[m49_code]],UNcountrycodes[M49 Code],0)),"") -> Africa | T131: =IFERROR(INDEX(UNcountrycodes[Sub-region Name], MATCH(FAOdata[[#This Row],[m49_code]],UNcountrycodes[M49 Code],0)),"") -> Sub-Saharan Africa | U131: =IFERROR(INDEX(RegionClassification[FAO region],MATCH(FAOdata[[#This Row],[UN sub-region]],RegionClassification[UN region],0)),"") -> Sub-Saharan Africa | V131: =INDEX(FAO_IFC_Commodity[IFC commodity], MATCH(FAOdata[[#This Row],[commodity]],FAO_IFC_Commodity[FAO commodity],0)) -> Sorghum | W131: =IFERROR(INDEX(IFC_Commodity_CommodityGroup[IFC Commodity group],MATCH(FAOdata[[#This Row],[IFC Commodity]],IFC_Commodity_CommodityGroup[IFC Commodity], 0)),"") -> Pulses & Grains | X131: =IFERROR(INDEX(IFC_Commodity_CommodityGroup[FAO commodity group], MATCH(FAOdata[[#This Row],[IFC Commodity]],IFC_Commodity_CommodityGroup[IFC Commodity],0)),"") -> Cereals | Y131: =IFERROR(INDEX(FTS[[#All],[IFC Supply Chain Stage]],MATCH(FAOdata[[#This Row],[food_supply_stage]],FTS[[#All],[fsc_location1]],0)),"") -> Production
A132: 108 | B132: Burundi | D132: 118 | E132: Millet | F132: 2016 | G132: 2 | H132: 2 | J132: Shelling, Threshing | K132: Farm | O132: Modelled Estimates | Q132: https://www.aphlis.net/en/page/20/data-tables#/datatables?tab=value_chain&metric=prc | S132: =IFERROR(INDEX(UNcountrycodes[Region Name],MATCH(FAOdata[[#This Row],[m49_code]],UNcountrycodes[M49 Code],0)),"") -> Africa | T132: =IFERROR(INDEX(UNcountrycodes[Sub-region Name], MATCH(FAOdata[[#This Row],[m49_code]],UNcountrycodes[M49 Code],0)),"") -> Sub-Saharan Africa | U132: =IFERROR(INDEX(RegionClassification[FAO region],MATCH(FAOdata[[#This Row],[UN sub-region]],RegionClassification[UN region],0)),"") -> Sub-Saharan Africa | V132: =INDEX(FAO_IFC_Commodity[IFC commodity], MATCH(FAOdata[[#This Row],[commodity]],FAO_IFC_Commodity[FAO commodity],0)) -> Millet | W132: =IFERROR(INDEX(IFC_Commodity_CommodityGroup[IFC Commodity group],MATCH(FAOdata[[#This Row],[IFC Commodity]],IFC_Commodity_CommodityGroup[IFC Commodity], 0)),"") -> Pulses & Grains | X132: =IFERROR(INDEX(IFC_Commodity_CommodityGroup[FAO commodity group], MATCH(FAOdata[[#This Row],[IFC Commodity]],IFC_Commodity_CommodityGroup[IFC Commodity],0)),"") -> Cereals | Y132: =IFERROR(INDEX(FTS[[#All],[IFC Supply Chain Stage]],MATCH(FAOdata[[#This Row],[food_supply_stage]],FTS[[#All],[fsc_location1]],0)),"") -> Production
A133: 108 | B133: Burundi | D133: 118 | E133: Millet | F133: 2016 | G133: 1.18 | H133: 1.18 | J133: Storage | K133: Farm | O133: Modelled Estimates | Q133: https://www.aphlis.net/en/page/20/data-tables#/datatables?tab=value_chain&metric=prc | S133: =IFERROR(INDEX(UNcountrycodes[Region Name],MATCH(FAOdata[[#This Row],[m49_code]],UNcountrycodes[M49 Code],0)),"") -> Africa | T133: =IFERROR(INDEX(UNcountrycodes[Sub-region Name], MATCH(FAOdata[[#This Row],[m49_code]],UNcountrycodes[M49 Code],0)),"") -> Sub-Saharan Africa | U133: =IFERROR(INDEX(RegionClassification[FAO region],MATCH(FAOdata[[#This Row],[UN sub-region]],RegionClassification[UN region],0)),"") -> Sub-Saharan Africa | V133: =INDEX(FAO_IFC_Commodity[IFC commodity], MATCH(FAOdata[[#This Row],[commodity]],FAO_IFC_Commodity[FAO commodity],0)) -> Millet | W133: =IFERROR(INDEX(IFC_Commodity_CommodityGroup[IFC Commodity group],MATCH(FAOdata[[#This Row],[IFC Commodity]],IFC_Commodity_CommodityGroup[IFC Commodity], 0)),"") -> Pulses & Grains | X133: =IFERROR(INDEX(IFC_Commodity_CommodityGroup[FAO commodity group], MATCH(FAOdata[[#This Row],[IFC Commodity]],IFC_Commodity_CommodityGroup[IFC Commodity],0)),"") -> Cereals | Y133: =IFERROR(INDEX(FTS[[#All],[IFC Supply Chain Stage]],MATCH(FAOdata[[#This Row],[food_supply_stage]],FTS[[#All],[fsc_location1]],0)),"") -> Production
A134: 108 | B134: Burundi | D134: 118 | E134: Millet | F134: 2016 | G134: 3.5 | H134: 3.5 | J134: Drying, Harvesting | K134: Harvest | O134: Modelled Estimates | Q134: https://www.aphlis.net/en/page/20/data-tables#/datatables?tab=value_chain&metric=prc | S134: =IFERROR(INDEX(UNcountrycodes[Region Name],MATCH(FAOdata[[#This Row],[m49_code]],UNcountrycodes[M49 Code],0)),"") -> Africa | T134: =IFERROR(INDEX(UNcountrycodes[Sub-region Name], MATCH(FAOdata[[#This Row],[m49_code]],UNcountrycodes[M49 Code],0)),"") -> Sub-Saharan Africa | U134: =IFERROR(INDEX(RegionClassification[FAO region],MATCH(FAOdata[[#This Row],[UN sub-region]],RegionClassification[UN region],0)),"") -> Sub-Saharan Africa | V134: =INDEX(FAO_IFC_Commodity[IFC commodity], MATCH(FAOdata[[#This Row],[commodity]],FAO_IFC_Commodity[FAO commodity],0)) -> Millet | W134: =IFERROR(INDEX(IFC_Commodity_CommodityGroup[IFC Commodity group],MATCH(FAOdata[[#This Row],[IFC Commodity]],IFC_Commodity_CommodityGroup[IFC Commodity], 0)),"") -> Pulses & Grains | X134: =IFERROR(INDEX(IFC_Commodity_CommodityGroup[FAO commodity group], MATCH(FAOdata[[#This Row],[IFC Commodity]],IFC_Commodity_CommodityGroup[IFC Commodity],0)),"") -> Cereals | Y134: =IFERROR(INDEX(FTS[[#All],[IFC Supply Chain Stage]],MATCH(FAOdata[[#This Row],[food_supply_stage]],FTS[[#All],[fsc_location1]],0)),"") -> 0
A135: 108 | B135: Burundi | D135: 118 | E135: Millet | F135: 2016 | G135: 2.5 | H135: 2.5 | J135: Transportation | K135: Farm | O135: Modelled Estimates | Q135: https://www.aphlis.net/en/page/20/data-tables#/datatables?tab=value_chain&metric=prc | S135: =IFERROR(INDEX(UNcountrycodes[Region Name],MATCH(FAOdata[[#This Row],[m49_code]],UNcountrycodes[M49 Code],0)),"") -> Africa | T135: =IFERROR(INDEX(UNcountrycodes[Sub-region Name], MATCH(FAOdata[[#This Row],[m49_code]],UNcountrycodes[M49 Code],0)),"") -> Sub-Saharan Africa | U135: =IFERROR(INDEX(RegionClassification[FAO region],MATCH(FAOdata[[#This Row],[UN sub-region]],RegionClassification[UN region],0)),"") -> Sub-Saharan Africa | V135: =INDEX(FAO_IFC_Commodity[IFC commodity], MATCH(FAOdata[[#This Row],[commodity]],FAO_IFC_Commodity[FAO commodity],0)) -> Millet | W135: =IFERROR(INDEX(IFC_Commodity_CommodityGroup[IFC Commodity group],MATCH(FAOdata[[#This Row],[IFC Commodity]],IFC_Commodity_CommodityGroup[IFC Commodity], 0)),"") -> Pulses & Grains | X135: =IFERROR(INDEX(IFC_Commodity_CommodityGroup[FAO commodity group], MATCH(FAOdata[[#This Row],[IFC Commodity]],IFC_Commodity_CommodityGroup[IFC Commodity],0)),"") -> Cereals | Y135: =IFERROR(INDEX(FTS[[#All],[IFC Supply Chain Stage]],MATCH(FAOdata[[#This Row],[food_supply_stage]],FTS[[#All],[fsc_location1]],0)),"") -> Production
A136: 108 | B136: Burundi | D136: 118 | E136: Millet | F136: 2016 | G136: 2.5 | H136: 2.5 | J136: Winnowing | K136: Farm | O136: Modelled Estimates | Q136: https://www.aphlis.net/en/page/20/data-tables#/datatables?tab=value_chain&metric=prc | S136: =IFERROR(INDEX(UNcountrycodes[Region Name],MATCH(FAOdata[[#This Row],[m49_code]],UNcountrycodes[M49 Code],0)),"") -> Africa | T136: =IFERROR(INDEX(UNcountrycodes[Sub-region Name], MATCH(FAOdata[[#This Row],[m49_code]],UNcountrycodes[M49 Code],0)),"") -> Sub-Saharan Africa | U136: =IFERROR(INDEX(RegionClassification[FAO region],MATCH(FAOdata[[#This Row],[UN sub-region]],RegionClassification[UN region],0)),"") -> Sub-Saharan Africa | V136: =INDEX(FAO_IFC_Commodity[IFC commodity], MATCH(FAOdata[[#This Row],[commodity]],FAO_IFC_Commodity[FAO commodity],0)) -> Millet | W136: =IFERROR(INDEX(IFC_Commodity_CommodityGroup[IFC Commodity group],MATCH(FAOdata[[#This Row],[IFC Commodity]],IFC_Commodity_CommodityGroup[IFC Commodity], 0)),"") -> Pulses & Grains | X136: =IFERROR(INDEX(IFC_Commodity_CommodityGroup[FAO commodity group], MATCH(FAOdata[[#This Row],[IFC Commodity]],IFC_Commodity_CommodityGroup[IFC Commodity],0)),"") -> Cereals | Y136: =IFERROR(INDEX(FTS[[#All],[IFC Supply Chain Stage]],MATCH(FAOdata[[#This Row],[food_supply_stage]],FTS[[#All],[fsc_location1]],0)),"") -> Production
A137: 108 | B137: Burundi | D137: 111 | E137: Wheat | F137: 2015 | G137: 4.43 | H137: 4.43 | J137: Drying, Harvesting | K137: Harvest | O137: Modelled Estimates | Q137: https://www.aphlis.net/en/page/20/data-tables#/datatables?tab=value_chain&metric=prc | S137: =IFERROR(INDEX(UNcountrycodes[Region Name],MATCH(FAOdata[[#This Row],[m49_code]],UNcountrycodes[M49 Code],0)),"") -> Africa | T137: =IFERROR(INDEX(UNcountrycodes[Sub-region Name], MATCH(FAOdata[[#This Row],[m49_code]],UNcountrycodes[M49 Code],0)),"") -> Sub-Saharan Africa | U137: =IFERROR(INDEX(RegionClassification[FAO region],MATCH(FAOdata[[#This Row],[UN sub-region]],RegionClassification[UN region],0)),"") -> Sub-Saharan Africa | V137: =INDEX(FAO_IFC_Commodity[IFC commodity], MATCH(FAOdata[[#This Row],[commodity]],FAO_IFC_Commodity[FAO commodity],0)) -> Wheat | W137: =IFERROR(INDEX(IFC_Commodity_CommodityGroup[IFC Commodity group],MATCH(FAOdata[[#This Row],[IFC Commodity]],IFC_Commodity_CommodityGroup[IFC Commodity], 0)),"") -> Pulses & Grains | X137: =IFERROR(INDEX(IFC_Commodity_CommodityGroup[FAO commodity group], MATCH(FAOdata[[#This Row],[IFC Commodity]],IFC_Commodity_CommodityGroup[IFC Commodity],0)),"") -> Cereals | Y137: =IFERROR(INDEX(FTS[[#All],[IFC Supply Chain Stage]],MATCH(FAOdata[[#This Row],[food_supply_stage]],FTS[[#All],[fsc_location1]],0)),"") -> 0
A138: 108 | B138: Burundi | D138: 111 | E138: Wheat | F138: 2015 | G138: 4.87 | H138: 4.87 | J138: Storage | K138: Farm | O138: Modelled Estimates | Q138: https://www.aphlis.net/en/page/20/data-tables#/datatables?tab=value_chain&metric=prc | S138: =IFERROR(INDEX(UNcountrycodes[Region Name],MATCH(FAOdata[[#This Row],[m49_code]],UNcountrycodes[M49 Code],0)),"") -> Africa | T138: =IFERROR(INDEX(UNcountrycodes[Sub-region Name], MATCH(FAOdata[[#This Row],[m49_code]],UNcountrycodes[M49 Code],0)),"") -> Sub-Saharan Africa | U138: =IFERROR(INDEX(RegionClassification[FAO region],MATCH(FAOdata[[#This Row],[UN sub-region]],RegionClassification[UN region],0)),"") -> Sub-Saharan Africa | V138: =INDEX(FAO_IFC_Commodity[IFC commodity], MATCH(FAOdata[[#This Row],[commodity]],FAO_IFC_Commodity[FAO commodity],0)) -> Wheat | W138: =IFERROR(INDEX(IFC_Commodity_CommodityGroup[IFC Commodity group],MATCH(FAOdata[[#This Row],[IFC Commodity]],IFC_Commodity_CommodityGroup[IFC Commodity], 0)),"") -> Pulses & Grains | X138: =IFERROR(INDEX(IFC_Commodity_CommodityGroup[FAO commodity group], MATCH(FAOdata[[#This Row],[IFC Commodity]],IFC_Commodity_CommodityGroup[IFC Commodity],0)),"") -> Cereals | Y138: =IFERROR(INDEX(FTS[[#All],[IFC Supply Chain Stage]],MATCH(FAOdata[[#This Row],[food_supply_stage]],FTS[[#All],[fsc_location1]],0)),"") -> Production
A139: 108 | B139: Burundi | D139: 111 | E139: Wheat | F139: 2015 | G139: 2.5 | H139: 2.5 | J139: Transportation | K139: Farm | O139: Modelled Estimates | Q139: https://www.aphlis.net/en/page/20/data-tables#/datatables?tab=value_chain&metric=prc | S139: =IFERROR(INDEX(UNcountrycodes[Region Name],MATCH(FAOdata[[#This Row],[m49_code]],UNcountrycodes[M49 Code],0)),"") -> Africa | T139: =IFERROR(INDEX(UNcountrycodes[Sub-region Name], MATCH(FAOdata[[#This Row],[m49_code]],UNcountrycodes[M49 Code],0)),"") -> Sub-Saharan Africa | U139: =IFERROR(INDEX(RegionClassification[FAO region],MATCH(FAOdata[[#This Row],[UN sub-region]],RegionClassification[UN region],0)),"") -> Sub-Saharan Africa | V139: =INDEX(FAO_IFC_Commodity[IFC commodity], MATCH(FAOdata[[#This Row],[commodity]],FAO_IFC_Commodity[FAO commodity],0)) -> Wheat | W139: =IFERROR(INDEX(IFC_Commodity_CommodityGroup[IFC Commodity group],MATCH(FAOdata[[#This Row],[IFC Commodity]],IFC_Commodity_CommodityGroup[IFC Commodity], 0)),"") -> Pulses & Grains | X139: =IFERROR(INDEX(IFC_Commodity_CommodityGroup[FAO commodity group], MATCH(FAOdata[[#This Row],[IFC Commodity]],IFC_Commodity_CommodityGroup[IFC Commodity],0)),"") -> Cereals | Y139: =IFERROR(INDEX(FTS[[#All],[IFC Supply Chain Stage]],MATCH(FAOdata[[#This Row],[food_supply_stage]],FTS[[#All],[fsc_location1]],0)),"") -> Production
A140: 108 | B140: Burundi | D140: 111 | E140: Wheat | F140: 2015 | G140: 3.5 | H140: 3.5 | J140: Shelling, Threshing | K140: Farm | O140: Modelled Estimates | Q140: https://www.aphlis.net/en/page/20/data-tables#/datatables?tab=value_chain&metric=prc | S140: =IFERROR(INDEX(UNcountrycodes[Region Name],MATCH(FAOdata[[#This Row],[m49_code]],UNcountrycodes[M49 Code],0)),"") -> Africa | T140: =IFERROR(INDEX(UNcountrycodes[Sub-region Name], MATCH(FAOdata[[#This Row],[m49_code]],UNcountrycodes[M49 Code],0)),"") -> Sub-Saharan Africa | U140: =IFERROR(INDEX(RegionClassification[FAO region],MATCH(FAOdata[[#This Row],[UN sub-region]],RegionClassification[UN region],0)),"") -> Sub-Saharan Africa | V140: =INDEX(FAO_IFC_Commodity[IFC commodity], MATCH(FAOdata[[#This Row],[commodity]],FAO_IFC_Commodity[FAO commodity],0)) -> Wheat | W140: =IFERROR(INDEX(IFC_Commodity_CommodityGroup[IFC Commodity group],MATCH(FAOdata[[#This Row],[IFC Commodity]],IFC_Commodity_CommodityGroup[IFC Commodity], 0)),"") -> Pulses & Grains | X140: =IFERROR(INDEX(IFC_Commodity_CommodityGroup[FAO commodity group], MATCH(FAOdata[[#This Row],[IFC Commodity]],IFC_Commodity_CommodityGroup[IFC Commodity],0)),"") -> Cereals | Y140: =IFERROR(INDEX(FTS[[#All],[IFC Supply Chain Stage]],MATCH(FAOdata[[#This Row],[food_supply_stage]],FTS[[#All],[fsc_location1]],0)),"") -> Production
A141: 108 | B141: Burundi | D141: 112 | E141: Maize (corn) | F141: 2015 | G141: 4 | H141: 4 | J141: Drying | K141: Farm | O141: Modelled Estimates | Q141: https://www.aphlis.net/en/page/20/data-tables#/datatables?tab=value_chain&metric=prc | S141: =IFERROR(INDEX(UNcountrycodes[Region Name],MATCH(FAOdata[[#This Row],[m49_code]],UNcountrycodes[M49 Code],0)),"") -> Africa | T141: =IFERROR(INDEX(UNcountrycodes[Sub-region Name], MATCH(FAOdata[[#This Row],[m49_code]],UNcountrycodes[M49 Code],0)),"") -> Sub-Saharan Africa | U141: =IFERROR(INDEX(RegionClassification[FAO region],MATCH(FAOdata[[#This Row],[UN sub-region]],RegionClassification[UN region],0)),"") -> Sub-Saharan Africa | V141: =INDEX(FAO_IFC_Commodity[IFC commodity], MATCH(FAOdata[[#This Row],[commodity]],FAO_IFC_Commodity[FAO commodity],0)) -> Maize | W141: =IFERROR(INDEX(IFC_Commodity_CommodityGroup[IFC Commodity group],MATCH(FAOdata[[#This Row],[IFC Commodity]],IFC_Commodity_CommodityGroup[IFC Commodity], 0)),"") -> Pulses & Grains | X141: =IFERROR(INDEX(IFC_Commodity_CommodityGroup[FAO commodity group], MATCH(FAOdata[[#This Row],[IFC Commodity]],IFC_Commodity_CommodityGroup[IFC Commodity],0)),"") -> Cereals | Y141: =IFERROR(INDEX(FTS[[#All],[IFC Supply Chain Stage]],MATCH(FAOdata[[#This Row],[food_supply_stage]],FTS[[#All],[fsc_location1]],0)),"") -> Production
A142: 108 | B142: Burundi | D142: 112 | E142: Maize (corn) | F142: 2015 | G142: 1.32 | H142: 1.32 | J142: Shelling, Threshing | K142: Farm | O142: Modelled Estimates | Q142: https://www.aphlis.net/en/page/20/data-tables#/datatables?tab=value_chain&metric=prc | S142: =IFERROR(INDEX(UNcountrycodes[Region Name],MATCH(FAOdata[[#This Row],[m49_code]],UNcountrycodes[M49 Code],0)),"") -> Africa | T142: =IFERROR(INDEX(UNcountrycodes[Sub-region Name], MATCH(FAOdata[[#This Row],[m49_code]],UNcountrycodes[M49 Code],0)),"") -> Sub-Saharan Africa | U142: =IFERROR(INDEX(RegionClassification[FAO region],MATCH(FAOdata[[#This Row],[UN sub-region]],RegionClassification[UN region],0)),"") -> Sub-Saharan Africa | V142: =INDEX(FAO_IFC_Commodity[IFC commodity], MATCH(FAOdata[[#This Row],[commodity]],FAO_IFC_Commodity[FAO commodity],0)) -> Maize | W142: =IFERROR(INDEX(IFC_Commodity_CommodityGroup[IFC Commodity group],MATCH(FAOdata[[#This Row],[IFC Commodity]],IFC_Commodity_CommodityGroup[IFC Commodity], 0)),"") -> Pulses & Grains | X142: =IFERROR(INDEX(IFC_Commodity_CommodityGroup[FAO commodity group], MATCH(FAOdata[[#This Row],[IFC Commodity]],IFC_Commodity_CommodityGroup[IFC Commodity],0)),"") -> Cereals | Y142: =IFERROR(INDEX(FTS[[#All],[IFC Supply Chain Stage]],MATCH(FAOdata[[#This Row],[food_supply_stage]],FTS[[#All],[fsc_location1]],0)),"") -> Production
A143: 108 | B143: Burundi | D143: 112 | E143: Maize (corn) | F143: 2015 | G143: 2.36 | H143: 2.36 | J143: Transportation | K143: Farm | O143: Modelled Estimates | Q143: https://www.aphlis.net/en/page/20/data-tables#/datatables?tab=value_chain&metric=prc | S143: =IFERROR(INDEX(UNcountrycodes[Region Name],MATCH(FAOdata[[#This Row],[m49_code]],UNcountrycodes[M49 Code],0)),"") -> Africa | T143: =IFERROR(INDEX(UNcountrycodes[Sub-region Name], MATCH(FAOdata[[#This Row],[m49_code]],UNcountrycodes[M49 Code],0)),"") -> Sub-Saharan Africa | U143: =IFERROR(INDEX(RegionClassification[FAO region],MATCH(FAOdata[[#This Row],[UN sub-region]],RegionClassification[UN region],0)),"") -> Sub-Saharan Africa | V143: =INDEX(FAO_IFC_Commodity[IFC commodity], MATCH(FAOdata[[#This Row],[commodity]],FAO_IFC_Commodity[FAO commodity],0)) -> Maize | W143: =IFERROR(INDEX(IFC_Commodity_CommodityGroup[IFC Commodity group],MATCH(FAOdata[[#This Row],[IFC Commodity]],IFC_Commodity_CommodityGroup[IFC Commodity], 0)),"") -> Pulses & Grains | X143: =IFERROR(INDEX(IFC_Commodity_CommodityGroup[FAO commodity group], MATCH(FAOdata[[#This Row],[IFC Commodity]],IFC_Commodity_CommodityGroup[IFC Commodity],0)),"") -> Cereals | Y143: =IFERROR(INDEX(FTS[[#All],[IFC Supply Chain Stage]],MATCH(FAOdata[[#This Row],[food_supply_stage]],FTS[[#All],[fsc_location1]],0)),"") -> Production
A144: 108 | B144: Burundi | D144: 112 | E144: Maize (corn) | F144: 2015 | G144: 5.26 | H144: 5.26 | J144: Storage | K144: Farm | O144: Modelled Estimates | Q144: https://www.aphlis.net/en/page/20/data-tables#/datatables?tab=value_chain&metric=prc | S144: =IFERROR(INDEX(UNcountrycodes[Region Name],MATCH(FAOdata[[#This Row],[m49_code]],UNcountrycodes[M49 Code],0)),"") -> Africa | T144: =IFERROR(INDEX(UNcountrycodes[Sub-region Name], MATCH(FAOdata[[#This Row],[m49_code]],UNcountrycodes[M49 Code],0)),"") -> Sub-Saharan Africa | U144: =IFERROR(INDEX(RegionClassification[FAO region],MATCH(FAOdata[[#This Row],[UN sub-region]],RegionClassification[UN region],0)),"") -> Sub-Saharan Africa | V144: =INDEX(FAO_IFC_Commodity[IFC commodity], MATCH(FAOdata[[#This Row],[commodity]],FAO_IFC_Commodity[FAO commodity],0)) -> Maize | W144: =IFERROR(INDEX(IFC_Commodity_CommodityGroup[IFC Commodity group],MATCH(FAOdata[[#This Row],[IFC Commodity]],IFC_Commodity_CommodityGroup[IFC Commodity], 0)),"") -> Pulses & Grains | X144: =IFERROR(INDEX(IFC_Commodity_CommodityGroup[FAO commodity group], MATCH(FAOdata[[#This Row],[IFC Commodity]],IFC_Commodity_CommodityGroup[IFC Commodity],0)),"") -> Cereals | Y144: =IFERROR(INDEX(FTS[[#All],[IFC Supply Chain Stage]],MATCH(FAOdata[[#This Row],[food_supply_stage]],FTS[[#All],[fsc_location1]],0)),"") -> Production
A145: 108 | B145: Burundi | D145: 112 | E145: Maize (corn) | F145: 2015 | G145: 6.42 | H145: 6.42 | J145: Drying, Harvesting | K145: Harvest | O145: Modelled Estimates | Q145: https://www.aphlis.net/en/page/20/data-tables#/datatables?tab=value_chain&metric=prc | S145: =IFERROR(INDEX(UNcountrycodes[Region Name],MATCH(FAOdata[[#This Row],[m49_code]],UNcountrycodes[M49 Code],0)),"") -> Africa | T145: =IFERROR(INDEX(UNcountrycodes[Sub-region Name], MATCH(FAOdata[[#This Row],[m49_code]],UNcountrycodes[M49 Code],0)),"") -> Sub-Saharan Africa | U145: =IFERROR(INDEX(RegionClassification[FAO region],MATCH(FAOdata[[#This Row],[UN sub-region]],RegionClassification[UN region],0)),"") -> Sub-Saharan Africa | V145: =INDEX(FAO_IFC_Commodity[IFC commodity], MATCH(FAOdata[[#This Row],[commodity]],FAO_IFC_Commodity[FAO commodity],0)) -> Maize | W145: =IFERROR(INDEX(IFC_Commodity_CommodityGroup[IFC Commodity group],MATCH(FAOdata[[#This Row],[IFC Commodity]],IFC_Commodity_CommodityGroup[IFC Commodity], 0)),"") -> Pulses & Grains | X145: =IFERROR(INDEX(IFC_Commodity_CommodityGroup[FAO commodity group], MATCH(FAOdata[[#This Row],[IFC Commodity]],IFC_Commodity_CommodityGroup[IFC Commodity],0)),"") -> Cereals | Y145: =IFERROR(INDEX(FTS[[#All],[IFC Supply Chain Stage]],MATCH(FAOdata[[#This Row],[food_supply_stage]],FTS[[#All],[fsc_location1]],0)),"") -> 0
A146: 108 | B146: Burundi | D146: 113 | E146: Rice | F146: 2015 | G146: 2.5 | H146: 2.5 | J146: Winnowing | K146: Farm | O146: Modelled Estimates | Q146: https://www.aphlis.net/en/page/20/data-tables#/datatables?tab=value_chain&metric=prc | S146: =IFERROR(INDEX(UNcountrycodes[Region Name],MATCH(FAOdata[[#This Row],[m49_code]],UNcountrycodes[M49 Code],0)),"") -> Africa | T146: =IFERROR(INDEX(UNcountrycodes[Sub-region Name], MATCH(FAOdata[[#This Row],[m49_code]],UNcountrycodes[M49 Code],0)),"") -> Sub-Saharan Africa | U146: =IFERROR(INDEX(RegionClassification[FAO region],MATCH(FAOdata[[#This Row],[UN sub-region]],RegionClassification[UN region],0)),"") -> Sub-Saharan Africa | V146: =INDEX(FAO_IFC_Commodity[IFC commodity], MATCH(FAOdata[[#This Row],[commodity]],FAO_IFC_Commodity[FAO commodity],0)) -> Rice | W146: =IFERROR(INDEX(IFC_Commodity_CommodityGroup[IFC Commodity group],MATCH(FAOdata[[#This Row],[IFC Commodity]],IFC_Commodity_CommodityGroup[IFC Commodity], 0)),"") -> Pulses & Grains | X146: =IFERROR(INDEX(IFC_Commodity_CommodityGroup[FAO commodity group], MATCH(FAOdata[[#This Row],[IFC Commodity]],IFC_Commodity_CommodityGroup[IFC Commodity],0)),"") -> Cereals | Y146: =IFERROR(INDEX(FTS[[#All],[IFC Supply Chain Stage]],MATCH(FAOdata[[#This Row],[food_supply_stage]],FTS[[#All],[fsc_location1]],0)),"") -> Production
A147: 108 | B147: Burundi | D147: 113 | E147: Rice | F147: 2015 | G147: 4.4 | H147: 4.4 | J147: Drying, Harvesting | K147: Harvest | O147: Modelled Estimates | Q147: https://www.aphlis.net/en/page/20/data-tables#/datatables?tab=value_chain&metric=prc | S147: =IFERROR(INDEX(UNcountrycodes[Region Name],MATCH(FAOdata[[#This Row],[m49_code]],UNcountrycodes[M49 Code],0)),"") -> Africa | T147: =IFERROR(INDEX(UNcountrycodes[Sub-region Name], MATCH(FAOdata[[#This Row],[m49_code]],UNcountrycodes[M49 Code],0)),"") -> Sub-Saharan Africa | U147: =IFERROR(INDEX(RegionClassification[FAO region],MATCH(FAOdata[[#This Row],[UN sub-region]],RegionClassification[UN region],0)),"") -> Sub-Saharan Africa | V147: =INDEX(FAO_IFC_Commodity[IFC commodity], MATCH(FAOdata[[#This Row],[commodity]],FAO_IFC_Commodity[FAO commodity],0)) -> Rice | W147: =IFERROR(INDEX(IFC_Commodity_CommodityGroup[IFC Commodity group],MATCH(FAOdata[[#This Row],[IFC Commodity]],IFC_Commodity_CommodityGroup[IFC Commodity], 0)),"") -> Pulses & Grains | X147: =IFERROR(INDEX(IFC_Commodity_CommodityGroup[FAO commodity group], MATCH(FAOdata[[#This Row],[IFC Commodity]],IFC_Commodity_CommodityGroup[IFC Commodity],0)),"") -> Cereals | Y147: =IFERROR(INDEX(FTS[[#All],[IFC Supply Chain Stage]],MATCH(FAOdata[[#This Row],[food_supply_stage]],FTS[[#All],[fsc_location1]],0)),"") -> 0
A148: 108 | B148: Burundi | D148: 113 | E148: Rice | F148: 2015 | G148: 3.14 | H148: 3.14 | J148: Shelling, Threshing | K148: Farm | O148: Modelled Estimates | Q148: https://www.aphlis.net/en/page/20/data-tables#/datatables?tab=value_chain&metric=prc | S148: =IFERROR(INDEX(UNcountrycodes[Region Name],MATCH(FAOdata[[#This Row],[m49_code]],UNcountrycodes[M49 Code],0)),"") -> Africa | T148: =IFERROR(INDEX(UNcountrycodes[Sub-region Name], MATCH(FAOdata[[#This Row],[m49_code]],UNcountrycodes[M49 Code],0)),"") -> Sub-Saharan Africa | U148: =IFERROR(INDEX(RegionClassification[FAO region],MATCH(FAOdata[[#This Row],[UN sub-region]],RegionClassification[UN region],0)),"") -> Sub-Saharan Africa | V148: =INDEX(FAO_IFC_Commodity[IFC commodity], MATCH(FAOdata[[#This Row],[commodity]],FAO_IFC_Commodity[FAO commodity],0)) -> Rice | W148: =IFERROR(INDEX(IFC_Commodity_CommodityGroup[IFC Commodity group],MATCH(FAOdata[[#This Row],[IFC Commodity]],IFC_Commodity_CommodityGroup[IFC Commodity], 0)),"") -> Pulses & Grains | X148: =IFERROR(INDEX(IFC_Commodity_CommodityGroup[FAO commodity group], MATCH(FAOdata[[#This Row],[IFC Commodity]],IFC_Commodity_CommodityGroup[IFC Commodity],0)),"") -> Cereals | Y148: =IFERROR(INDEX(FTS[[#All],[IFC Supply Chain Stage]],MATCH(FAOdata[[#This Row],[food_supply_stage]],FTS[[#All],[fsc_location1]],0)),"") -> Production
A149: 108 | B149: Burundi | D149: 113 | E149: Rice | F149: 2015 | G149: 1.25 | H149: 1.25 | J149: Transportation | K149: Farm | O149: Modelled Estimates | Q149: https://www.aphlis.net/en/page/20/data-tables#/datatables?tab=value_chain&metric=prc | S149: =IFERROR(INDEX(UNcountrycodes[Region Name],MATCH(FAOdata[[#This Row],[m49_code]],UNcountrycodes[M49 Code],0)),"") -> Africa | T149: =IFERROR(INDEX(UNcountrycodes[Sub-region Name], MATCH(FAOdata[[#This Row],[m49_code]],UNcountrycodes[M49 Code],0)),"") -> Sub-Saharan Africa | U149: =IFERROR(INDEX(RegionClassification[FAO region],MATCH(FAOdata[[#This Row],[UN sub-region]],RegionClassification[UN region],0)),"") -> Sub-Saharan Africa | V149: =INDEX(FAO_IFC_Commodity[IFC commodity], MATCH(FAOdata[[#This Row],[commodity]],FAO_IFC_Commodity[FAO commodity],0)) -> Rice | W149: =IFERROR(INDEX(IFC_Commodity_CommodityGroup[IFC Commodity group],MATCH(FAOdata[[#This Row],[IFC Commodity]],IFC_Commodity_CommodityGroup[IFC Commodity], 0)),"") -> Pulses & Grains | X149: =IFERROR(INDEX(IFC_Commodity_CommodityGroup[FAO commodity group], MATCH(FAOdata[[#This Row],[IFC Commodity]],IFC_Commodity_CommodityGroup[IFC Commodity],0)),"") -> Cereals | Y149: =IFERROR(INDEX(FTS[[#All],[IFC Supply Chain Stage]],MATCH(FAOdata[[#This Row],[food_supply_stage]],FTS[[#All],[fsc_location1]],0)),"") -> Production
A150: 108 | B150: Burundi | D150: 113 | E150: Rice | F150: 2015 | G150: 1.2 | H150: 1.2 | J150: Storage | K150: Farm | O150: Modelled Estimates | Q150: https://www.aphlis.net/en/page/20/data-tables#/datatables?tab=value_chain&metric=prc | S150: =IFERROR(INDEX(UNcountrycodes[Region Name],MATCH(FAOdata[[#This Row],[m49_code]],UNcountrycodes[M49 Code],0)),"") -> Africa | T150: =IFERROR(INDEX(UNcountrycodes[Sub-region Name], MATCH(FAOdata[[#This Row],[m49_code]],UNcountrycodes[M49 Code],0)),"") -> Sub-Saharan Africa | U150: =IFERROR(INDEX(RegionClassification[FAO region],MATCH(FAOdata[[#This Row],[UN sub-region]],RegionClassification[UN region],0)),"") -> Sub-Saharan Africa | V150: =INDEX(FAO_IFC_Commodity[IFC commodity], MATCH(FAOdata[[#This Row],[commodity]],FAO_IFC_Commodity[FAO commodity],0)) -> Rice | W150: =IFERROR(INDEX(IFC_Commodity_CommodityGroup[IFC Commodity group],MATCH(FAOdata[[#This Row],[IFC Commodity]],IFC_Commodity_CommodityGroup[IFC Commodity], 0)),"") -> Pulses & Grains | X150: =IFERROR(INDEX(IFC_Commodity_CommodityGroup[FAO commodity group], MATCH(FAOdata[[#This Row],[IFC Commodity]],IFC_Commodity_CommodityGroup[IFC Commodity],0)),"") -> Cereals | Y150: =IFERROR(INDEX(FTS[[#All],[IFC Supply Chain Stage]],MATCH(FAOdata[[#This Row],[food_supply_stage]],FTS[[#All],[fsc_location1]],0)),"") -> Production
A151: 108 | B151: Burundi | D151: 114 | E151: Sorghum | F151: 2015 | G151: 4.55 | H151: 4.55 | J151: Drying, Harvesting | K151: Harvest | O151: Modelled Estimates | Q151: https://www.aphlis.net/en/page/20/data-tables#/datatables?tab=value_chain&metric=prc | S151: =IFERROR(INDEX(UNcountrycodes[Region Name],MATCH(FAOdata[[#This Row],[m49_code]],UNcountrycodes[M49 Code],0)),"") -> Africa | T151: =IFERROR(INDEX(UNcountrycodes[Sub-region Name], MATCH(FAOdata[[#This Row],[m49_code]],UNcountrycodes[M49 Code],0)),"") -> Sub-Saharan Africa | U151: =IFERROR(INDEX(RegionClassification[FAO region],MATCH(FAOdata[[#This Row],[UN sub-region]],RegionClassification[UN region],0)),"") -> Sub-Saharan Africa | V151: =INDEX(FAO_IFC_Commodity[IFC commodity], MATCH(FAOdata[[#This Row],[commodity]],FAO_IFC_Commodity[FAO commodity],0)) -> Sorghum | W151: =IFERROR(INDEX(IFC_Commodity_CommodityGroup[IFC Commodity group],MATCH(FAOdata[[#This Row],[IFC Commodity]],IFC_Commodity_CommodityGroup[IFC Commodity], 0)),"") -> Pulses & Grains | X151: =IFERROR(INDEX(IFC_Commodity_CommodityGroup[FAO commodity group], MATCH(FAOdata[[#This Row],[IFC Commodity]],IFC_Commodity_CommodityGroup[IFC Commodity],0)),"") -> Cereals | Y151: =IFERROR(INDEX(FTS[[#All],[IFC Supply Chain Stage]],MATCH(FAOdata[[#This Row],[food_supply_stage]],FTS[[#All],[fsc_location1]],0)),"") -> 0
A152: 108 | B152: Burundi | D152: 114 | E152: Sorghum | F152: 2015 | G152: 2.69 | H152: 2.69 | J152: Storage | K152: Farm | O152: Modelled Estimates | Q152: https://www.aphlis.net/en/page/20/data-tables#/datatables?tab=value_chain&metric=prc | S152: =IFERROR(INDEX(UNcountrycodes[Region Name],MATCH(FAOdata[[#This Row],[m49_code]],UNcountrycodes[M49 Code],0)),"") -> Africa | T152: =IFERROR(INDEX(UNcountrycodes[Sub-region Name], MATCH(FAOdata[[#This Row],[m49_code]],UNcountrycodes[M49 Code],0)),"") -> Sub-Saharan Africa | U152: =IFERROR(INDEX(RegionClassification[FAO region],MATCH(FAOdata[[#This Row],[UN sub-region]],RegionClassification[UN region],0)),"") -> Sub-Saharan Africa | V152: =INDEX(FAO_IFC_Commodity[IFC commodity], MATCH(FAOdata[[#This Row],[commodity]],FAO_IFC_Commodity[FAO commodity],0)) -> Sorghum | W152: =IFERROR(INDEX(IFC_Commodity_CommodityGroup[IFC Commodity group],MATCH(FAOdata[[#This Row],[IFC Commodity]],IFC_Commodity_CommodityGroup[IFC Commodity], 0)),"") -> Pulses & Grains | X152: =IFERROR(INDEX(IFC_Commodity_CommodityGroup[FAO commodity group], MATCH(FAOdata[[#This Row],[IFC Commodity]],IFC_Commodity_CommodityGroup[IFC Commodity],0)),"") -> Cereals | Y152: =IFERROR(INDEX(FTS[[#All],[IFC Supply Chain Stage]],MATCH(FAOdata[[#This Row],[food_supply_stage]],FTS[[#All],[fsc_location1]],0)),"") -> Production
A153: 108 | B153: Burundi | D153: 114 | E153: Sorghum | F153: 2015 | G153: 3.6 | H153: 3.6 | J153: Shelling, Threshing | K153: Farm | O153: Modelled Estimates | Q153: https://www.aphlis.net/en/page/20/data-tables#/datatables?tab=value_chain&metric=prc | S153: =IFERROR(INDEX(UNcountrycodes[Region Name],MATCH(FAOdata[[#This Row],[m49_code]],UNcountrycodes[M49 Code],0)),"") -> Africa | T153: =IFERROR(INDEX(UNcountrycodes[Sub-region Name], MATCH(FAOdata[[#This Row],[m49_code]],UNcountrycodes[M49 Code],0)),"") -> Sub-Saharan Africa | U153: =IFERROR(INDEX(RegionClassification[FAO region],MATCH(FAOdata[[#This Row],[UN sub-region]],RegionClassification[UN region],0)),"") -> Sub-Saharan Africa | V153: =INDEX(FAO_IFC_Commodity[IFC commodity], MATCH(FAOdata[[#This Row],[commodity]],FAO_IFC_Commodity[FAO commodity],0)) -> Sorghum | W153: =IFERROR(INDEX(IFC_Commodity_CommodityGroup[IFC Commodity group],MATCH(FAOdata[[#This Row],[IFC Commodity]],IFC_Commodity_CommodityGroup[IFC Commodity], 0)),"") -> Pulses & Grains | X153: =IFERROR(INDEX(IFC_Commodity_CommodityGroup[FAO commodity group], MATCH(FAOdata[[#This Row],[IFC Commodity]],IFC_Commodity_CommodityGroup[IFC Commodity],0)),"") -> Cereals | Y153: =IFERROR(INDEX(FTS[[#All],[IFC Supply Chain Stage]],MATCH(FAOdata[[#This Row],[food_supply_stage]],FTS[[#All],[fsc_location1]],0)),"") -> Production
